Workbook

Sheet 1.총괄(작성금지)
A1: 26년 월별 정부합동민원센터 상담·접수·처리 현황
A2: 1. 상담 현황(민원실+온라인상담+콜) | O2: (단위 : 건)
A3: 분야 | B3: 구분 | C3: 합계 | D3: 1월 | E3: 2월 | F3: 3월 | G3: 4월 | H3: 5월 | I3: 6월 | J3: 7월 | K3: 8월 | L3: 9월 | M3: 10월 | N3: 11월 | O3: 12월 | P3: 합계 | Q3: 비율 | R3: 1분기 | S3: 비율 | T3: 2분기 | U3: 비율 | V3: 3분기 | W3: 비율 | X3: 4분기 | Y3: 비율
A4: 소 계 (민원) | C4: =C5+C6 -> 4280 | D4: =D5+D6 -> 2572 | E4: 1708 | F4: 0 | G4: 0 | H4: 0 | I4: 0 | J4: 0 | K4: 0 | L4: 0 | M4: 0 | N4: 0 | O4: 0 | P4: =R4+T4+V4+X4 -> 4280 | Q4: 1 | R4: =D4+E4+F4 -> 4280 | S4: =R4/P4 -> 1 | T4: =G4+I4+H4 -> 0 | U4: =T4/P4 -> 0 | V4: =J4+K4+L4 -> 0 | W4: =V4/P4 -> 0 | X4: =M4+N4+O4 -> 0 | Y4: =X4/P4 -> 0
A5: 민원 | B5: 고충민원 | C5: =SUM(D5:O5) -> 318 | D5: ='12.분야별상담및접수(서울세종창구상담)'!C38+'12.분야별상담및접수(서울세종창구상담)'!C39+'12.분야별상담및접수(서울세종창구상담)'!C40+'10.온라인 상담'!C6 -> 174 | E5: ='12.분야별상담및접수(서울세종창구상담)'!D38+'12.분야별상담및접수(서울세종창구상담)'!D39+'12.분야별상담및접수(서울세종창구상담)'!D40+'10.온라인 상담'!D6 -> 144 | F5: ='12.분야별상담및접수(서울세종창구상담)'!E38+'12.분야별상담및접수(서울세종창구상담)'!E39+'12.분야별상담및접수(서울세종창구상담)'!E40+'10.온라인 상담'!E6 -> 0 | G5: ='12.분야별상담및접수(서울세종창구상담)'!F38+'12.분야별상담및접수(서울세종창구상담)'!F39+'12.분야별상담및접수(서울세종창구상담)'!F40+'10.온라인 상담'!F6 -> 0 | H5: ='12.분야별상담및접수(서울세종창구상담)'!G38+'12.분야별상담및접수(서울세종창구상담)'!G39+'12.분야별상담및접수(서울세종창구상담)'!G40+'10.온라인 상담'!G6 -> 0 | I5: ='12.분야별상담및접수(서울세종창구상담)'!H38+'12.분야별상담및접수(서울세종창구상담)'!H39+'12.분야별상담및접수(서울세종창구상담)'!H40+'10.온라인 상담'!H6 -> 0 | J5: ='12.분야별상담및접수(서울세종창구상담)'!I38+'12.분야별상담및접수(서울세종창구상담)'!I39+'12.분야별상담및접수(서울세종창구상담)'!I40+'10.온라인 상담'!I6 -> 0 | K5: ='12.분야별상담및접수(서울세종창구상담)'!J38+'12.분야별상담및접수(서울세종창구상담)'!J39+'12.분야별상담및접수(서울세종창구상담)'!J40+'10.온라인 상담'!J6 -> 0 | L5: ='12.분야별상담및접수(서울세종창구상담)'!K38+'12.분야별상담및접수(서울세종창구상담)'!K39+'12.분야별상담및접수(서울세종창구상담)'!K40+'10.온라인 상담'!K6 -> 0 | M5: ='12.분야별상담및접수(서울세종창구상담)'!L38+'12.분야별상담및접수(서울세종창구상담)'!L39+'12.분야별상담및접수(서울세종창구상담)'!L40+'10.온라인 상담'!L6 -> 0 | N5: ='12.분야별상담및접수(서울세종창구상담)'!M38+'12.분야별상담및접수(서울세종창구상담)'!M39+'12.분야별상담및접수(서울세종창구상담)'!M40+'10.온라인 상담'!M6 -> 0 | O5: ='12.분야별상담및접수(서울세종창구상담)'!N38+'12.분야별상담및접수(서울세종창구상담)'!N39+'12.분야별상담및접수(서울세종창구상담)'!N40+'10.온라인 상담'!N6 -> 0 | P5: 318 | Q5: 1 | R5: 318 | S5: 1 | T5: 0 | U5: 0 | V5: 0 | W5: 0 | X5: 0 | Y5: 0
B6: 일반민원 | C6: 3962 | D6: ='12.분야별상담및접수(서울세종창구상담)'!C35+'12.분야별상담및접수(서울세종창구상담)'!C36+'12.분야별상담및접수(서울세종창구상담)'!C37+'10.온라인 상담'!C5 -> 2398 | E6: ='12.분야별상담및접수(서울세종창구상담)'!D35+'12.분야별상담및접수(서울세종창구상담)'!D36+'12.분야별상담및접수(서울세종창구상담)'!D37+'10.온라인 상담'!D5 -> 1564 | F6: ='12.분야별상담및접수(서울세종창구상담)'!E35+'12.분야별상담및접수(서울세종창구상담)'!E36+'12.분야별상담및접수(서울세종창구상담)'!E37+'10.온라인 상담'!E5 -> 0 | G6: ='12.분야별상담및접수(서울세종창구상담)'!F35+'12.분야별상담및접수(서울세종창구상담)'!F36+'12.분야별상담및접수(서울세종창구상담)'!F37+'10.온라인 상담'!F5 -> 0 | H6: ='12.분야별상담및접수(서울세종창구상담)'!G35+'12.분야별상담및접수(서울세종창구상담)'!G36+'12.분야별상담및접수(서울세종창구상담)'!G37+'10.온라인 상담'!G5 -> 0 | I6: ='12.분야별상담및접수(서울세종창구상담)'!H35+'12.분야별상담및접수(서울세종창구상담)'!H36+'12.분야별상담및접수(서울세종창구상담)'!H37+'10.온라인 상담'!H5 -> 0 | J6: ='12.분야별상담및접수(서울세종창구상담)'!I35+'12.분야별상담및접수(서울세종창구상담)'!I36+'12.분야별상담및접수(서울세종창구상담)'!I37+'10.온라인 상담'!I5 -> 0 | K6: ='12.분야별상담및접수(서울세종창구상담)'!J35+'12.분야별상담및접수(서울세종창구상담)'!J36+'12.분야별상담및접수(서울세종창구상담)'!J37+'10.온라인 상담'!J5 -> 0 | L6: ='12.분야별상담및접수(서울세종창구상담)'!K35+'12.분야별상담및접수(서울세종창구상담)'!K36+'12.분야별상담및접수(서울세종창구상담)'!K37+'10.온라인 상담'!K5 -> 0 | M6: ='12.분야별상담및접수(서울세종창구상담)'!L35+'12.분야별상담및접수(서울세종창구상담)'!L36+'12.분야별상담및접수(서울세종창구상담)'!L37+'10.온라인 상담'!L5 -> 0 | N6: ='12.분야별상담및접수(서울세종창구상담)'!M35+'12.분야별상담및접수(서울세종창구상담)'!M36+'12.분야별상담및접수(서울세종창구상담)'!M37+'10.온라인 상담'!M5 -> 0 | O6: ='12.분야별상담및접수(서울세종창구상담)'!N35+'12.분야별상담및접수(서울세종창구상담)'!N36+'12.분야별상담및접수(서울세종창구상담)'!N37+'10.온라인 상담'!N5 -> 0 | P6: 3962 | Q6: 1 | R6: 3962 | S6: 1 | T6: 0 | U6: 0 | V6: 0 | W6: 0 | X6: 0 | Y6: 0
A7: 소 계 (부패) | C7: =SUM(C8:C13) -> 2171 | D7: =SUM(D8:D13) -> 1220 | E7: 951 | F7: 0 | G7: 0 | H7: 0 | I7: 0 | J7: 0 | K7: 0 | L7: 0 | M7: 0 | N7: 0 | O7: 0 | P7: 2171 | Q7: 1 | R7: 2171 | S7: 1 | T7: 0 | U7: 0 | V7: 0 | W7: 0 | X7: 0 | Y7: 0
A8: 부패 | B8: 부패신고 | C8: 970 | D8: ='6.부패신고상담'!C5 -> 554 | E8: ='6.부패신고상담'!D5 -> 416 | F8: ='6.부패신고상담'!E5 -> 0 | G8: ='6.부패신고상담'!F5 -> 0 | H8: ='6.부패신고상담'!G5 -> 0 | I8: ='6.부패신고상담'!H5 -> 0 | J8: ='6.부패신고상담'!I5 -> 0 | K8: ='6.부패신고상담'!J5 -> 0 | L8: ='6.부패신고상담'!K5 -> 0 | M8: ='6.부패신고상담'!L5 -> 0 | N8: ='6.부패신고상담'!M5 -> 0 | O8: ='6.부패신고상담'!N5 -> 0 | P8: =R8+T8+V8+X8 -> 970 | Q8: =S8+U8+W8+Y8 -> 1 | R8: 970 | S8: 1 | T8: 0 | U8: 0 | V8: 0 | W8: 0 | X8: 0 | Y8: 0
B9: 행동강령신고 | C9: 44 | D9: ='6.부패신고상담'!C12 -> 26 | E9: ='6.부패신고상담'!D12 -> 18 | F9: ='6.부패신고상담'!E12 -> 0 | G9: ='6.부패신고상담'!F12 -> 0 | H9: ='6.부패신고상담'!G12 -> 0 | I9: ='6.부패신고상담'!H12 -> 0 | J9: ='6.부패신고상담'!I12 -> 0 | K9: ='6.부패신고상담'!J12 -> 0 | L9: ='6.부패신고상담'!K12 -> 0 | M9: ='6.부패신고상담'!L12 -> 0 | N9: ='6.부패신고상담'!M12 -> 0 | O9: ='6.부패신고상담'!N12 -> 0 | P9: 44 | Q9: =S9+U9+W9+Y9 -> 1 | R9: 44 | S9: 1 | T9: 0 | U9: 0 | V9: 0 | W9: 0 | X9: 0 | Y9: 0
B10: 공익침해신고 | C10: 622 | D10: ='6.부패신고상담'!C19 -> 353 | E10: ='6.부패신고상담'!D19 -> 269 | F10: ='6.부패신고상담'!E19 -> 0 | G10: ='6.부패신고상담'!F19 -> 0 | H10: ='6.부패신고상담'!G19 -> 0 | I10: ='6.부패신고상담'!H19 -> 0 | J10: ='6.부패신고상담'!I19 -> 0 | K10: ='6.부패신고상담'!J19 -> 0 | L10: ='6.부패신고상담'!K19 -> 0 | M10: ='6.부패신고상담'!L19 -> 0 | N10: ='6.부패신고상담'!M19 -> 0 | O10: ='6.부패신고상담'!N19 -> 0 | P10: 622 | Q10: 1 | R10: 622 | S10: 1 | T10: 0 | U10: 0 | V10: 0 | W10: 0 | X10: 0 | Y10: 0
B11: 부정청탁신고 | C11: 161 | D11: ='6.부패신고상담'!C26 -> 74 | E11: ='6.부패신고상담'!D26 -> 87 | F11: ='6.부패신고상담'!E26 -> 0 | G11: ='6.부패신고상담'!F26 -> 0 | H11: ='6.부패신고상담'!G26 -> 0 | I11: ='6.부패신고상담'!H26 -> 0 | J11: ='6.부패신고상담'!I26 -> 0 | K11: ='6.부패신고상담'!J26 -> 0 | L11: ='6.부패신고상담'!K26 -> 0 | M11: ='6.부패신고상담'!L26 -> 0 | N11: ='6.부패신고상담'!M26 -> 0 | O11: ='6.부패신고상담'!N26 -> 0 | P11: 161 | Q11: =S11+U11+W11+Y11 -> 1 | R11: =D11+E11+F11 -> 161 | S11: =R11/P11 -> 1 | T11: =G11+I11+H11 -> 0 | U11: =T11/P11 -> 0 | V11: =J11+K11+L11 -> 0 | W11: =V11/P11 -> 0 | X11: =M11+N11+O11 -> 0 | Y11: =X11/P11 -> 0
B12: 부정청구신고 | C12: 343 | D12: ='6.부패신고상담'!C33 -> 194 | E12: ='6.부패신고상담'!D33 -> 149 | F12: ='6.부패신고상담'!E33 -> 0 | G12: ='6.부패신고상담'!F33 -> 0 | H12: ='6.부패신고상담'!G33 -> 0 | I12: ='6.부패신고상담'!H33 -> 0 | J12: ='6.부패신고상담'!I33 -> 0 | K12: ='6.부패신고상담'!J33 -> 0 | L12: ='6.부패신고상담'!K33 -> 0 | M12: ='6.부패신고상담'!L33 -> 0 | N12: ='6.부패신고상담'!M33 -> 0 | O12: ='6.부패신고상담'!N33 -> 0 | P12: 343 | Q12: 1 | R12: 343 | S12: 1 | T12: 0 | U12: 0 | V12: 0 | W12: 0 | X12: 0 | Y12: 0
B13: 이해충돌방지신고 | C13: 31 | D13: ='6.부패신고상담'!C40 -> 19 | E13: ='6.부패신고상담'!D40 -> 12 | F13: ='6.부패신고상담'!E40 -> 0 | G13: ='6.부패신고상담'!F40 -> 0 | H13: ='6.부패신고상담'!G40 -> 0 | I13: ='6.부패신고상담'!H40 -> 0 | J13: ='6.부패신고상담'!I40 -> 0 | K13: ='6.부패신고상담'!J40 -> 0 | L13: ='6.부패신고상담'!K40 -> 0 | M13: ='6.부패신고상담'!L40 -> 0 | N13: ='6.부패신고상담'!M40 -> 0 | O13: ='6.부패신고상담'!N40 -> 0 | P13: =R13+T13+V13+X13 -> 31 | Q13: =S13+U13+W13+Y13 -> 1 | R13: =D13+E13+F13 -> 31 | S13: =R13/P13 -> 1 | T13: =G13+I13+H13 -> 0 | U13: =T13/P13 -> 0 | V13: =J13+K13+L13 -> 0 | W13: =V13/P13 -> 0 | X13: =M13+N13+O13 -> 0 | Y13: =X13/P13 -> 0
A14: 행정심판 | B14: 행정심판 | C14: 20 | D14: ='7.행정심판상담'!C6 -> 13 | E14: ='7.행정심판상담'!D6 -> 7 | F14: ='7.행정심판상담'!E6 -> 0 | G14: ='7.행정심판상담'!F6 -> 0 | H14: ='7.행정심판상담'!G6 -> 0 | I14: ='7.행정심판상담'!H6 -> 0 | J14: ='7.행정심판상담'!I6 -> 0 | K14: ='7.행정심판상담'!J6 -> 0 | L14: ='7.행정심판상담'!K6 -> 0 | M14: ='7.행정심판상담'!L6 -> 0 | N14: ='7.행정심판상담'!M6 -> 0 | O14: ='7.행정심판상담'!N6 -> 0 | P14: 20 | Q14: 1 | R14: 20 | S14: 1 | T14: 0 | U14: 0 | V14: 0 | W14: 0 | X14: 0 | Y14: 0
A15: 110 | B15: 국민콜110 | C15: =SUM(D15:O15) -> 363451 | D15: ='2.콜센터'!D4 -> 203210 | E15: ='2.콜센터'!E4 -> 160241 | F15: ='2.콜센터'!F4 -> 0 | G15: ='2.콜센터'!G4 -> 0 | H15: ='2.콜센터'!H4 -> 0 | I15: ='2.콜센터'!I4 -> 0 | J15: ='2.콜센터'!J4 -> 0 | K15: ='2.콜센터'!K4 -> 0 | L15: ='2.콜센터'!L4 -> 0 | M15: ='2.콜센터'!M4 -> 0 | N15: ='2.콜센터'!N4 -> 0 | O15: ='2.콜센터'!O4 -> 0 | P15: 363451 | Q15: 1 | R15: 363451 | S15: 1 | T15: 0 | U15: 0 | V15: 0 | W15: 0 | X15: 0 | Y15: 0
A16: 총 계 | C16: =SUM(D16:O16) -> 369922 | D16: =D4+D7+D14+D15 -> 207015 | E16: 162907 | F16: 0 | G16: 0 | H16: 0 | I16: 0 | J16: 0 | K16: 0 | L16: 0 | M16: 0 | N16: 0 | O16: 0 | P16: 369922 | Q16: 1 | R16: 369922 | S16: 1 | T16: 0 | U16: 0 | V16: 0 | W16: 0 | X16: 0 | Y16: 0
A18: 2. 접수 현황 | O18: (단위 : 건)
A19: 분야 | B19: 구분 | C19: 합계 | D19: 1월 | E19: 2월 | F19: 3월 | G19: 4월 | H19: 5월 | I19: 6월 | J19: 7월 | K19: 8월 | L19: 9월 | M19: 10월 | N19: 11월 | O19: 12월 | P19: 합계 | Q19: 비율 | R19: 1분기 | S19: 비율 | T19: 2분기 | U19: 비율 | V19: 3분기 | W19: 비율 | X19: 4분기 | Y19: 비율
A20: 소 계 (민원) | C20: =C21+C22 -> 820 | D20: =D21+D22 -> 519 | E20: 301 | F20: 0 | G20: 0 | H20: 0 | I20: 0 | J20: 0 | K20: 0 | L20: 0 | M20: 0 | N20: 0 | O20: 0 | P20: =R20+T20+V20+X20 -> 820 | Q20: 1 | R20: =D20+E20+F20 -> 820 | S20: =R20/P20 -> 1 | T20: =G20+I20+H20 -> 0 | U20: =T20/P20 -> 0 | V20: =J20+K20+L20 -> 0 | W20: =V20/P20 -> 0 | X20: =M20+N20+O20 -> 0 | Y20: =X20/P20 -> 0
A21: 민원 | B21: 고충민원 | C21: =SUM(D21:O21) -> 778 | D21: ='12.분야별상담및접수(서울세종창구상담)'!C46 -> 512 | E21: ='12.분야별상담및접수(서울세종창구상담)'!D46 -> 266 | F21: ='12.분야별상담및접수(서울세종창구상담)'!E46 -> 0 | G21: ='12.분야별상담및접수(서울세종창구상담)'!F46 -> 0 | H21: ='12.분야별상담및접수(서울세종창구상담)'!G46 -> 0 | I21: ='12.분야별상담및접수(서울세종창구상담)'!H46 -> 0 | J21: ='12.분야별상담및접수(서울세종창구상담)'!I46 -> 0 | K21: ='12.분야별상담및접수(서울세종창구상담)'!J46 -> 0 | L21: ='12.분야별상담및접수(서울세종창구상담)'!K46 -> 0 | M21: ='12.분야별상담및접수(서울세종창구상담)'!L46 -> 0 | N21: ='12.분야별상담및접수(서울세종창구상담)'!M46 -> 0 | O21: ='12.분야별상담및접수(서울세종창구상담)'!N46 -> 0 | P21: 778 | Q21: 1 | R21: 778 | S21: 1 | T21: 0 | U21: 0 | V21: 0 | W21: 0 | X21: 0 | Y21: 0
B22: 일반민원 | C22: 42 | D22: ='12.분야별상담및접수(서울세종창구상담)'!C45 -> 7 | E22: ='12.분야별상담및접수(서울세종창구상담)'!D45 -> 35 | F22: ='12.분야별상담및접수(서울세종창구상담)'!E45 -> 0 | G22: ='12.분야별상담및접수(서울세종창구상담)'!F45 -> 0 | H22: ='12.분야별상담및접수(서울세종창구상담)'!G45 -> 0 | I22: ='12.분야별상담및접수(서울세종창구상담)'!H45 -> 0 | J22: ='12.분야별상담및접수(서울세종창구상담)'!I45 -> 0 | K22: ='12.분야별상담및접수(서울세종창구상담)'!J45 -> 0 | L22: ='12.분야별상담및접수(서울세종창구상담)'!K45 -> 0 | M22: ='12.분야별상담및접수(서울세종창구상담)'!L45 -> 0 | N22: ='12.분야별상담및접수(서울세종창구상담)'!M45 -> 0 | O22: ='12.분야별상담및접수(서울세종창구상담)'!N45 -> 0 | P22: 42 | Q22: 1 | R22: 42 | S22: 1 | T22: 0 | U22: 0 | V22: 0 | W22: 0 | X22: 0 | Y22: 0
A23: 부패 | B23: 부패신고 | C23: 36 | D23: ='8.접수'!C11 -> 19 | E23: ='8.접수'!D11 -> 17 | F23: ='8.접수'!E11 -> 0 | G23: ='8.접수'!F11 -> 0 | H23: ='8.접수'!G11 -> 0 | I23: ='8.접수'!H11 -> 0 | J23: ='8.접수'!I11 -> 0 | K23: ='8.접수'!J11 -> 0 | L23: ='8.접수'!K11 -> 0 | M23: ='8.접수'!L11 -> 0 | N23: ='8.접수'!M11 -> 0 | O23: ='8.접수'!N11 -> 0 | P23: 36 | Q23: 1 | R23: 36 | S23: 1 | T23: 0 | U23: 0 | V23: 0 | W23: 0 | X23: 0 | Y23: 0
A24: 행정심판 | B24: 행정심판 | C24: 35 | D24: ='8.접수'!C17 -> 19 | E24: ='8.접수'!D17 -> 16 | F24: ='8.접수'!E17 -> 0 | G24: ='8.접수'!F17 -> 0 | H24: ='8.접수'!G17 -> 0 | I24: ='8.접수'!H17 -> 0 | J24: ='8.접수'!I17 -> 0 | K24: ='8.접수'!J17 -> 0 | L24: ='8.접수'!K17 -> 0 | M24: ='8.접수'!L17 -> 0 | N24: ='8.접수'!M17 -> 0 | O24: ='8.접수'!N17 -> 0 | P24: 35 | Q24: 1 | R24: 35 | S24: 1 | T24: 0 | U24: 0 | V24: 0 | W24: 0 | X24: 0 | Y24: 0
A25: 대비실 | B25: 대통령실민원 | C25: 4006 | D25: ='8.접수'!C21 -> 2224 | E25: ='8.접수'!D21 -> 1782 | F25: ='8.접수'!E21 -> 0 | G25: ='8.접수'!F21 -> 0 | H25: ='8.접수'!G21 -> 0 | I25: ='8.접수'!H21 -> 0 | J25: ='8.접수'!I21 -> 0 | K25: ='8.접수'!J21 -> 0 | L25: ='8.접수'!K21 -> 0 | M25: ='8.접수'!L21 -> 0 | N25: ='8.접수'!M21 -> 0 | O25: ='8.접수'!N21 -> 0 | P25: 4006 | Q25: 1 | R25: 4006 | S25: 1 | T25: 0 | U25: 0 | V25: 0 | W25: 0 | X25: 0 | Y25: 0
A26: 총 계 | C26: 4897 | D26: =D20+D23+D24+D25 -> 2781 | E26: =E20+E23+E24+E25 -> 2116 | F26: 0 | G26: 0 | H26: 0 | I26: 0 | J26: 0 | K26: 0 | L26: 0 | M26: 0 | N26: 0 | O26: 0 | P26: 4897 | Q26: 1 | R26: 4897 | S26: 1 | T26: 0 | U26: 0 | V26: 0 | W26: 0 | X26: 0 | Y26: 0
A28: 3. 처리 현황 | O28: (단위 : 건)
A29: 분야 | B29: 구분 | C29: 합계 | D29: 1월 | E29: 2월 | F29: 3월 | G29: 4월 | H29: 5월 | I29: 6월 | J29: 7월 | K29: 8월 | L29: 9월 | M29: 10월 | N29: 11월 | O29: 12월 | P29: 합계 | Q29: 비율 | R29: 1분기 | S29: 비율 | T29: 2분기 | U29: 비율 | V29: 3분기 | W29: 비율 | X29: 4분기 | Y29: 비율
A30: 고충 | B30: 민형사 | C30: =SUM(D30:O30) -> 1678 | D30: ='9.처리(민형사)'!D6 -> 458 | E30: ='9.처리(민형사)'!E6 -> 415 | F30: ='9.처리(민형사)'!F6 -> 805 | G30: ='9.처리(민형사)'!G6 -> 0 | H30: ='9.처리(민형사)'!H6 -> 0 | I30: ='9.처리(민형사)'!I6 -> 0 | J30: ='9.처리(민형사)'!J6 -> 0 | K30: ='9.처리(민형사)'!K6 -> 0 | L30: ='9.처리(민형사)'!L6 -> 0 | M30: ='9.처리(민형사)'!M6 -> 0 | N30: ='9.처리(민형사)'!N6 -> 0 | O30: ='9.처리(민형사)'!O6 -> 0 | P30: =C30 -> 1678 | Q30: =P30/C30 -> 1 | R30: =SUM(D30:F30) -> 1678 | S30: =R30/P30 -> 1 | T30: =SUM(G30:I30) -> 0 | U30: =T30/P30 -> 0 | V30: =SUM(J30:L30) -> 0 | W30: =V30/P30 -> 0 | X30: =SUM(M30:O30) -> 0 | Y30: =X30/P30 -> 0
A32: 4. 온라인 민원상담 현황 | O32: (단위 : 건)
A33: 분야 | B33: 구분 | C33: 합계 | D33: 1월 | E33: 2월 | F33: 3월 | G33: 4월 | H33: 5월 | I33: 6월 | J33: 7월 | K33: 8월 | L33: 9월 | M33: 10월 | N33: 11월 | O33: 12월 | P33: 합계 | Q33: 비율 | R33: 1분기 | S33: 비율 | T33: 2분기 | U33: 비율 | V33: 3분기 | W33: 비율 | X33: 4분기 | Y33: 비율
B34: * 상담 | C34: =SUM(D34:O34) -> 3719 | D34: ='10.온라인 상담'!C7 -> 2257 | E34: ='10.온라인 상담'!D7 -> 1462 | F34: ='10.온라인 상담'!E7 -> 0 | G34: ='10.온라인 상담'!F7 -> 0 | H34: ='10.온라인 상담'!G7 -> 0 | I34: ='10.온라인 상담'!H7 -> 0 | J34: ='10.온라인 상담'!I7 -> 0 | K34: ='10.온라인 상담'!J7 -> 0 | L34: ='10.온라인 상담'!K7 -> 0 | M34: ='10.온라인 상담'!L7 -> 0 | N34: ='10.온라인 상담'!M7 -> 0 | O34: ='10.온라인 상담'!N7 -> 0 | P34: =R34+T34+V34+X34 -> 3719 | Q34: 1 | R34: =D34+E34+F34 -> 3719 | S34: =R34/P34 -> 1 | T34: =G34+H34+I34 -> 0 | U34: =T34/P34 -> 0 | V34: =J34+K34+L34 -> 0 | W34: =V34/P34 -> 0 | X34: =M34+N34+O34 -> 0 | Y34: =X34/P34 -> 0
B35: 민원전환 | C35: =SUM(D35:O35) ->  | D35: ='10.온라인 상담'!C12+'10.온라인 상담'!C16 ->  | E35: ='10.온라인 상담'!D12+'10.온라인 상담'!D16 -> 0 | F35: ='10.온라인 상담'!E12+'10.온라인 상담'!E16 -> 0 | G35: ='10.온라인 상담'!F12+'10.온라인 상담'!F16 -> 0 | H35: ='10.온라인 상담'!G12+'10.온라인 상담'!G16 -> 0 | I35: ='10.온라인 상담'!H12+'10.온라인 상담'!H16 -> 0 | J35: ='10.온라인 상담'!I12+'10.온라인 상담'!I16 -> 0 | K35: ='10.온라인 상담'!J12+'10.온라인 상담'!J16 -> 0 | L35: ='10.온라인 상담'!K12+'10.온라인 상담'!K16 -> 0 | M35: ='10.온라인 상담'!L12+'10.온라인 상담'!L16 -> 0 | N35: ='10.온라인 상담'!M12+'10.온라인 상담'!M16 -> 0 | O35: ='10.온라인 상담'!N12+'10.온라인 상담'!N16 -> 0 | R35: =D35+E35+F35 ->  | S35: =R35/P35 ->  | T35: =G35+H35+I35 -> 0 | U35: =T35/P35 ->  | V35: =J35+K35+L35 -> 0 | W35: =V35/P35 ->  | X35: =M35+N35+O35 -> 0 | Y35: =X35/P35 -> 
A36: * 온라인상담 처리 합계(처리일기준으로 전체건임 : 기관안내, 취하, 상담해결, 민원처리(전환) 등)

Sheet 2.콜센터
A1: 2. 콜센터 민원상담 건수
A2: ○ 인입콜 | O2: (단위 : 건) | Q2: * 분기별
A3: 년도 | C3: 계 | D3: 1월 | E3: 2월 | F3: 3월 | G3: 4월 | H3: 5월 | I3: 6월 | J3: 7월 | K3: 8월 | L3: 9월 | M3: 10월 | N3: 11월 | O3: 12월 | Q3: 년도 | S3: 계 | T3: 1분기 | U3: 2분기 | V3: 3분기 | W3: 4분기
A4: 2026년 | C4: =SUM(D4:O4) -> 363451 | D4: =D5+D7 -> 203210 | E4: =E5+E7 -> 160241 | H4: =H5+H7 -> 0 | I4: =I5+I7 -> 0 | J4: 0 | K4: 0 | L4: 0 | M4: 0 | N4: 0 | O4: 0 | Q4: 2026년 | S4: =SUM(T4:W4) -> 363451 | T4: =SUM(D4:F4) -> 363451 | U4: =SUM(G4:I4) -> 0 | V4: =SUM(J4:L4) -> 0 | W4: =SUM(M4:O4) -> 0
A5: 전화 | C5: =SUM(D5:O5) -> 351043 | D5: 196379 | E5: 154664 | Q5: 전화 | S5: =SUM(T5:W5) -> 351043 | T5: =SUM(D5:F5) -> 351043 | U5: =SUM(G5:I5) -> 0 | V5: =SUM(J5:L5) -> 0 | W5: =SUM(M5:O5) -> 0
A6: 전화 비율 | B6: (%) | C6: =C5/C4 -> 0.9658605974 | D6: =D5/D4 -> 0.9663845283 | E6: =E5/E4 -> 0.9651961733 | F6: =F5/F4 ->  | Q6: 전화 비율 | R6: (%) | S6: =S5/S4 -> 0.9658605974 | T6: =T5/T4 -> 0.9658605974 | U6: =U5/U4 ->  | V6: =V5/V4 ->  | W6: =W5/W4 -> 
A7: 온라인 | C7: =SUM(D7:O7) -> 12408 | D7: 6831 | E7: 5577 | Q7: 온라인 | S7: =SUM(T7:W7) -> 12408 | T7: =SUM(D7:F7) -> 12408 | U7: =SUM(G7:I7) -> 0 | V7: =SUM(J7:L7) -> 0 | W7: =SUM(M7:O7) -> 0
A8: 온라인 비율 | B8: (%) | C8: =C7/C4 -> 0.03413940256 | D8: =D7/D4 -> 0.03361547168 | E8: =E7/E4 -> 0.03480382674 | F8: =F7/F4 ->  | Q8: 온라인 비율 | R8: (%) | S8: =S7/S4 -> 0.03413940256 | T8: =T7/T4 -> 0.03413940256 | U8: =U7/U4 ->  | V8: =V7/V4 ->  | W8: =W7/W4 -> 
A9: 전년대비 증감률 | C9: =(C4-C11)/C11 -> -0.845880337 | D9: =(D4-D11)/D11 -> 0.06523174989 | E9: =(E4-E11)/E11 -> -0.1145242753 | F9: =(F4-F11)/F11 -> -1 | G9: -1 | H9: -1 | I9: -1 | J9: =(J4-J11)/J11 -> -1 | K9: =(K4-K11)/K11 -> -1 | L9: -1 | M9: -1 | N9: =(N4-N11)/N11 -> -1 | O9: -1 | Q9: 전년대비 증감률 | S9: =(S4-S11)/S11 -> -0.845880337 | T9: =(T4-T11)/T11 -> -0.348002124 | U9: =(U4-U11)/U11 -> -1 | V9: =(V4-V11)/V11 -> -1 | W9: =(W4-W11)/W11 -> -1
A11: 2025년 | C11: 2358239 | D11: 190766 | E11: 180966 | F11: 185710 | G11: 183276 | H11: 188300 | I11: 180550 | J11: 283803 | K11: 206488 | L11: 237730 | M11: 169096 | N11: 164785 | O11: 186769 | Q11: 2025년 | S11: 2358239 | T11: 557442 | U11: 552126 | V11: 728021 | W11: 520650
A12: 전화 | C12: 2272865 | D12: 184229 | E12: 174850 | F12: 179025 | G12: 176464 | H12: 180831 | I12: 173417 | J12: 274083 | K12: 199258 | L12: 229814 | M12: 162421 | N12: 158472 | O12: 180001 | Q12: 전화 | S12: 2272865 | T12: 538104 | U12: 530712 | V12: 703155 | W12: 500894
A13: 전화 비율 | B13: (%) | C13: 0.9637975625 | D13: 0.9657328874 | E13: 0.9662035963 | F13: 0.9640030155 | G13: 0.9628320129 | H13: 0.9603345725 | I13: 0.9604929382 | J13: 0.9657508906 | K13: 0.9649858587 | L13: 0.9667017204 | M13: 0.960525382 | N13: 0.9616894742 | O13: 0.9637627229 | Q13: 전화 비율 | R13: (%) | S13: 0.9637975625 | T13: 0.9653093954 | U13: 0.9612153748 | V13: 0.9658443919 | W13: 0.9620551234
A14: 온라인 | C14: 85374 | D14: 6537 | E14: 6116 | F14: 6685 | G14: 6812 | H14: 7469 | I14: 7133 | J14: 9720 | K14: 7230 | L14: 7916 | M14: 6675 | N14: 6313 | O14: 6768 | Q14: 온라인 | S14: 85374 | T14: 19338 | U14: 21414 | V14: 24866 | W14: 19756
A15: 온라인 비율 | B15: (%) | C15: 0.0362024375 | D15: 0.03426711259 | E15: 0.03379640374 | F15: 0.03599698455 | G15: 0.03716798708 | H15: 0.03966542751 | I15: 0.03950706176 | J15: 0.03424910942 | K15: 0.03501414126 | L15: 0.03329827956 | M15: 0.03947461797 | N15: 0.03831052584 | O15: 0.03623727706 | Q15: 온라인 비율 | R15: (%) | S15: 0.0362024375 | T15: 0.03469060458 | U15: 0.03878462525 | V15: 0.03415560815 | W15: 0.0379448766
A17: ○ 처리콜
A18: 년도 | C18: 계 | D18: 1월 | E18: 2월 | F18: 3월 | G18: 4월 | H18: 5월 | I18: 6월 | J18: 7월 | K18: 8월 | L18: 9월 | M18: 10월 | N18: 11월 | O18: 12월 | Q18: 년도 | S18: 계 | T18: 1분기 | U18: 2분기 | V18: 3분기 | W18: 4분기
A19: 2026년 | C19: =SUM(D19:O19) -> 344633 | D19: =D20+D22 -> 192362 | E19: =E20+E22 -> 152271 | H19: =H20+H22 -> 0 | I19: =I20+I22 -> 0 | J19: 0 | K19: 0 | L19: 0 | M19: 0 | N19: 0 | O19: 0 | Q19: 2026년 | S19: =SUM(T19:W19) -> 344633 | T19: =SUM(D19:F19) -> 344633 | U19: =SUM(G19:I19) -> 0 | V19: =SUM(J19:L19) -> 0 | W19: =SUM(M19:O19) -> 0
A20: 전화 | C20: =SUM(D20:O20) -> 332617 | D20: 185755 | E20: 146862 | Q20: 전화 | S20: =SUM(T20:W20) -> 332617 | T20: =SUM(D20:F20) -> 332617 | U20: =SUM(G20:I20) -> 0 | V20: =SUM(J20:L20) -> 0 | W20: =SUM(M20:O20) -> 0
A21: 전화 비율 | B21: (%) | C21: =C20/C19 -> 0.9651339251 | D21: =D20/D19 -> 0.9656532995 | E21: =E20/E19 -> 0.964477806 | Q21: 전화 비율 | R21: (%) | S21: =S20/S19 -> 0.9651339251 | T21: =T20/T19 -> 0.9651339251 | U21: =U20/U19 ->  | V21: =V20/V19 ->  | W21: =W20/W19 -> 
A22: 온라인 | C22: =SUM(D22:O22) -> 12016 | D22: 6607 | E22: 5409 | Q22: 온라인 | S22: =SUM(T22:W22) -> 12016 | T22: =SUM(D22:F22) -> 12016 | U22: =SUM(G22:I22) -> 0 | V22: =SUM(J22:L22) -> 0 | W22: =SUM(M22:O22) -> 0
A23: 온라인 비율 | B23: (%) | C23: =C22/C19 -> 0.03486607493 | D23: 0.03434670049 | E23: 0.03552219398 | Q23: 온라인 비율 | R23: (%) | S23: =S22/S19 -> 0.03486607493 | T23: =T22/T19 -> 0.03486607493 | U23: =U22/U19 ->  | V23: =V22/V19 ->  | W23: =W22/W19 -> 
A24: ※ 온라인 : AP 접수채널 (화상상담, 수화상담, 채팅상담, 문자상담, SNS상담_트위터(멘션응대,RT응대,DM응대),페이스북, 카카오톡)
A26: ※ 온라인 처리건에 문자상담 포함 수치로 변경
A28: ○ 응대콜
A29: 년도 | C29: 계 | D29: 1월 | E29: 2월 | F29: 3월 | G29: 4월 | H29: 5월 | I29: 6월 | J29: 7월 | K29: 8월 | L29: 9월 | M29: 10월 | N29: 11월 | O29: 12월 | Q29: 년도 | S29: 계 | T29: 1분기 | U29: 2분기 | V29: 3분기 | W29: 4분기
A30: 2026년 | C30: =SUM(D30:O30) -> 344023 | D30: =D31+D33 -> 192005 | E30: =E31+E33 -> 152018 | F30: 0 | G30: 0 | H30: =H31+H33 -> 0 | I30: =I31+I33 -> 0 | J30: 0 | K30: 0 | L30: 0 | M30: 0 | N30: 0 | O30: 0 | Q30: 2026년 | S30: =SUM(T30:W30) -> 344023 | T30: =SUM(D30:F30) -> 344023 | U30: =SUM(G30:I30) -> 0 | V30: =SUM(J30:L30) -> 0 | W30: =SUM(M30:O30) -> 0
A31: 전화 | C31: =SUM(D31:O31) -> 332012 | D31: 185412 | E31: 146600 | Q31: 전화 | S31: =SUM(T31:W31) -> 332012 | T31: =SUM(D31:F31) -> 332012 | U31: =SUM(G31:I31) -> 0 | V31: =SUM(J31:L31) -> 0 | W31: =SUM(M31:O31) -> 0
A32: 전화 비율 | B32: (%) | C32: =C31/C30 -> 0.9650866366 | D32: 0.9656623525 | E32: 0.9643594837 | Q32: 전화 비율 | R32: (%) | S32: =S31/S30 -> 0.9650866366 | T32: =T31/T30 -> 0.9650866366 | U32: =U31/U30 ->  | V32: =V31/V30 ->  | W32: =W31/W30 -> 
A33: 온라인 | C33: =SUM(D33:O33) -> 12011 | D33: 6593 | E33: 5418 | Q33: 온라인 | S33: =SUM(T33:W33) -> 12011 | T33: =SUM(D33:F33) -> 12011 | U33: =SUM(G33:I33) -> 0 | V33: =SUM(J33:L33) -> 0 | W33: =SUM(M33:O33) -> 0
A34: 온라인 비율 | B34: (%) | C34: =C33/C30 -> 0.03491336335 | D34: 0.03433764746 | E34: 0.03564051625 | Q34: 온라인 비율 | R34: (%) | S34: =S33/S30 -> 0.03491336335 | T34: =T33/T30 -> 0.03491336335 | U34: =U33/U30 ->  | V34: =V33/V30 ->  | W34: =W33/W30 -> 
A36: ○ 응대율 | Q36: 콜센터 과거실적
A37: 년도 | C37: 계 | D37: 1월 | E37: 2월 | F37: 3월 | G37: 4월 | H37: 5월 | I37: 6월 | J37: 7월 | K37: 8월 | L37: 9월 | M37: 10월 | N37: 11월 | O37: 12월 | Q37: 기간 | R37: 인입콜 | S37: 응대콜 | T37: 응대율 | U37: 서비스레벨 | V37: 1일평균인입콜 | W37: 이용만족도
A38: 2026년 | C38: =C30/C4 -> 0.9465457517 | D38: =D30/D4 -> 0.944859997 | E38: =E30/E4 -> 0.9486835454 | Q38: 2008년 | R38: 1523754 | S38: 1325545 | T38: =S38/R38 -> 0.869920604 | U38: 0.956 | V38: 5824
Q39: 2009년 | R39: 1659275 | S39: 1442903 | T39: =S39/R39 -> 0.8695984692 | U39: 0.912 | V39: 6251
A40: ○ 서비스레벨 | Q40: 2010년 | R40: 1962545 | S40: 1591038 | T40: 0.8107014107 | U40: 0.796 | V40: 7592
A41: 년도 | C41: 계 | D41: 1월 | E41: 2월 | F41: 3월 | G41: 4월 | H41: 5월 | I41: 6월 | J41: 7월 | K41: 8월 | L41: 9월 | M41: 10월 | N41: 11월 | O41: 12월 | Q41: 2011년 | R41: 2187883 | S41: 1985676 | T41: 0.9075786959 | U41: 0.845 | V41: 8594 | W41: 88.0점
A42: 2026년 | C42: 0.854 | D42: 0.854 | E42: 0.857 | Q42: 2012년 | R42: 2138659 | S42: 1973672 | T42: 0.9228549292 | U42: 0.833 | V42: 8416 | W42: 90.3점
Q43: 2013년 | R43: 2133326 | S43: 1932281 | T43: 0.9057598323 | U43: 0.806 | V43: 8446 | W43: 91.4점
A44: ○ 1일평균 인입콜 | Q44: 2014년 | R44: 2319637 | S44: 2112077 | T44: 0.9105204823 | U44: 0.845 | V44: 9251 | W44: 91.7점
A45: 년도 | C45: 계 | D45: 1월 | E45: 2월 | F45: 3월 | G45: 4월 | H45: 5월 | I45: 6월 | J45: 7월 | K45: 8월 | L45: 9월 | M45: 10월 | N45: 11월 | O45: 12월 | Q45: 2015년 | R45: 2529584 | S45: 2297485 | T45: 0.908246178 | U45: 0.875 | V45: 9967 | W45: 91.2점
A46: 2026년 | C46: 8966 | D46: 8966 | E46: 8463 | Q46: 2016년 | R46: 2667572 | S46: 2571024 | T46: 0.9638067876 | U46: 0.874 | V46: 10306 | W46: 91.3점
Q47: 2017년 | R47: 2931598 | S47: 2817404 | T47: 0.9610471831 | U47: 0.877 | V47: 10868 | W47: 91.5점
A48: ○ 1일평균 처리콜 | Q48: 2018년 | R48: 3254756 | S48: 3097860 | T48: 0.9517948504 | U48: 0.868 | V48: 11982 | W48: 86.0점
A49: 년도 | C49: 계 | D49: 1월 | E49: 2월 | F49: 3월 | G49: 4월 | H49: 5월 | I49: 6월 | J49: 7월 | K49: 8월 | L49: 9월 | M49: 10월 | N49: 11월 | O49: 12월 | Q49: 2019년 | R49: 3139917 | S49: 2928671 | T49: 0.9327224255 | U49: 0.845 | V49: 11569 | W49: 87.5점
A50: 2026년 | C50: 8489 | D50: 8489 | E50: 8046 | Q50: 2020년 | R50: 3801491 | S50: 3280256 | T50: 0.8628866937 | U50: 0.71 | V50: 14039 | W50: 88.2점
Q51: 2021년 | R51: 3097391 | S51: 2851423 | T51: 0.9205886503 | U51: 0.809 | V51: 11346 | W51: 90.1점
Q52: 2022년 | R52: 2665492 | S52: 2482789 | T52: 0.9314561814 | U52: 0.844 | V52: 10132 | W52: 90.3점
Q53: 2023년 | R53: 2552476 | S53: 2393661 | T53: 0.9377800222 | U53: 0.845 | V53: 9428 | W53: 90.7점
Q54: 2024년 | R54: 2439681 | S54: 2156801 | T54: 0.884 | U54: 0.775 | V54: 9178 | W54: 90.8점
Q55: 2025년 | R55: 2358239 | S55: 2198935 | T55: 0.9324478986 | U55: 0.8279093147 | V55: 8870.164609 | W55: 90.9점
Q56: 2026년

Sheet 3.민원실창구상담
A1: 3. 민원실 창구상담
B2: 구분 | C2: 합계 | D2: 1월 | E2: 2월 | F2: 3월 | G2: 4월 | H2: 5월 | I2: 6월 | J2: 7월 | K2: 8월 | L2: 9월 | M2: 10월 | N2: 11월 | O2: 12월 | P2: 합계 | Q2: 1분기 | R2: 비율 | S2: 2분기 | T2: 비율 | U2: 3분기 | V2: 비율 | W2: 4분기 | X2: 비율
A3: 합계 | B3: 조사관 | C3: =SUM(D3:O3) -> 232 | D3: =D7+D11 -> 127 | E3: 105 | F3: 0 | G3: 0 | H3: 0 | I3: 0 | J3: 0 | K3: 0 | L3: 0 | M3: 0 | N3: =N7+N11 -> 0 | O3: =O7+O11 -> 0 | P3: =C3 -> 232 | Q3: =SUM(D3:F3) -> 232 | R3: =Q3/P3 -> 1 | S3: =SUM(G3:I3) -> 0 | T3: =S3/P3 -> 0 | U3: =SUM(J3:L3) -> 0 | V3: =U3/P3 -> 0 | W3: =SUM(M3:O3) -> 0 | X3: =W3/P3 -> 0
B4: 전문위원 | C4: 134 | D4: =D8+D12 -> 72 | E4: 62 | F4: 0 | G4: 0 | H4: 0 | I4: 0 | J4: 0 | K4: 0 | L4: 0 | M4: 0 | N4: 0 | O4: 0 | P4: 134 | Q4: 134 | R4: 1 | S4: 0 | T4: 0 | U4: 0 | V4: 0 | W4: 0 | X4: 0
B5: 민원위원 | C5: 195 | D5: =D9+D13 -> 116 | E5: 79 | F5: 0 | G5: 0 | H5: 0 | I5: 0 | J5: 0 | K5: 0 | L5: 0 | M5: 0 | N5: 0 | O5: 0 | P5: 195 | Q5: 195 | R5: 1 | S5: 0 | T5: 0 | U5: 0 | V5: 0 | W5: 0 | X5: 0
B6: 총 계 | C6: 561 | D6: =SUM(D3:D5) -> 315 | E6: 246 | F6: 0 | G6: 0 | H6: 0 | I6: 0 | J6: 0 | K6: 0 | L6: 0 | M6: 0 | N6: 0 | O6: 0 | P6: 561 | Q6: 561 | R6: 1 | S6: 0 | T6: 0 | U6: 0 | V6: 0 | W6: 0 | X6: 0
A7: 서울 (민원실) (고충+일반) | B7: 조사관 | C7: 18 | D7: ='4.조사관상담'!D30 -> 11 | E7: ='4.조사관상담'!E30 -> 7 | F7: ='4.조사관상담'!F30 -> 0 | G7: ='4.조사관상담'!G30 -> 0 | H7: ='4.조사관상담'!H30 -> 0 | I7: ='4.조사관상담'!I30 -> 0 | J7: ='4.조사관상담'!J30 -> 0 | K7: ='4.조사관상담'!K30 -> 0 | L7: ='4.조사관상담'!L30 -> 0 | M7: ='4.조사관상담'!M30 -> 0 | N7: ='4.조사관상담'!N30 -> 0 | O7: ='4.조사관상담'!O30 -> 0 | P7: 18 | Q7: 18 | R7: 1 | S7: 0 | T7: 0 | U7: 0 | V7: 0 | W7: 0 | X7: 0
B8: 전문위원 | C8: 123 | D8: ='5.전문,민원위원상담'!C5 -> 68 | E8: ='5.전문,민원위원상담'!D5 -> 55 | F8: ='5.전문,민원위원상담'!E5 -> 0 | G8: ='5.전문,민원위원상담'!F5 -> 0 | H8: ='5.전문,민원위원상담'!G5 -> 0 | I8: ='5.전문,민원위원상담'!H5 -> 0 | J8: ='5.전문,민원위원상담'!I5 -> 0 | K8: ='5.전문,민원위원상담'!J5 -> 0 | L8: ='5.전문,민원위원상담'!K5 -> 0 | M8: ='5.전문,민원위원상담'!L5 -> 0 | N8: ='5.전문,민원위원상담'!M5 -> 0 | O8: ='5.전문,민원위원상담'!N5 -> 0 | P8: 123 | Q8: 123 | R8: 1 | S8: 0 | T8: 0 | U8: 0 | V8: 0 | W8: 0 | X8: 0
B9: 민원위원 | C9: 139 | D9: ='5.전문,민원위원상담'!C11 -> 90 | E9: ='5.전문,민원위원상담'!D11 -> 49 | F9: ='5.전문,민원위원상담'!E11 -> 0 | G9: ='5.전문,민원위원상담'!F11 -> 0 | H9: ='5.전문,민원위원상담'!G11 -> 0 | I9: ='5.전문,민원위원상담'!H11 -> 0 | J9: ='5.전문,민원위원상담'!I11 -> 0 | K9: ='5.전문,민원위원상담'!J11 -> 0 | L9: ='5.전문,민원위원상담'!K11 -> 0 | M9: ='5.전문,민원위원상담'!L11 -> 0 | N9: ='5.전문,민원위원상담'!M11 -> 0 | O9: ='5.전문,민원위원상담'!N11 -> 0 | P9: 139 | Q9: 139 | R9: 1 | S9: 0 | T9: 0 | U9: 0 | V9: 0 | W9: 0 | X9: 0
B10: 소 계 | C10: 280 | D10: =SUM(D7:D9) -> 169 | E10: 111 | F10: 0 | G10: 0 | H10: 0 | I10: 0 | J10: 0 | K10: 0 | L10: 0 | M10: 0 | N10: 0 | O10: 0 | P10: 280 | Q10: 280 | R10: 1 | S10: 0 | T10: 0 | U10: 0 | V10: 0 | W10: 0 | X10: 0
A11: 세종 (고충+일반) | B11: 조사관 | C11: 214 | D11: ='4.조사관상담'!D60 -> 116 | E11: ='4.조사관상담'!E60 -> 98 | F11: ='4.조사관상담'!F60 -> 0 | G11: ='4.조사관상담'!G60 -> 0 | H11: ='4.조사관상담'!H60 -> 0 | I11: ='4.조사관상담'!I60 -> 0 | J11: ='4.조사관상담'!J60 -> 0 | K11: ='4.조사관상담'!K60 -> 0 | L11: ='4.조사관상담'!L60 -> 0 | M11: ='4.조사관상담'!M60 -> 0 | N11: ='4.조사관상담'!N60 -> 0 | O11: ='4.조사관상담'!O60 -> 0 | P11: 214 | Q11: 214 | R11: 1 | S11: 0 | T11: 0 | U11: 0 | V11: 0 | W11: 0 | X11: 0
B12: 전문위원 | C12: 11 | D12: ='5.전문,민원위원상담'!C15 -> 4 | E12: ='5.전문,민원위원상담'!D15 -> 7 | F12: ='5.전문,민원위원상담'!E15 -> 0 | G12: ='5.전문,민원위원상담'!F15 -> 0 | H12: ='5.전문,민원위원상담'!G15 -> 0 | I12: ='5.전문,민원위원상담'!H15 -> 0 | J12: ='5.전문,민원위원상담'!I15 -> 0 | K12: ='5.전문,민원위원상담'!J15 -> 0 | L12: ='5.전문,민원위원상담'!K15 -> 0 | M12: ='5.전문,민원위원상담'!L15 -> 0 | N12: ='5.전문,민원위원상담'!M15 -> 0 | O12: ='5.전문,민원위원상담'!N15 -> 0 | P12: 11 | Q12: 11 | R12: 1 | S12: 0 | T12: 0 | U12: 0 | V12: 0 | W12: 0 | X12: 0
B13: 민원위원 | C13: 56 | D13: ='5.전문,민원위원상담'!C21 -> 26 | E13: ='5.전문,민원위원상담'!D21 -> 30 | F13: ='5.전문,민원위원상담'!E21 -> 0 | G13: ='5.전문,민원위원상담'!F21 -> 0 | H13: ='5.전문,민원위원상담'!G21 -> 0 | I13: ='5.전문,민원위원상담'!H21 -> 0 | J13: ='5.전문,민원위원상담'!I21 -> 0 | K13: ='5.전문,민원위원상담'!J21 -> 0 | L13: ='5.전문,민원위원상담'!K21 -> 0 | M13: ='5.전문,민원위원상담'!L21 -> 0 | N13: ='5.전문,민원위원상담'!M21 -> 0 | O13: ='5.전문,민원위원상담'!N21 -> 0 | P13: 56 | Q13: 56 | R13: 1 | S13: =SUM(F13:I13) -> 0 | T13: 0 | U13: 0 | V13: 0 | W13: 0 | X13: 0
B14: 소 계 | C14: 281 | D14: =SUM(D11:D13) -> 146 | E14: 135 | F14: 0 | G14: 0 | H14: 0 | I14: 0 | J14: 0 | K14: 0 | L14: 0 | M14: 0 | N14: 0 | O14: 0 | P14: 281 | Q14: 281 | R14: 1 | S14: =SUM(G14:I14) -> 0 | T14: 0 | U14: 0 | V14: 0 | W14: 0 | X14: 0
C16: 합계 | D16: 1월 | E16: 2월 | F16: 3월 | G16: 4월 | H16: 5월 | I16: 6월 | J16: 7월 | K16: 8월 | L16: 9월 | M16: 10월 | N16: 11월 | O16: 12월 | P16: 합계 | Q16: 1분기 | R16: 비율 | S16: 2분기 | T16: 비율 | U16: 3분기 | V16: 비율 | W16: 4분기 | X16: 비율
A17: 서울 (고충+일반) | B17: 건축 | C17: =SUM(D17:N17) -> 0 | P17: =C17 -> 0 | Q17: =SUM(D17:F17) -> 0 | R17: =Q17/P17 ->  | S17: =SUM(G17:I17) -> 0 | T17: =S17/P17 ->  | U17: =SUM(J17:L17) -> 0 | V17: =U17/P17 ->  | W17: =SUM(M17:N17) -> 0 | X17: =W17/P17 -> 
B18: 경찰 | C18: 5 | D18: 1 | E18: 4 | P18: 5 | Q18: 5 | R18: 1 | S18: 0 | T18: 0 | U18: 0 | V18: 0 | W18: 0 | X18: 0
B19: 고용노동 | C19: 6 | D19: 4 | E19: 2 | P19: 6 | Q19: 6 | R19: 1 | S19: 0 | T19: 0 | U19: 0 | V19: 0 | W19: 0 | X19: 0
B20: 교육 | C20: 1 | E20: 1 | P20: 1 | Q20: 1 | R20: 1 | S20: 0 | T20: 0 | U20: 0 | V20: 0 | W20: 0 | X20: 0
B21: 교통 | C21: 1 | D21: 1 | P21: 1 | Q21: 1 | R21: 1 | S21: 0 | T21: 0 | U21: 0 | V21: 0 | W21: 0 | X21: 0
B22: 국방 | C22: 0 | P22: 0 | Q22: 0 | S22: 0 | U22: 0 | W22: 0
B23: 군사 | C23: 0 | P23: 0 | Q23: 0 | R23: =Q23/P23 ->  | S23: =SUM(G23:I23) -> 0 | T23: =S23/P23 ->  | U23: 0 | V23: =U23/P23 ->  | W23: 0 | X23: =W23/P23 -> 
B24: 기타 | C24: 220 | D24: 149 | E24: 71 | P24: 220 | Q24: 220 | R24: 1 | S24: 0 | T24: 0 | U24: 0 | V24: 0 | W24: 0 | X24: 0
B25: 농림·축산 | C25: 1 | E25: 1 | P25: =C25 -> 1 | Q25: =SUM(D25:F25) -> 1 | R25: =Q25/P25 -> 1 | S25: =SUM(G25:I25) -> 0 | T25: =S25/P25 -> 0 | U25: 0 | V25: =U25/P25 -> 0 | W25: 0 | X25: =W25/P25 -> 0
B26: 도로 | C26: 0 | P26: 0 | Q26: 0 | S26: 0 | U26: 0 | W26: 0
B27: 도시 | C27: 2 | D27: 1 | E27: 1 | P27: 2 | Q27: 2 | R27: 1 | S27: 0 | T27: 0 | U27: 0 | V27: 0 | W27: 0 | X27: 0
B28: 문화·관광·체육 | C28: 0 | P28: 0 | Q28: 0 | S28: 0 | U28: 0 | W28: 0
B29: 민사·법무 | C29: 27 | D29: 8 | E29: 19 | P29: 27 | Q29: 27 | R29: 1 | S29: 0 | T29: 0 | U29: 0 | V29: 0 | W29: 0 | X29: 0
B30: 방송통신 | C30: 0 | P30: 0 | Q30: 0 | S30: =SUM(G30:I30) -> 0 | U30: 0 | W30: 0
B31: 보건복지 | C31: 2 | E31: 2 | P31: 2 | Q31: 2 | R31: 1 | S31: 0 | T31: 0 | U31: 0 | V31: 0 | W31: 0 | X31: 0
B32: 보훈 | C32: 0 | P32: 0 | Q32: 0 | S32: 0 | U32: 0 | W32: 0
B33: 산업·통상·자원 | C33: 0 | P33: 0 | Q33: 0 | S33: 0 | U33: 0 | W33: 0
B34: 세무 | C34: 3 | D34: 2 | E34: 1 | P34: 3 | Q34: 3 | R34: 1 | S34: 0 | T34: 0 | U34: 0 | V34: 0 | W34: 0 | X34: 0
B35: 수자원 | C35: =SUM(D35:M35) -> 1 | E35: 1 | P35: 1 | Q35: 1 | R35: 1 | S35: 0 | T35: 0 | U35: 0 | V35: 0 | W35: 0 | X35: 0
B36: 식품의약 | C36: 0 | P36: 0 | Q36: 0 | S36: =SUM(G36:I36) -> 0 | U36: =SUM(J36:L36) -> 0 | W36: 0 | AA36: 2
B37: 외무·통일 | C37: 2 | E37: 2 | P37: 2 | Q37: 2 | R37: 1 | S37: 0 | T37: 0 | U37: 0 | V37: 0 | W37: 0 | X37: 0
B38: 인사행정 | C38: 0 | P38: 0 | Q38: 0 | S38: 0 | U38: 0 | W38: 0 | X38: =W38/P38 -> 
B39: 재정·금융·보험·공정거래 | C39: 4 | D39: 1 | E39: 3 | P39: 4 | Q39: 4 | R39: 1 | S39: 0 | T39: 0 | U39: 0 | V39: 0 | W39: 0 | X39: 0
B40: 주택 | C40: 1 | E40: 1 | P40: 1 | Q40: 1 | R40: 1 | S40: 0 | T40: 0 | U40: 0 | V40: 0 | W40: 0 | X40: 0
B41: 해양수산 | C41: 0 | P41: =C41 -> 0 | Q41: =SUM(D41:F41) -> 0 | R41: =Q41/P41 ->  | S41: 0 | T41: =S41/P41 ->  | U41: 0 | V41: =U41/P41 ->  | W41: 0
B42: 행정안전 | C42: 3 | D42: 2 | E42: 1 | P42: =C42 -> 3 | Q42: =SUM(D42:F42) -> 3 | R42: =Q42/P42 -> 1 | S42: 0 | T42: =S42/P42 -> 0 | U42: 0 | V42: =U42/P42 -> 0 | W42: 0 | X42: 0
B43: 환경 | C43: =SUM(D43:N43) -> 1 | E43: 1 | P43: =C43 -> 1 | Q43: =SUM(D43:F43) -> 1 | R43: =Q43/P43 -> 1 | S43: 0 | T43: =S43/P43 -> 0 | U43: 0 | V43: =U43/P43 -> 0 | W43: 0 | X43: 0
B44: 합계 | C44: =SUM(D44:O44) -> 280 | D44: =SUM(D17:D43) -> 169 | E44: =SUM(E17:E43) -> 111 | F44: 0 | G44: =SUM(G17:G43) -> 0 | H44: =SUM(H17:H43) -> 0 | I44: 0 | J44: 0 | K44: 0 | L44: 0 | M44: 0 | N44: 0 | O44: 0 | P44: =C44 -> 280 | Q44: =SUM(D44:F44) -> 280 | R44: =Q44/P44 -> 1 | S44: =SUM(G44:I44) -> 0 | T44: =S44/P44 -> 0 | U44: 0 | V44: =U44/P44 -> 0 | W44: 0 | X44: =W44/P44 -> 0
C46: 합계 | D46: 1월 | E46: 2월 | F46: 3월 | G46: 4월 | H46: 5월 | I46: 6월 | J46: 7월 | K46: 8월 | L46: 9월 | M46: 10월 | N46: 11월 | O46: 12월 | P46: 합계 | Q46: 1분기 | R46: 비율 | S46: 2분기 | T46: 비율 | U46: 3분기 | V46: 비율 | W46: 4분기 | X46: 비율
A47: 세종 (고충+일반) | B47: 건축 | C47: =SUM(D47:N47) -> 8 | D47: 2 | E47: 6 | P47: =C47 -> 8 | Q47: =SUM(D47:F47) -> 8 | R47: =Q47/P47 -> 1 | S47: =SUM(E47:I47) -> 6 | T47: =S47/P47 -> 0.75 | U47: =SUM(J47:L47) -> 0 | V47: =U47/P47 -> 0 | W47: =SUM(M47:N47) -> 0 | X47: =W47/P47 -> 0
B48: 경찰 | C48: 17 | D48: 9 | E48: 8 | P48: 17 | Q48: 17 | R48: 1 | S48: 8 | T48: 0.4705882353 | U48: 0 | V48: 0 | W48: 0 | X48: 0
B49: 고용노동 | C49: 3 | D49: 2 | E49: 1 | P49: 3 | Q49: 3 | R49: 1 | S49: 1 | T49: 0.3333333333 | U49: 0 | V49: 0 | W49: 0 | X49: 0
B50: 교육 | C50: 1 | E50: 1 | P50: 1 | Q50: 1 | R50: 1 | S50: 1 | T50: 1 | U50: 0 | V50: 0 | W50: 0 | X50: 0
B51: 교통 | C51: 2 | D51: 1 | E51: 1 | P51: 2 | Q51: 2 | R51: 1 | S51: 1 | T51: 0.5 | U51: 0 | V51: 0 | W51: 0 | X51: 0
B52: 국방 | C52: 7 | D52: 5 | E52: 2 | P52: 7 | Q52: 7 | R52: 1 | S52: 2 | T52: 0.2857142857 | U52: 0 | V52: 0 | W52: 0 | X52: 0
B53: 군사 | C53: 0 | P53: 0 | Q53: 0 | S53: 0 | U53: 0 | W53: 0
B54: 기타 | C54: 158 | D54: 88 | E54: 70 | P54: 158 | Q54: 158 | R54: 1 | S54: 70 | T54: 0.4430379747 | U54: =SUM(J54:L54) -> 0 | V54: 0 | W54: 0 | X54: 0
B55: 농림·축산 | C55: 10 | D55: 8 | E55: 2 | P55: 10 | Q55: 10 | R55: 1 | S55: 2 | T55: 0.2 | U55: 0 | V55: 0 | W55: 0 | X55: 0
B56: 도로 | C56: 4 | D56: 1 | E56: 3 | P56: 4 | Q56: 4 | R56: 1 | S56: 3 | T56: 0.75 | U56: 0 | V56: 0 | W56: 0 | X56: 0
B57: 도시 | C57: 8 | D57: 5 | E57: 3 | P57: =C57 -> 8 | Q57: 8 | R57: =Q57/P57 -> 1 | S57: 3 | T57: =S57/P57 -> 0.375 | U57: =SUM(J57:L57) -> 0 | V57: =U57/P57 -> 0 | W57: 0 | X57: =W57/P57 -> 0
B58: 문화·관광·체육 | C58: 0 | P58: 0 | Q58: 0 | S58: 0 | U58: 0 | W58: 0
B59: 민사·법무 | C59: 3 | D59: 1 | E59: 2 | P59: 3 | Q59: 3 | R59: 1 | S59: 2 | T59: 0.6666666667 | U59: 0 | V59: 0 | W59: 0 | X59: 0
B60: 방송통신 | C60: 0 | P60: 0 | Q60: 0 | S60: 0 | U60: 0 | W60: 0
B61: 보건복지 | C61: 12 | D61: 5 | E61: 7 | P61: 12 | Q61: 12 | R61: 1 | S61: 7 | T61: 0.5833333333 | U61: 0 | V61: 0 | W61: 0 | X61: 0
B62: 보훈 | C62: 4 | E62: 4 | P62: 4 | Q62: 4 | R62: 1 | S62: 4 | T62: 1 | U62: 0 | V62: 0 | W62: 0 | X62: 0
B63: 산업·통상·자원 | C63: 4 | D63: 2 | E63: 2 | P63: 4 | Q63: 4 | R63: 1 | S63: 2 | T63: 0.5 | U63: 0 | V63: 0 | W63: 0 | X63: 0
B64: 세무 | C64: =SUM(D64:M64) -> 7 | D64: 3 | E64: 4 | P64: 7 | Q64: 7 | R64: 1 | S64: 4 | T64: 0.5714285714 | U64: 0 | V64: 0 | W64: 0 | X64: 0
B65: 수자원 | C65: 3 | D65: 2 | E65: 1 | P65: 3 | Q65: 3 | R65: 1 | S65: 1 | T65: 0.3333333333 | U65: 0 | V65: 0 | W65: 0 | X65: 0
B66: 식품의약 | C66: 0 | P66: 0 | Q66: 0 | S66: =SUM(E66:I66) -> 0 | U66: 0 | W66: 0
B67: 외무·통일 | C67: 0 | P67: =C67 -> 0 | Q67: 0 | S67: =SUM(E67:H67) -> 0 | T67: =S67/P67 ->  | U67: =SUM(K67:L67) -> 0 | V67: =U67/P67 ->  | W67: 0
B68: 인사행정 | C68: 1 | E68: 1 | P68: 1 | Q68: =SUM(D68:D68) -> 0 | R68: 0 | S68: =SUM(F68:H68) -> 0 | T68: 0 | U68: =SUM(K68:L68) -> 0 | V68: 0 | W68: 0 | X68: 0
B69: 재정·금융·보험·공정거래 | C69: 11 | D69: 2 | E69: 9 | P69: 11 | Q69: 2 | R69: 0.1818181818 | S69: 0 | T69: 0 | U69: 0 | V69: 0 | W69: 0 | X69: 0
B70: 주택 | C70: 3 | D70: 2 | E70: 1 | P70: 3 | Q70: 2 | R70: 0.6666666667 | S70: 0 | T70: 0 | U70: 0 | V70: 0 | W70: 0 | X70: 0
B71: 해양수산 | C71: 0 | P71: 0 | Q71: 0 | S71: 0 | U71: 0 | W71: 0
B72: 행정안전 | C72: =SUM(D72:N72) -> 11 | D72: 7 | E72: 4 | P72: 11 | Q72: 7 | R72: 0.6363636364 | S72: 0 | T72: 0 | U72: 0 | V72: 0 | W72: 0 | X72: 0
B73: 환경 | C73: =SUM(D73:M73) -> 4 | D73: 1 | E73: 3 | P73: 4 | Q73: 1 | R73: 0.25 | S73: 0 | T73: 0 | U73: 0 | V73: 0 | W73: 0 | X73: 0
B74: 합계 | C74: =SUM(C47:C73) -> 281 | D74: 146 | E74: 135 | F74: 0 | G74: 0 | H74: 0 | I74: =SUM(I47:I73) -> 0 | J74: =SUM(J47:J73) -> 0 | K74: =SUM(K47:K73) -> 0 | L74: 0 | M74: 0 | N74: 0 | O74: 0 | P74: =C74 -> 281 | Q74: =SUM(D74:F74) -> 281 | R74: =Q74/P74 -> 1 | S74: =SUM(G74:I74) -> 0 | T74: =S74/P74 -> 0 | U74: =SUM(J74:L74) -> 0 | V74: =U74/P74 -> 0 | W74: 0 | X74: =W74/P74 -> 0
P75: =C75 -> 0
C76: 합계 | D76: 1월 | E76: 2월 | F76: 3월 | G76: 4월 | H76: 5월 | I76: 6월 | J76: 7월 | K76: 8월 | L76: 9월 | M76: 10월 | N76: 11월 | O76: 12월 | P76: 합계 | Q76: 1분기 | R76: 비율 | S76: 2분기 | T76: 비율 | U76: 3분기 | V76: 비율 | W76: 4분기 | X76: 비율
A77: 합계 (고충+일반) | B77: 건축 | C77: =SUM(D77:O77) -> 8 | D77: =D47+D17 -> 2 | E77: 6 | F77: 0 | G77: 0 | H77: =H$47+H$17 -> 0 | I77: =I$47+I$17 -> 0 | J77: =J$47+J$17 -> 0 | K77: 0 | L77: 0 | M77: 0 | N77: 0 | O77: 0 | P77: =C77 -> 8 | Q77: =SUM(D77:F77) -> 8 | R77: =Q77/P77 -> 1 | S77: =SUM(G77:I77) -> 0 | T77: =S77/P77 -> 0 | U77: =SUM(J77:L77) -> 0 | V77: =U77/P77 -> 0 | W77: =SUM(M77:O77) -> 0 | X77: =W77/P77 -> 0
B78: 경찰 | C78: 22 | D78: =D48+D18 -> 10 | E78: 12 | F78: 0 | G78: 0 | H78: =H$48+H$18 -> 0 | I78: =I$48+I$18 -> 0 | J78: =J$48+J$18 -> 0 | K78: 0 | L78: =L48+L18 -> 0 | M78: =M48+M18 -> 0 | N78: 0 | O78: 0 | P78: 22 | Q78: 22 | R78: 1 | S78: 0 | T78: 0 | U78: 0 | V78: 0 | W78: 0 | X78: 0
B79: 고용노동 | C79: 9 | D79: =D49+D19 -> 6 | E79: 3 | F79: 0 | G79: 0 | H79: =H$49+H$19 -> 0 | I79: =I$49+I$19 -> 0 | J79: =J$49+J$19 -> 0 | K79: 0 | L79: =L49+L19 -> 0 | M79: =M49+M19 -> 0 | N79: 0 | O79: 0 | P79: 9 | Q79: 9 | R79: 1 | S79: 0 | T79: 0 | U79: 0 | V79: 0 | W79: 0 | X79: 0
B80: 교육 | C80: 2 | D80: =D50+D20 -> 0 | E80: 2 | F80: 0 | G80: 0 | H80: =H$50+H$20 -> 0 | I80: =I$50+I$20 -> 0 | J80: =J$50+J$20 -> 0 | K80: 0 | L80: =L50+L20 -> 0 | M80: =M50+M20 -> 0 | N80: 0 | O80: 0 | P80: 2 | Q80: 2 | R80: 1 | S80: 0 | T80: 0 | U80: 0 | V80: 0 | W80: 0 | X80: 0
B81: 교통 | C81: 3 | D81: =D51+D21 -> 2 | E81: 1 | F81: 0 | G81: 0 | H81: =H$51+H$21 -> 0 | I81: =I$51+I$21 -> 0 | J81: =J$51+J$21 -> 0 | K81: 0 | L81: =L51+L21 -> 0 | M81: =M51+M21 -> 0 | N81: 0 | O81: 0 | P81: 3 | Q81: 3 | R81: 1 | S81: 0 | T81: 0 | U81: 0 | V81: 0 | W81: 0 | X81: 0
B82: 국방 | C82: 7 | D82: =D52+D22 -> 5 | E82: 2 | F82: 0 | G82: 0 | H82: =H$52+H$22 -> 0 | I82: =I$52+I$22 -> 0 | J82: =J$52+J$22 -> 0 | K82: 0 | L82: =L52+L22 -> 0 | M82: =M52+M22 -> 0 | N82: 0 | O82: 0 | P82: 7 | Q82: 7 | R82: 1 | S82: 0 | T82: 0 | U82: 0 | V82: 0 | W82: 0 | X82: 0
B83: 군사 | C83: 0 | D83: =D53+D23 -> 0 | E83: 0 | F83: 0 | G83: 0 | H83: =H$53+H$23 -> 0 | I83: =I$53+I$23 -> 0 | J83: =J$53+J$23 -> 0 | K83: 0 | L83: =L53+L23 -> 0 | M83: =M53+M23 -> 0 | N83: 0 | O83: 0 | P83: 0 | Q83: 0 | S83: 0 | U83: 0 | W83: 0
B84: 기타 | C84: 378 | D84: =D54+D24 -> 237 | E84: 141 | F84: 0 | G84: 0 | H84: =H$54+H$24 -> 0 | I84: =I$54+I$24 -> 0 | J84: =J$54+J$24 -> 0 | K84: 0 | L84: =L54+L24 -> 0 | M84: =M54+M24 -> 0 | N84: 0 | O84: 0 | P84: 378 | Q84: 378 | R84: 1 | S84: 0 | T84: 0 | U84: 0 | V84: 0 | W84: 0 | X84: 0
B85: 농림·축산 | C85: 11 | D85: =D55+D25 -> 8 | E85: 3 | F85: 0 | G85: 0 | H85: =H$55+H$25 -> 0 | I85: =I$55+I$25 -> 0 | J85: =J$55+J$25 -> 0 | K85: 0 | L85: =L55+L25 -> 0 | M85: =M55+M25 -> 0 | N85: 0 | O85: 0 | P85: 11 | Q85: 11 | R85: 1 | S85: 0 | T85: 0 | U85: 0 | V85: 0 | W85: 0 | X85: 0
B86: 도로 | C86: 4 | D86: =D56+D26 -> 1 | E86: 3 | F86: 0 | G86: 0 | H86: =H$56+H$26 -> 0 | I86: =I$56+I$26 -> 0 | J86: =J$56+J$26 -> 0 | K86: 0 | L86: =L56+L26 -> 0 | M86: =M56+M26 -> 0 | N86: 0 | O86: 0 | P86: 4 | Q86: 4 | R86: 1 | S86: 0 | T86: 0 | U86: 0 | V86: 0 | W86: 0 | X86: 0
B87: 도시 | C87: 10 | D87: =D57+D27 -> 6 | E87: 4 | F87: 0 | G87: 0 | H87: =H$57+H$27 -> 0 | I87: =I$57+I$27 -> 0 | J87: =J$57+J$27 -> 0 | K87: 0 | L87: =L57+L27 -> 0 | M87: =M57+M27 -> 0 | N87: 0 | O87: 0 | P87: =C87 -> 10 | Q87: =SUM(D87:F87) -> 10 | R87: =Q87/P87 -> 1 | S87: =SUM(G87:I87) -> 0 | T87: =S87/P87 -> 0 | U87: =SUM(J87:L87) -> 0 | V87: =U87/P87 -> 0 | W87: =SUM(M87:O87) -> 0 | X87: =W87/P87 -> 0
B88: 문화·관광·체육 | C88: 0 | D88: =D58+D28 -> 0 | E88: 0 | F88: 0 | G88: 0 | H88: =H$58+H$28 -> 0 | I88: =I$58+I$28 -> 0 | J88: =J$58+J$28 -> 0 | K88: 0 | L88: =L58+L28 -> 0 | M88: =M58+M28 -> 0 | N88: 0 | O88: 0 | P88: 0 | Q88: 0 | S88: 0 | U88: 0 | W88: 0
B89: 민사·법무 | C89: 30 | D89: =D59+D29 -> 9 | E89: 21 | F89: 0 | G89: 0 | H89: =H$59+H$29 -> 0 | I89: =I$59+I$29 -> 0 | J89: =J$59+J$29 -> 0 | K89: 0 | L89: =L59+L29 -> 0 | M89: =M59+M29 -> 0 | N89: 0 | O89: 0 | P89: 30 | Q89: 30 | R89: 1 | S89: 0 | T89: 0 | U89: 0 | V89: 0 | W89: 0 | X89: 0
B90: 방송통신 | C90: 0 | D90: =D60+D30 -> 0 | E90: 0 | F90: 0 | G90: 0 | H90: =H$60+H$30 -> 0 | I90: =I$60+I$30 -> 0 | J90: =J$60+J$30 -> 0 | K90: 0 | L90: =L60+L30 -> 0 | M90: =M60+M30 -> 0 | N90: 0 | O90: 0 | P90: 0 | Q90: 0 | S90: 0 | U90: 0 | W90: 0
B91: 보건복지 | C91: 14 | D91: =D61+D31 -> 5 | E91: 9 | F91: 0 | G91: 0 | H91: =H$61+H$31 -> 0 | I91: =I$61+I$31 -> 0 | J91: =J$61+J$31 -> 0 | K91: 0 | L91: =L61+L31 -> 0 | M91: =M61+M31 -> 0 | N91: 0 | O91: 0 | P91: 14 | Q91: 14 | R91: 1 | S91: 0 | T91: 0 | U91: 0 | V91: 0 | W91: 0 | X91: 0
B92: 보훈 | C92: 4 | D92: =D62+D32 -> 0 | E92: 4 | F92: 0 | G92: 0 | H92: =H$62+H$32 -> 0 | I92: =I$62+I$32 -> 0 | J92: =J$62+J$32 -> 0 | K92: 0 | L92: =L62+L32 -> 0 | M92: =M62+M32 -> 0 | N92: 0 | O92: 0 | P92: 4 | Q92: 4 | R92: 1 | S92: 0 | T92: 0 | U92: 0 | V92: 0 | W92: 0 | X92: 0
B93: 산업·통상·자원 | C93: 4 | D93: =D63+D33 -> 2 | E93: 2 | F93: 0 | G93: 0 | H93: =H$63+H$33 -> 0 | I93: =I$63+I$33 -> 0 | J93: =J$63+J$33 -> 0 | K93: 0 | L93: =L63+L33 -> 0 | M93: =M63+M33 -> 0 | N93: 0 | O93: 0 | P93: 4 | Q93: 4 | R93: 1 | S93: 0 | T93: 0 | U93: 0 | V93: 0 | W93: 0 | X93: 0
B94: 세무 | C94: 10 | D94: =D64+D34 -> 5 | E94: 5 | F94: 0 | G94: 0 | H94: =H$64+H$34 -> 0 | I94: =I$64+I$34 -> 0 | J94: =J$64+J$34 -> 0 | K94: 0 | L94: =L64+L34 -> 0 | M94: =M64+M34 -> 0 | N94: 0 | O94: 0 | P94: 10 | Q94: 10 | R94: 1 | S94: 0 | T94: 0 | U94: 0 | V94: 0 | W94: 0 | X94: 0
B95: 수자원 | C95: 4 | D95: =D65+D35 -> 2 | E95: 2 | F95: 0 | G95: 0 | H95: =H$65+H$35 -> 0 | I95: =I$65+I$35 -> 0 | J95: =J$65+J$35 -> 0 | K95: 0 | L95: =L65+L35 -> 0 | M95: =M65+M35 -> 0 | N95: 0 | O95: 0 | P95: 4 | Q95: 4 | R95: =Q95/P95 -> 1 | S95: =SUM(G95:I95) -> 0 | T95: =S95/P95 -> 0 | U95: =SUM(J95:L95) -> 0 | V95: =U95/P95 -> 0 | W95: =SUM(M95:O95) -> 0 | X95: =W95/P95 -> 0
B96: 식품의약 | C96: 0 | D96: =D66+D36 -> 0 | E96: 0 | F96: 0 | G96: 0 | H96: =H$66+H$36 -> 0 | I96: =I$66+I$36 -> 0 | J96: =J$66+J$36 -> 0 | K96: 0 | L96: =L66+L36 -> 0 | M96: =M66+M36 -> 0 | N96: 0 | O96: 0 | P96: 0 | Q96: 0 | S96: 0 | U96: 0 | W96: 0
B97: 외무·통일 | C97: 2 | D97: =D67+D37 -> 0 | E97: 2 | F97: 0 | G97: 0 | H97: =H$67+H$37 -> 0 | I97: =I$67+I$37 -> 0 | J97: =J$67+J$37 -> 0 | L97: =L67+L37 -> 0 | M97: =M67+M37 -> 0 | N97: 0 | O97: 0 | P97: 2 | Q97: 2 | R97: 1 | S97: 0 | T97: 0 | U97: 0 | V97: 0 | W97: 0 | X97: 0
B98: 인사행정 | C98: 1 | D98: =D68+D38 -> 0 | E98: 1 | F98: 0 | G98: 0 | H98: =H$68+H$38 -> 0 | I98: =I$68+I$38 -> 0 | J98: =J$68+J$38 -> 0 | K98: 0 | L98: =L68+L38 -> 0 | M98: =M68+M38 -> 0 | N98: 0 | O98: 0 | P98: 1 | Q98: 1 | R98: 1 | S98: 0 | T98: 0 | U98: 0 | V98: 0 | W98: 0 | X98: 0
B99: 재정·금융·보험·공정거래 | C99: 15 | D99: =D69+D39 -> 3 | E99: 12 | F99: 0 | G99: 0 | H99: =H$69+H$39 -> 0 | I99: =I$69+I$39 -> 0 | J99: =J$69+J$39 -> 0 | K99: 0 | L99: =L69+L39 -> 0 | M99: =M69+M39 -> 0 | N99: 0 | O99: 0 | P99: 15 | Q99: 15 | R99: 1 | S99: 0 | T99: 0 | U99: 0 | V99: 0 | W99: 0 | X99: 0
B100: 주택 | C100: 4 | D100: =D70+D40 -> 2 | E100: 2 | F100: 0 | G100: 0 | H100: =H$70+H$40 -> 0 | I100: =I$70+I$40 -> 0 | J100: =J$70+J$40 -> 0 | K100: 0 | L100: =L70+L40 -> 0 | M100: =M70+M40 -> 0 | N100: 0 | O100: 0 | P100: 4 | Q100: 4 | R100: 1 | S100: 0 | T100: 0 | U100: 0 | V100: 0 | W100: 0 | X100: 0
B101: 해양수산 | C101: 0 | D101: =D71+D41 -> 0 | E101: 0 | F101: 0 | G101: 0 | H101: =H$71+H$41 -> 0 | I101: =I$71+I$41 -> 0 | J101: =J$71+J$41 -> 0 | K101: 0 | L101: =L71+L41 -> 0 | M101: =M71+M41 -> 0 | N101: 0 | O101: 0 | P101: 0 | Q101: 0 | R101: =Q101/P101 ->  | S101: =SUM(G101:I101) -> 0 | T101: =S101/P101 ->  | U101: =SUM(J101:L101) -> 0 | V101: =U101/P101 ->  | W101: =SUM(M101:O101) -> 0 | X101: =W101/P101 -> 
B102: 행정안전 | C102: 14 | D102: =D72+D42 -> 9 | E102: 5 | F102: 0 | G102: 0 | H102: =H$72+H$42 -> 0 | I102: =I$72+I$42 -> 0 | J102: =J$72+J$42 -> 0 | K102: 0 | L102: =L72+L42 -> 0 | M102: =M72+M42 -> 0 | N102: 0 | O102: 0 | P102: 14 | Q102: 14 | R102: 1 | S102: 0 | T102: 0 | U102: 0 | V102: 0 | W102: 0 | X102: 0
B103: 환경 | C103: 5 | D103: =D73+D43 -> 1 | E103: 4 | F103: 0 | G103: 0 | H103: =H$73+H$43 -> 0 | I103: =I$73+I$43 -> 0 | J103: =J$73+J$43 -> 0 | K103: 0 | L103: =L73+L43 -> 0 | M103: 0 | N103: 0 | O103: 0 | P103: 5 | Q103: 5 | R103: 1 | S103: 0 | T103: 0 | U103: 0 | V103: 0 | W103: 0 | X103: 0
B104: 합계 | C104: 561 | D104: =SUM(D77:D103) -> 315 | E104: 246 | F104: 0 | G104: 0 | H104: 0 | I104: 0 | J104: 0 | K104: 0 | L104: 0 | M104: 0 | N104: 0 | O104: 0 | P104: 561 | Q104: =SUM(D104:F104) -> 561 | R104: =Q104/P104 -> 1 | S104: =SUM(G104:I104) -> 0 | T104: =S104/P104 -> 0 | U104: =SUM(J104:L104) -> 0 | V104: =U104/P104 -> 0 | W104: =SUM(M104:O104) -> 0 | X104: =W104/P104 -> 0
A106: 화상상담
A107: 계 | B107: 1월 | C107: 2월 | D107: 3월 | E107: 4월 | F107: 5월 | G107: 6월 | H107: 7월 | I107: 8월 | J107: 9월 | K107: 10월 | L107: 11월 | M107: 12월
A108: =SUM(B108:M108) -> 12 | B108: =C121+C129 -> 6 | C108: =D121+D129 -> 6 | D108: 0 | E108: 0 | F108: 0 | G108: 0 | H108: 0 | I108: 0 | J108: =K121+K129 -> 0 | K108: =L121+L129 -> 0 | L108: =M121+M129 -> 0 | M108: =N121+N129 -> 0
A111: < 총 괄, 서울+세종 > (조사관+전문가+민원위원)
A112: 구분 | B112: 합계 | C112: 1월 | D112: 2월 | E112: 3월 | F112: 4월 | G112: 5월 | H112: 6월 | I112: 7월 | J112: 8월 | K112: 9월 | L112: 10월 | M112: 11월 | N112: 12월 | O112: 합계 | P112: 1분기 | Q112: 비율 | R112: 2분기 | S112: 비율 | T112: 3분기 | U112: 비율 | V112: 4분기 | W112: 비율
A113: 합계 | B113: =SUM(C113:N113) -> 561 | C113: =C133+C150 -> 315 | D113: =D133+D150 -> 246 | E113: 0 | F113: 0 | G113: =G133+G150 -> 0 | H113: =H133+H150 -> 0 | I113: 0 | J113: 0 | K113: 0 | L113: =L114+L122 -> 0 | M113: =M114+M122 -> 0 | N113: =N114+N122 -> 0 | O113: =B113 -> 561 | P113: =SUM(C113:E113) -> 561 | Q113: =P113/O113 -> 1 | R113: =SUM(F113:H113) -> 0 | S113: =R113/O113 -> 0 | T113: =SUM(I113:K113) -> 0 | U113: =T113/O113 -> 0 | V113: =SUM(L113:N113) -> 0 | W113: =V113/O113 -> 0
A114: 고충(계) | B114: =SUM(C114:N114) -> 315 | C114: 172 | D114: =D134+D151 -> 143 | E114: 0 | F114: 0 | G114: 0 | H114: 0 | I114: 0 | J114: 0 | K114: 0 | L114: 0 | M114: =M134+M151 -> 0 | N114: =N134+N151 -> 0 | O114: 315 | P114: 315 | Q114: 1 | R114: =SUM(F114:H114) -> 0 | S114: =R114/O114 -> 0 | T114: =SUM(I114:K114) -> 0 | U114: =T114/O114 -> 0 | V114: =SUM(L114:N114) -> 0 | W114: =V114/O114 -> 0
A115: FAX | B115: =SUM(C115:N115) -> 0 | C115: 0 | D115: =D135+D152 -> 0 | E115: 0 | F115: 0 | G115: 0 | H115: 0 | I115: 0 | J115: 0 | K115: 0 | L115: 0 | M115: 0 | N115: 0 | O115: 0 | P115: 0 | R115: 0 | T115: 0 | V115: 0
A116: 방문 | B116: =SUM(C116:N116) -> 249 | C116: 134 | D116: =D136+D153 -> 115 | E116: 0 | F116: 0 | G116: 0 | H116: 0 | I116: 0 | J116: 0 | K116: 0 | L116: =L136+L153 -> 0 | M116: 0 | N116: 0 | O116: 249 | P116: 249 | Q116: 1 | R116: 0 | S116: =R116/O116 -> 0 | T116: 0 | U116: 0 | V116: 0 | W116: 0
A117: 방문전화 | B117: 0 | C117: 0 | D117: =D137+D154 -> 0 | E117: 0 | F117: 0 | G117: 0 | H117: 0 | I117: 0 | J117: 0 | K117: 0 | L117: =L137+L154 -> 0 | M117: 0 | N117: 0 | O117: 0 | P117: 0 | R117: 0 | T117: 0 | V117: 0
A118: 우편 | B118: 0 | C118: 0 | D118: =D138+D155 -> 0 | E118: 0 | F118: 0 | G118: 0 | H118: 0 | I118: 0 | J118: 0 | K118: 0 | L118: =L138+L155 -> 0 | M118: 0 | N118: 0 | O118: 0 | P118: 0 | R118: 0 | T118: 0 | V118: 0
A119: 인터넷 | B119: 0 | C119: 0 | D119: =D139+D156 -> 0 | E119: 0 | F119: 0 | G119: 0 | H119: 0 | I119: 0 | J119: 0 | K119: 0 | L119: =L139+L156 -> 0 | M119: 0 | N119: 0 | O119: 0 | P119: =C114+D114+E114 -> 315 | Q119: =P119/O114 -> 1 | R119: =F114+G114+H114 -> 0 | S119: =R119/O114 -> 0 | T119: =I114+J114+K114 -> 0 | U119: =T119/O114 -> 0 | V119: =L114+M114+N114 -> 0 | W119: =V119/O114 -> 0
A120: 전화 | B120: 55 | C120: 32 | D120: =D140+D157 -> 23 | E120: 0 | F120: 0 | G120: 0 | H120: 0 | I120: 0 | J120: 0 | K120: 0 | L120: =L140+L157 -> 0 | M120: 0 | N120: 0 | O120: 55 | P120: =C120+D120+E120 -> 55 | Q120: =P120/O120 -> 1 | R120: =F120+G120+H120 -> 0 | S120: 0 | T120: =I120+J120+K120 -> 0 | U120: 0 | V120: =L120+M120+N120 -> 0 | W120: 0
A121: 화상 | B121: 11 | C121: 6 | D121: =D141+D158 -> 5 | E121: 0 | F121: 0 | G121: 0 | H121: 0 | I121: 0 | J121: 0 | K121: 0 | L121: =L141+L158 -> 0 | M121: 0 | N121: 0 | O121: 11 | P121: 11 | Q121: 1 | R121: 0 | S121: 0 | T121: 0 | U121: 0 | V121: 0 | W121: 0
A122: 일반(계) | B122: =SUM(C122:N122) -> 246 | C122: 143 | D122: =D142+D159 -> 103 | E122: 0 | F122: 0 | G122: =G142+G159 -> 0 | H122: =H142+H159 -> 0 | I122: 0 | J122: 0 | K122: 0 | L122: =L142+L159 -> 0 | M122: =M142+M159 -> 0 | N122: =N142+N159 -> 0 | O122: 246 | P122: 246 | Q122: 1 | R122: 0 | S122: 0 | T122: 0 | U122: 0 | V122: 0 | W122: 0
A123: FAX | B123: 0 | C123: 0 | D123: =D143+D160 -> 0 | E123: 0 | F123: 0 | G123: 0 | H123: 0 | I123: 0 | J123: 0 | K123: 0 | L123: 0 | M123: 0 | N123: 0 | O123: 0 | P123: 0 | R123: =F123+G123+H123 -> 0 | S123: =R123/O123 ->  | T123: =I123+J123+K123 -> 0 | U123: =T123/O123 ->  | V123: =L123+M123+N123 -> 0 | W123: =V123/O123 -> 
A124: 방문 | B124: =SUM(C124:N124) -> 204 | C124: 116 | D124: =D144+D161 -> 88 | E124: 0 | F124: 0 | G124: 0 | H124: 0 | I124: 0 | J124: 0 | K124: 0 | L124: 0 | M124: 0 | N124: 0 | O124: 204 | P124: 204 | Q124: 1 | R124: 0 | S124: 0 | T124: 0 | U124: 0 | V124: 0 | W124: 0
A125: 방문전화 | B125: 0 | C125: 0 | D125: =D145+D162 -> 0 | E125: 0 | F125: 0 | G125: 0 | H125: 0 | I125: 0 | J125: 0 | K125: 0 | L125: 0 | M125: 0 | N125: 0 | O125: 0 | P125: 0 | R125: 0 | T125: 0 | V125: 0
A126: 우편 | B126: 0 | C126: 0 | D126: =D146+D163 -> 0 | E126: 0 | F126: 0 | G126: 0 | H126: 0 | I126: 0 | J126: 0 | K126: 0 | L126: 0 | M126: 0 | N126: 0 | O126: 0 | P126: 0 | R126: 0 | T126: 0 | V126: 0
A127: 인터넷 | B127: 0 | C127: 0 | D127: =D147+D164 -> 0 | E127: 0 | F127: 0 | G127: 0 | H127: 0 | I127: 0 | J127: 0 | K127: 0 | L127: 0 | M127: 0 | N127: 0 | O127: 0 | P127: 0 | R127: 0 | T127: 0 | V127: 0
A128: 전화 | B128: 41 | C128: 27 | D128: =D148+D165 -> 14 | E128: 0 | F128: 0 | G128: 0 | H128: 0 | I128: 0 | J128: 0 | K128: 0 | L128: 0 | M128: 0 | N128: 0 | O128: 41 | P128: 41 | Q128: 1 | R128: 0 | S128: 0 | T128: 0 | U128: 0 | V128: 0 | W128: 0
A129: 화상 | B129: 1 | C129: 0 | D129: =D149+D166 -> 1 | E129: 0 | F129: 0 | G129: 0 | H129: 0 | I129: 0 | J129: 0 | K129: 0 | L129: 0 | M129: 0 | N129: 0 | O129: 1 | P129: 1 | Q129: 1 | R129: 0 | S129: 0 | T129: 0 | U129: 0 | V129: 0 | W129: 0
A131: < 상 세 >
A132: 구분 | B132: 합계 | C132: 1월 | D132: 2월 | E132: 3월 | F132: 4월 | G132: 5월 | H132: 6월 | I132: 7월 | J132: 8월 | K132: 9월 | L132: 10월 | M132: 11월 | N132: 12월 | O132: 합계 | P132: 1분기 | Q132: 비율 | R132: 2분기 | S132: 비율 | T132: 3분기 | U132: 비율 | V132: 4분기 | W132: 비율
A133: 서울 | B133: =SUM(C133:N133) -> 280 | C133: =C134+C142 -> 169 | D133: =D134+D142 -> 111 | E133: 0 | F133: 0 | G133: =G134+G142 -> 0 | H133: =H134+H142 -> 0 | I133: 0 | J133: 0 | K133: 0 | L133: 0 | M133: 0 | N133: 0 | O133: =B133 -> 280 | P133: =SUM(C133:E133) -> 280 | Q133: =P133/O133 -> 1 | R133: =SUM(F133:H133) -> 0 | S133: =R133/O133 -> 0 | T133: =SUM(I133:K133) -> 0 | U133: =T133/O133 -> 0 | V133: =SUM(L133:N133) -> 0 | W133: =V133/O133 -> 0
A134: 고충(계) | B134: 74 | C134: =SUM(C135:C141) -> 49 | D134: =SUM(D135:D141) -> 25 | E134: 0 | F134: 0 | G134: 0 | H134: 0 | I134: 0 | J134: 0 | K134: 0 | L134: 0 | M134: 0 | N134: 0 | O134: 74 | P134: 74 | Q134: 1 | R134: =SUM(F134:H134) -> 0 | S134: 0 | T134: 0 | U134: 0 | V134: 0 | W134: 0
A135: FAX | B135: 0 | O135: 0 | P135: 0 | R135: 0 | T135: 0 | V135: 0
A136: 방문 | B136: 65 | C136: 44 | D136: 21 | O136: 65 | P136: 65 | Q136: 1 | R136: 0 | S136: 0 | T136: 0 | U136: 0 | V136: 0 | W136: 0
A137: 방문전화 | B137: 0 | O137: 0 | P137: 0 | R137: =SUM(F137:H137) -> 0 | S137: =R137/O137 ->  | T137: =SUM(I137:K137) -> 0 | U137: =T137/O137 ->  | V137: =SUM(L137:N137) -> 0 | W137: =V137/O137 -> 
A138: 우편 | B138: 0 | O138: 0 | P138: 0 | R138: =SUM(F138:H138) -> 0 | S138: =R138/O138 ->  | T138: =SUM(I138:K138) -> 0 | U138: =T138/O138 ->  | V138: =SUM(L138:N138) -> 0 | W138: =V138/O138 -> 
A139: 인터넷 | B139: 0 | O139: 0 | P139: 0 | R139: =SUM(F139:H139) -> 0 | S139: =R139/O139 ->  | T139: =SUM(I139:K139) -> 0 | U139: =T139/O139 ->  | V139: =SUM(L139:N139) -> 0 | W139: =V139/O139 -> 
A140: 전화 | B140: 9 | C140: 5 | D140: 4 | O140: 9 | P140: 9 | Q140: 1 | R140: 0 | S140: 0 | T140: 0 | U140: 0 | V140: 0 | W140: 0
A141: 화상 | B141: 0 | O141: 0 | P141: 0 | R141: 0 | T141: 0 | V141: 0
A142: 일반(계) | B142: 206 | C142: =SUM(C143:C149) -> 120 | D142: =SUM(D143:D149) -> 86 | E142: 0 | F142: 0 | G142: =SUM(G143:G149) -> 0 | H142: =SUM(H143:H149) -> 0 | I142: 0 | J142: 0 | K142: 0 | L142: 0 | M142: 0 | N142: 0 | O142: 206 | P142: 206 | Q142: 1 | R142: =SUM(F142:H142) -> 0 | S142: 0 | T142: 0 | U142: 0 | V142: 0 | W142: 0
A143: FAX | B143: 0 | O143: 0 | P143: 0 | R143: 0 | T143: 0 | V143: 0
A144: 방문 | B144: 190 | C144: 111 | D144: 79 | O144: 190 | P144: 190 | Q144: 1 | R144: =SUM(F144:H144) -> 0 | S144: =R144/O144 -> 0 | T144: =SUM(I144:K144) -> 0 | U144: =T144/O144 -> 0 | V144: =SUM(L144:N144) -> 0 | W144: =V144/O144 -> 0
A145: 방문전화 | B145: 0 | O145: 0 | P145: 0 | R145: =SUM(F145:H145) -> 0 | S145: =R145/O145 ->  | T145: =SUM(I145:K145) -> 0 | U145: =T145/O145 ->  | V145: =SUM(L145:N145) -> 0 | W145: =V145/O145 -> 
A146: 우편 | B146: 0 | O146: 0 | P146: 0 | R146: =SUM(F146:H146) -> 0 | S146: =R146/O146 ->  | T146: =SUM(I146:K146) -> 0 | U146: =T146/O146 ->  | V146: =SUM(L146:N146) -> 0 | W146: =V146/O146 -> 
A147: 인터넷 | B147: 0 | O147: 0 | P147: 0 | R147: 0 | T147: 0 | V147: 0
A148: 전화 | B148: 15 | C148: 9 | D148: 6 | O148: 15 | P148: 15 | Q148: 1 | R148: 0 | S148: 0 | T148: 0 | U148: 0 | V148: 0 | W148: 0
A149: 화상 | B149: 1 | D149: 1 | O149: 1 | P149: 1 | Q149: 1 | R149: 0 | S149: 0 | T149: 0 | U149: 0 | V149: 0 | W149: 0
A150: 세종 | B150: 281 | C150: =C151+C159 -> 146 | D150: =D151+D159 -> 135 | E150: 0 | F150: 0 | G150: 0 | H150: 0 | I150: 0 | J150: 0 | K150: 0 | L150: 0 | M150: 0 | N150: 0 | O150: 281 | P150: 281 | Q150: 1 | R150: 0 | S150: 0 | T150: 0 | U150: 0 | V150: 0 | W150: 0
A151: 고충(계) | B151: 241 | C151: =SUM(C152:C158) -> 123 | D151: =SUM(D152:D158) -> 118 | E151: 0 | F151: 0 | G151: 0 | H151: 0 | I151: 0 | J151: 0 | K151: 0 | L151: 0 | M151: 0 | N151: 0 | O151: 241 | P151: 241 | Q151: 1 | R151: 0 | S151: 0 | T151: 0 | U151: 0 | V151: 0 | W151: 0
A152: FAX | B152: 0 | O152: 0 | P152: 0 | R152: 0 | T152: 0 | V152: 0
A153: 방문 | B153: 184 | C153: 90 | D153: 94 | O153: 184 | P153: 184 | Q153: 1 | R153: =SUM(F153:H153) -> 0 | S153: =R153/O153 -> 0 | T153: =SUM(I153:K153) -> 0 | U153: =T153/O153 -> 0 | V153: =SUM(L153:N153) -> 0 | W153: =V153/O153 -> 0
A154: 방문전화 | B154: 0 | O154: 0 | P154: 0 | R154: =SUM(F154:H154) -> 0 | S154: =R154/O154 ->  | T154: =SUM(I154:K154) -> 0 | U154: =T154/O154 ->  | V154: =SUM(L154:N154) -> 0 | W154: =V154/O154 -> 
A155: 우편 | B155: 0 | O155: 0 | P155: 0 | R155: =SUM(F155:H155) -> 0 | S155: =R155/O155 ->  | T155: =SUM(I155:K155) -> 0 | U155: =T155/O155 ->  | V155: =SUM(L155:N155) -> 0 | W155: =V155/O155 -> 
A156: 인터넷 | B156: 0 | O156: 0 | P156: 0 | R156: =SUM(F156:H156) -> 0 | S156: =R156/O156 ->  | T156: =SUM(I156:K156) -> 0 | U156: =T156/O156 ->  | V156: =SUM(L156:N156) -> 0 | W156: =V156/O156 -> 
A157: 전화 | B157: 46 | C157: 27 | D157: 19 | O157: 46 | P157: 46 | Q157: 1 | R157: 0 | S157: 0 | T157: 0 | U157: 0 | V157: 0 | W157: 0
A158: 화상 | B158: 11 | C158: 6 | D158: 5 | O158: 11 | P158: 11 | Q158: 1 | R158: 0 | S158: 0 | T158: 0 | U158: 0 | V158: 0 | W158: 0
A159: 일반(계) | B159: 40 | C159: =SUM(C160:C166) -> 23 | D159: =SUM(D160:D166) -> 17 | E159: 0 | F159: 0 | G159: 0 | H159: 0 | I159: 0 | J159: 0 | K159: 0 | L159: 0 | M159: 0 | N159: 0 | O159: 40 | P159: 40 | Q159: 1 | R159: 0 | S159: 0 | T159: 0 | U159: 0 | V159: 0 | W159: 0
A160: FAX | B160: 0 | O160: 0 | P160: 0 | R160: 0 | T160: 0 | V160: 0
A161: 방문 | B161: 14 | C161: 5 | D161: 9 | O161: 14 | P161: 14 | Q161: 1 | R161: =SUM(F161:H161) -> 0 | S161: =R161/O161 -> 0 | T161: =SUM(I161:K161) -> 0 | U161: =T161/O161 -> 0 | V161: =SUM(L161:N161) -> 0 | W161: =V161/O161 -> 0
A162: 방문전화 | B162: 0 | O162: 0 | P162: 0 | R162: =SUM(F162:H162) -> 0 | S162: =R162/O162 ->  | T162: =SUM(I162:K162) -> 0 | U162: =T162/O162 ->  | V162: =SUM(L162:N162) -> 0 | W162: =V162/O162 -> 
A163: 우편 | B163: 0 | O163: 0 | P163: 0 | R163: =SUM(F163:H163) -> 0 | S163: =R163/O163 ->  | T163: =SUM(I163:K163) -> 0 | U163: =T163/O163 ->  | V163: =SUM(L163:N163) -> 0 | W163: =V163/O163 -> 
A164: 인터넷 | B164: 0 | O164: 0 | P164: 0 | R164: =SUM(F164:H164) -> 0 | S164: =R164/O164 ->  | T164: =SUM(I164:K164) -> 0 | U164: =T164/O164 ->  | V164: =SUM(L164:N164) -> 0 | W164: =V164/O164 -> 
A165: 전화 | B165: 26 | C165: 18 | D165: 8 | O165: 26 | P165: 26 | Q165: 1 | R165: 0 | S165: 0 | T165: 0 | U165: 0 | V165: 0 | W165: 0
A166: 화상 | B166: 0 | O166: 0 | P166: 0 | R166: 0 | T166: 0 | V166: 0
B168: 검증 | C168: =D6-C113 -> 0 | D168: 0 | E168: 0 | F168: 0 | G168: 0 | H168: 0 | I168: 0 | J168: 0 | K168: 0 | L168: 0 | M168: 0 | N168: 0

Sheet 4.조사관상담
A1: 4. 조사관 상담
C2: 합계 | D2: 1월 | E2: 2월 | F2: 3월 | G2: 4월 | H2: 5월 | I2: 6월 | J2: 7월 | K2: 8월 | L2: 9월 | M2: 10월 | N2: 11월 | O2: 12월 | P2: 합계 | Q2: 1분기 | R2: 비율 | S2: 2분기 | T2: 비율 | U2: 3분기 | V2: 비율 | W2: 4분기 | X2: 비율
A3: 서울 (고충+일반) | B3: 건축 | C3: =SUM(D3:N3) -> 0 | P3: =C3 -> 0 | Q3: =SUM(D3:F3) -> 0 | R3: =Q3/P3 ->  | S3: =SUM(G3:I3) -> 0 | T3: =S3/P3 ->  | U3: =SUM(J3:L3) -> 0 | V3: =U3/P3 ->  | W3: =SUM(M3:O3) -> 0 | X3: =W3/P3 -> 
B4: 경찰 | C4: 1 | E4: 1 | P4: 1 | Q4: 1 | R4: 1 | S4: =SUM(G4:I4) -> 0 | T4: 0 | U4: =SUM(J4:L4) -> 0 | V4: 0 | W4: =SUM(M4:O4) -> 0 | X4: 0
B5: 고용노동 | C5: 1 | D5: 1 | P5: 1 | Q5: 1 | R5: 1 | S5: 0 | T5: 0 | U5: 0 | V5: 0 | W5: 0 | X5: 0
B6: 교육 | C6: 0 | P6: 0 | Q6: 0 | S6: 0 | U6: 0 | W6: 0
B7: 교통 | C7: 0 | P7: 0 | Q7: 0 | S7: 0 | U7: 0 | W7: 0
B8: 국방 | C8: 0 | P8: 0 | Q8: 0 | S8: 0 | U8: 0 | W8: 0
B9: 군사 | C9: 0 | P9: 0 | Q9: 0 | S9: 0 | U9: 0 | W9: 0
B10: 기타 | C10: 11 | D10: 9 | E10: 2 | P10: 11 | Q10: 11 | R10: 1 | S10: 0 | T10: 0 | U10: 0 | V10: 0 | W10: 0 | X10: 0
B11: 농림·축산 | C11: 1 | E11: 1 | P11: 1 | Q11: 1 | R11: 1 | S11: 0 | T11: 0 | U11: 0 | V11: 0 | W11: 0 | X11: 0
B12: 도로 | C12: 0 | P12: 0 | Q12: 0 | S12: 0 | U12: 0 | W12: 0
B13: 도시 | C13: 0 | P13: 0 | Q13: 0 | S13: 0 | U13: 0 | W13: 0
B14: 문화·관광·체육 | C14: 0 | P14: 0 | Q14: 0 | S14: 0 | U14: 0 | W14: 0
B15: 민사·법무 | C15: 0 | P15: 0 | Q15: 0 | S15: 0 | U15: 0 | W15: 0
B16: 방송통신 | C16: 0 | P16: 0 | Q16: 0 | S16: 0 | U16: 0 | W16: 0
B17: 보건복지 | C17: 0 | P17: 0 | Q17: 0 | S17: 0 | U17: 0 | W17: 0
B18: 보훈 | C18: 0 | P18: 0 | Q18: 0 | S18: 0 | U18: 0 | W18: 0
B19: 산업·통상·자원 | C19: 0 | P19: 0 | Q19: 0 | S19: =SUM(G19:I19) -> 0 | U19: 0 | W19: 0
B20: 세무 | C20: 0 | P20: 0 | Q20: 0 | S20: =SUM(G20:I20) -> 0 | U20: 0 | W20: 0
B21: 수자원 | C21: 0 | P21: 0 | Q21: 0 | S21: =SUM(G21:I21) -> 0 | U21: 0 | W21: 0
B22: 식품의약 | C22: 0 | P22: 0 | Q22: 0 | S22: 0 | U22: 0 | W22: 0
B23: 외무·통일 | C23: 0 | P23: 0 | Q23: 0 | S23: 0 | U23: 0 | W23: 0
B24: 인사행정 | C24: 0 | P24: 0 | Q24: 0 | S24: 0 | U24: 0 | W24: 0
B25: 재정·금융· 보험·공정거래 | C25: 3 | D25: 1 | E25: 2 | P25: 3 | Q25: 3 | R25: 1 | S25: 0 | T25: 0 | U25: 0 | V25: 0 | W25: 0 | X25: 0
B26: 주택 | C26: 0 | P26: 0 | Q26: 0 | S26: 0 | U26: 0 | W26: 0
B27: 해양수산 | C27: 0 | P27: 0 | Q27: 0 | S27: 0 | U27: 0 | W27: 0
B28: 행정안전 | C28: 0 | P28: 0 | Q28: 0 | S28: 0 | U28: 0 | W28: 0
B29: 환경 | C29: 1 | E29: 1 | P29: 1 | Q29: 1 | R29: 1 | S29: 0 | T29: 0 | U29: 0 | V29: 0 | W29: 0 | X29: 0
B30: 합계 | C30: 18 | D30: =SUM(D3:D29) -> 11 | E30: 7 | F30: 0 | G30: 0 | H30: =SUM(H3:H29) -> 0 | I30: 0 | J30: 0 | K30: 0 | L30: =SUM(L3:L29) -> 0 | M30: 0 | N30: =SUM(N3:N29) -> 0 | O30: =SUM(O3:O29) -> 0 | P30: 18 | Q30: 18 | R30: 1 | S30: 0 | T30: 0 | U30: =SUM(J30:L30) -> 0 | V30: 0 | W30: =SUM(M30:O30) -> 0 | X30: 0
C32: 합계 | D32: 1월 | E32: 2월 | F32: 3월 | G32: 4월 | H32: 5월 | I32: 6월 | J32: 7월 | K32: 8월 | L32: 9월 | M32: 10월 | N32: 11월 | O32: 12월 | P32: 합계 | Q32: 1분기 | R32: 비율 | S32: 2분기 | T32: 비율 | U32: 3분기 | V32: 비율 | W32: 4분기 | X32: 비율
A33: 세종 (고충+일반) | B33: 건축 | C33: =SUM(D33:O33) -> 7 | D33: 1 | E33: 6 | P33: =C33 -> 7 | Q33: =SUM(D33:F33) -> 7 | R33: =Q33/P33 -> 1 | S33: =SUM(G33:I33) -> 0 | T33: =S33/P33 -> 0 | U33: =SUM(J33:L33) -> 0 | V33: =U33/P33 -> 0 | W33: =SUM(M33:O33) -> 0 | X33: =W33/P33 -> 0
B34: 경찰 | C34: 15 | D34: 7 | E34: 8 | P34: 15 | Q34: =SUM(D34:E34) -> 15 | R34: 1 | S34: 0 | T34: 0 | U34: =SUM(J34:L34) -> 0 | V34: 0 | W34: 0 | X34: 0
B35: 고용노동 | C35: 2 | D35: 2 | P35: 2 | Q35: 2 | R35: 1 | S35: 0 | T35: 0 | U35: 0 | V35: 0 | W35: 0 | X35: 0
B36: 교육 | C36: 1 | E36: 1 | P36: 1 | Q36: 1 | R36: 1 | S36: 0 | T36: 0 | U36: 0 | V36: 0 | W36: 0 | X36: 0
B37: 교통 | C37: 2 | D37: 1 | E37: 1 | P37: 2 | Q37: 2 | R37: 1 | S37: 0 | T37: 0 | U37: 0 | V37: 0 | W37: 0 | X37: 0
B38: 국방 | C38: 7 | D38: 5 | E38: 2 | P38: 7 | Q38: 7 | R38: 1 | S38: 0 | T38: 0 | U38: 0 | V38: 0 | W38: 0 | X38: 0
B39: 군사 | C39: 0 | P39: 0 | Q39: 0 | S39: 0 | U39: 0 | W39: 0
B40: 기타 | C40: 105 | D40: 66 | E40: 39 | P40: 105 | Q40: 105 | R40: 1 | S40: 0 | T40: 0 | U40: 0 | V40: 0 | W40: 0 | X40: 0
B41: 농림·축산 | C41: 8 | D41: 7 | E41: 1 | P41: 8 | Q41: 8 | R41: 1 | S41: 0 | T41: 0 | U41: 0 | V41: 0 | W41: 0 | X41: 0
B42: 도로 | C42: 4 | D42: 1 | E42: 3 | P42: 4 | Q42: 4 | R42: 1 | S42: 0 | T42: 0 | U42: 0 | V42: 0 | W42: 0 | X42: 0
B43: 도시 | C43: 7 | D43: 4 | E43: 3 | P43: 7 | Q43: 7 | R43: 1 | S43: 0 | T43: 0 | U43: 0 | V43: 0 | W43: 0 | X43: 0
B44: 문화·관광·체육 | C44: 0 | P44: 0 | Q44: 0 | S44: 0 | U44: 0 | W44: 0
B45: 민사·법무 | C45: 2 | D45: 1 | E45: 1 | P45: 2 | Q45: 2 | R45: 1 | S45: 0 | T45: 0 | U45: 0 | V45: 0 | W45: 0 | X45: 0
B46: 방송통신 | C46: 0 | P46: 0 | Q46: 0 | S46: 0 | U46: 0 | W46: 0
B47: 보건복지 | C47: 11 | D47: 4 | E47: 7 | P47: 11 | Q47: 11 | R47: 1 | S47: 0 | T47: 0 | U47: 0 | V47: 0 | W47: 0 | X47: 0
B48: 보훈 | C48: 4 | E48: 4 | P48: 4 | Q48: 4 | R48: 1 | S48: 0 | T48: 0 | U48: 0 | V48: 0 | W48: 0 | X48: 0
B49: 산업·통상·자원 | C49: 2 | D49: 1 | E49: 1 | P49: 2 | Q49: 2 | R49: 1 | S49: 0 | T49: 0 | U49: 0 | V49: 0 | W49: 0 | X49: 0
B50: 세무 | C50: =SUM(D50:O50) -> 7 | D50: 3 | E50: 4 | P50: 7 | Q50: 7 | R50: 1 | S50: 0 | T50: 0 | U50: 0 | V50: 0 | W50: 0 | X50: 0
B51: 수자원 | C51: 3 | D51: 2 | E51: 1 | P51: 3 | Q51: 3 | R51: 1 | S51: 0 | T51: 0 | U51: 0 | V51: 0 | W51: 0 | X51: 0
B52: 식품의약 | C52: 0 | P52: 0 | Q52: 0 | S52: 0 | U52: 0 | W52: 0
B53: 외무·통일 | C53: 0 | P53: 0 | Q53: 0 | S53: 0 | U53: 0 | W53: 0
B54: 인사행정 | C54: 0 | P54: 0 | Q54: 0 | S54: 0 | U54: 0 | W54: 0
B55: 재정·금융·보험· 공정거래 | C55: 11 | D55: 2 | E55: 9 | P55: 11 | Q55: 11 | R55: 1 | S55: 0 | T55: 0 | U55: 0 | V55: 0 | W55: 0 | X55: 0
B56: 주택 | C56: 3 | D56: 2 | E56: 1 | P56: 3 | Q56: 3 | R56: 1 | S56: 0 | T56: 0 | U56: 0 | V56: 0 | W56: 0 | X56: 0
B57: 해양수산 | C57: 0 | P57: 0 | Q57: 0 | S57: 0 | U57: 0 | W57: 0
B58: 행정안전 | C58: =SUM(D58:O58) -> 10 | D58: 6 | E58: 4 | P58: 10 | Q58: 10 | R58: 1 | S58: 0 | T58: 0 | U58: 0 | V58: 0 | W58: 0 | X58: 0
B59: 환경 | C59: =SUM(D59:O59) -> 3 | D59: 1 | E59: 2 | P59: 3 | Q59: 3 | R59: 1 | S59: 0 | T59: 0 | U59: 0 | V59: 0 | W59: 0 | X59: 0
B60: 합계 | C60: 214 | D60: =SUM(D33:D59) -> 116 | E60: 98 | F60: 0 | G60: =SUM(G33:G59) -> 0 | H60: 0 | I60: 0 | J60: 0 | K60: 0 | L60: 0 | M60: 0 | N60: =SUM(N33:N59) -> 0 | O60: =SUM(O33:O59) -> 0 | P60: 214 | Q60: =SUM(D60:F60) -> 214 | R60: 1 | S60: 0 | T60: 0 | U60: =SUM(J60:L60) -> 0 | V60: 0 | W60: 0 | X60: 0
P61: 0
C62: 합계 | D62: 1월 | E62: 2월 | F62: 3월 | G62: 4월 | H62: 5월 | I62: 6월 | J62: 7월 | K62: 8월 | L62: 9월 | M62: 10월 | N62: 11월 | O62: 12월 | P62: 합계 | Q62: 1분기 | R62: 비율 | S62: 2분기 | T62: 비율 | U62: 3분기 | V62: 비율 | W62: 4분기 | X62: 비율
A63: 합계 (고충+일반) | B63: 건축 | C63: =SUM(D63:O63) -> 7 | D63: =D33+D3 -> 1 | E63: =E33+E3 -> 6 | F63: =F33+F3 -> 0 | G63: =G33+G3 -> 0 | H63: =H33+H3 -> 0 | I63: =I33+I3 -> 0 | J63: 0 | K63: =K33+K3 -> 0 | L63: =L33+L3 -> 0 | M63: 0 | N63: 0 | O63: =O33+O3 -> 0 | P63: =C63 -> 7 | Q63: =SUM(D63:F63) -> 7 | R63: =Q63/P63 -> 1 | S63: =SUM(G63:I63) -> 0 | T63: =S63/P63 -> 0 | U63: =SUM(J63:L63) -> 0 | V63: =U63/P63 -> 0 | W63: =SUM(M63:O63) -> 0 | X63: =W63/P63 -> 0
B64: 경찰 | C64: 16 | D64: =D34+D4 -> 7 | E64: 9 | F64: 0 | G64: 0 | H64: 0 | I64: 0 | J64: 0 | K64: =K34+K4 -> 0 | L64: 0 | M64: 0 | N64: =N34+N4 -> 0 | O64: 0 | P64: 16 | Q64: 16 | R64: 1 | S64: 0 | T64: 0 | U64: 0 | V64: 0 | W64: 0 | X64: 0
B65: 고용노동 | C65: 3 | D65: 3 | E65: 0 | F65: 0 | G65: 0 | H65: 0 | I65: 0 | J65: 0 | K65: =K35+K5 -> 0 | L65: 0 | M65: 0 | N65: =N35+N5 -> 0 | O65: 0 | P65: 3 | Q65: 3 | R65: 1 | S65: 0 | T65: 0 | U65: 0 | V65: 0 | W65: 0 | X65: 0
B66: 교육 | C66: 1 | D66: 0 | E66: 1 | F66: 0 | G66: 0 | H66: 0 | I66: 0 | J66: 0 | K66: =K36+K6 -> 0 | L66: 0 | M66: 0 | N66: =N36+N6 -> 0 | O66: 0 | P66: 1 | Q66: 1 | R66: 1 | S66: 0 | T66: 0 | U66: 0 | V66: 0 | W66: 0 | X66: 0
B67: 교통 | C67: 2 | D67: 1 | E67: 1 | F67: 0 | G67: 0 | H67: 0 | I67: 0 | J67: 0 | K67: =K37+K7 -> 0 | L67: 0 | M67: 0 | N67: =N37+N7 -> 0 | O67: 0 | P67: 2 | Q67: 2 | R67: 1 | S67: 0 | T67: 0 | U67: 0 | V67: 0 | W67: 0 | X67: 0
B68: 국방 | C68: 7 | D68: 5 | E68: 2 | F68: 0 | G68: 0 | H68: 0 | I68: 0 | J68: 0 | K68: =K38+K8 -> 0 | L68: 0 | M68: 0 | N68: =N38+N8 -> 0 | O68: 0 | P68: 7 | Q68: 7 | R68: 1 | S68: 0 | T68: 0 | U68: 0 | V68: 0 | W68: 0 | X68: 0
B69: 군사 | C69: 0 | D69: 0 | E69: 0 | F69: 0 | G69: 0 | H69: 0 | I69: 0 | J69: 0 | K69: =K39+K9 -> 0 | L69: 0 | M69: 0 | N69: =N39+N9 -> 0 | O69: 0 | P69: 0 | Q69: 0 | S69: 0 | U69: 0 | W69: 0
B70: 기타 | C70: 116 | D70: 75 | E70: 41 | F70: 0 | G70: 0 | H70: 0 | I70: 0 | J70: 0 | K70: =K40+K10 -> 0 | L70: 0 | M70: 0 | N70: =N40+N10 -> 0 | O70: 0 | P70: 116 | Q70: 116 | R70: 1 | S70: 0 | T70: 0 | U70: 0 | V70: 0 | W70: 0 | X70: 0
B71: 농림·축산 | C71: 9 | D71: 7 | E71: 2 | F71: 0 | G71: 0 | H71: 0 | I71: 0 | J71: 0 | K71: =K41+K11 -> 0 | L71: 0 | M71: 0 | N71: =N41+N11 -> 0 | O71: 0 | P71: 9 | Q71: 9 | R71: 1 | S71: 0 | T71: 0 | U71: 0 | V71: 0 | W71: 0 | X71: 0
B72: 도로 | C72: 4 | D72: 1 | E72: 3 | F72: 0 | G72: 0 | H72: 0 | I72: 0 | J72: 0 | K72: =K42+K12 -> 0 | L72: 0 | M72: 0 | N72: =N42+N12 -> 0 | O72: 0 | P72: 4 | Q72: 4 | R72: 1 | S72: 0 | T72: 0 | U72: 0 | V72: 0 | W72: 0 | X72: 0
B73: 도시 | C73: 7 | D73: 4 | E73: 3 | F73: 0 | G73: 0 | H73: 0 | I73: 0 | J73: 0 | K73: =K43+K13 -> 0 | L73: 0 | M73: 0 | N73: =N43+N13 -> 0 | O73: 0 | P73: 7 | Q73: 7 | R73: 1 | S73: 0 | T73: 0 | U73: 0 | V73: 0 | W73: 0 | X73: 0
B74: 문화·관광·체육 | C74: 0 | D74: 0 | E74: 0 | F74: 0 | G74: 0 | H74: 0 | I74: 0 | J74: 0 | K74: =K44+K14 -> 0 | L74: 0 | M74: 0 | N74: =N44+N14 -> 0 | O74: 0 | P74: 0 | Q74: 0 | S74: 0 | U74: 0 | W74: 0
B75: 민사·법무 | C75: 2 | D75: 1 | E75: 1 | F75: 0 | G75: 0 | H75: 0 | I75: 0 | J75: 0 | K75: =K45+K15 -> 0 | L75: 0 | M75: 0 | N75: =N45+N15 -> 0 | O75: 0 | P75: 2 | Q75: 2 | R75: 1 | S75: 0 | T75: 0 | U75: 0 | V75: 0 | W75: 0 | X75: 0
B76: 방송통신 | C76: 0 | D76: 0 | E76: 0 | F76: 0 | G76: 0 | H76: 0 | I76: 0 | J76: 0 | K76: =K46+K16 -> 0 | L76: =L46+L16 -> 0 | M76: 0 | N76: 0 | O76: =O46+O16 -> 0 | P76: 0 | Q76: 0 | S76: 0 | U76: 0 | W76: 0
B77: 보건복지 | C77: 11 | D77: 4 | E77: 7 | F77: 0 | G77: 0 | H77: 0 | I77: 0 | J77: 0 | K77: =K47+K17 -> 0 | L77: =L47+L17 -> 0 | M77: 0 | N77: 0 | O77: =O47+O17 -> 0 | P77: 11 | Q77: 11 | R77: 1 | S77: 0 | T77: 0 | U77: 0 | V77: 0 | W77: 0 | X77: 0
B78: 보훈 | C78: 4 | D78: 0 | E78: 4 | F78: 0 | G78: 0 | H78: 0 | I78: 0 | J78: 0 | K78: =K48+K18 -> 0 | L78: =L48+L18 -> 0 | M78: 0 | N78: 0 | O78: =O48+O18 -> 0 | P78: 4 | Q78: 4 | R78: 1 | S78: 0 | T78: 0 | U78: 0 | V78: 0 | W78: 0 | X78: 0
B79: 산업·통상·자원 | C79: 2 | D79: 1 | E79: 1 | F79: 0 | G79: 0 | H79: 0 | I79: 0 | J79: 0 | K79: =K49+K19 -> 0 | L79: =L49+L19 -> 0 | M79: 0 | N79: 0 | O79: =O49+O19 -> 0 | P79: 2 | Q79: 2 | R79: 1 | S79: 0 | T79: 0 | U79: 0 | V79: 0 | W79: 0 | X79: 0
B80: 세무 | C80: 7 | D80: 3 | E80: 4 | F80: 0 | G80: 0 | H80: 0 | I80: 0 | J80: 0 | K80: =K50+K20 -> 0 | L80: =L50+L20 -> 0 | M80: 0 | N80: 0 | O80: =O50+O20 -> 0 | P80: 7 | Q80: 7 | R80: 1 | S80: 0 | T80: 0 | U80: 0 | V80: 0 | W80: 0 | X80: 0
B81: 수자원 | C81: 3 | D81: 2 | E81: 1 | F81: 0 | G81: 0 | H81: 0 | I81: 0 | J81: 0 | K81: 0 | L81: =L51+L21 -> 0 | M81: 0 | N81: 0 | O81: =O51+O21 -> 0 | P81: 3 | Q81: 3 | R81: 1 | S81: 0 | T81: 0 | U81: 0 | V81: 0 | W81: 0 | X81: 0
B82: 식품의약 | C82: 0 | D82: 0 | E82: 0 | F82: 0 | G82: 0 | H82: 0 | I82: 0 | J82: 0 | K82: 0 | L82: =L52+L22 -> 0 | M82: 0 | N82: 0 | O82: =O52+O22 -> 0 | P82: 0 | Q82: 0 | S82: 0 | U82: 0 | W82: 0
B83: 외무·통일 | C83: 0 | D83: 0 | E83: 0 | F83: 0 | G83: 0 | H83: 0 | I83: 0 | J83: 0 | K83: 0 | L83: =L53+L23 -> 0 | M83: 0 | N83: 0 | O83: =O53+O23 -> 0 | P83: 0 | Q83: 0 | S83: 0 | U83: 0 | W83: 0
B84: 인사행정 | C84: 0 | D84: 0 | E84: 0 | F84: 0 | G84: 0 | H84: 0 | I84: 0 | J84: 0 | K84: 0 | L84: 0 | M84: 0 | N84: 0 | O84: =O54+O24 -> 0 | P84: 0 | Q84: 0 | S84: 0 | U84: 0 | W84: 0
B85: 재정·금융·보험 ·공정거래 | C85: 14 | D85: 3 | E85: 11 | F85: 0 | G85: 0 | H85: 0 | I85: 0 | J85: 0 | K85: 0 | L85: 0 | M85: 0 | N85: 0 | O85: =O55+O25 -> 0 | P85: 14 | Q85: 14 | R85: 1 | S85: 0 | T85: 0 | U85: 0 | V85: 0 | W85: 0 | X85: 0
B86: 주택 | C86: 3 | D86: 2 | E86: 1 | F86: 0 | G86: 0 | H86: 0 | I86: 0 | J86: 0 | K86: 0 | L86: 0 | M86: 0 | N86: 0 | O86: =O56+O26 -> 0 | P86: 3 | Q86: 3 | R86: 1 | S86: 0 | T86: 0 | U86: 0 | V86: 0 | W86: 0 | X86: 0
B87: 해양수산 | C87: 0 | D87: 0 | E87: 0 | F87: 0 | G87: 0 | H87: 0 | I87: 0 | J87: 0 | K87: 0 | L87: 0 | M87: 0 | N87: 0 | O87: =O57+O27 -> 0 | P87: 0 | Q87: 0 | S87: 0 | U87: 0 | W87: 0
B88: 행정안전 | C88: 10 | D88: 6 | E88: 4 | F88: 0 | G88: 0 | H88: 0 | I88: 0 | J88: 0 | K88: 0 | L88: 0 | M88: 0 | N88: 0 | O88: =O58+O28 -> 0 | P88: 10 | Q88: 10 | R88: 1 | S88: 0 | T88: 0 | U88: 0 | V88: 0 | W88: 0 | X88: 0
B89: 환경 | C89: 4 | D89: 1 | E89: 3 | F89: 0 | G89: 0 | H89: 0 | I89: 0 | J89: =J59+J29 -> 0 | K89: 0 | L89: 0 | M89: 0 | N89: 0 | O89: =O59+O29 -> 0 | P89: 4 | Q89: 4 | R89: 1 | S89: 0 | T89: 0 | U89: 0 | V89: 0 | W89: 0 | X89: 0
B90: 합계 | C90: 232 | D90: =SUM(D63:D89) -> 127 | E90: 105 | F90: 0 | G90: 0 | H90: =SUM(H$63:H$89) -> 0 | I90: =SUM(I$63:I$89) -> 0 | J90: 0 | K90: 0 | L90: 0 | M90: 0 | N90: 0 | O90: 0 | P90: 232 | Q90: 232 | R90: 1 | S90: 0 | T90: 0 | U90: 0 | V90: 0 | W90: 0 | X90: 0

Sheet 5.전문,민원위원상담
A1: 5. 전문상담관, 민원위원상담
A3: 1. 전문위원상담∙민원위원상담(서울) | N3: (단위 : 건)
A4: 구분 | B4: 합계 | C4: 1월 | D4: 2월 | E4: 3월 | F4: 4월 | G4: 5월 | H4: 6월 | I4: 7월 | J4: 8월 | K4: 9월 | L4: 10월 | M4: 11월 | N4: 12월 | O4: 합계 | P4: 1분기 | Q4: 비율 | R4: 2분기 | S4: 비율 | T4: 3분기 | U4: 비율 | V4: 4분기 | W4: 비율
A5: 전문상담위원계 | B5: =SUM(C5:N5) -> 123 | C5: =SUM(C6:C10) -> 68 | D5: =SUM(D6:D10) -> 55 | E5: 0 | F5: 0 | G5: 0 | H5: 0 | I5: 0 | J5: 0 | K5: =SUM(K6:K10) -> 0 | L5: 0 | M5: 0 | N5: 0 | O5: =B5 -> 123 | P5: =SUM(C5:E5) -> 123 | Q5: =P5/O5 -> 1 | R5: =SUM(F5:H5) -> 0 | S5: =R5/O5 -> 0 | T5: =SUM(I5:K5) -> 0 | U5: =T5/O5 -> 0 | V5: =SUM(L5:N5) -> 0 | W5: =V5/O5 -> 0
A6: 감정평가사 | B6: 0 | C6: 0 | O6: =B6 -> 0 | P6: =SUM(C6:E6) -> 0 | Q6: =P6/O6 ->  | R6: =SUM(F6:H6) -> 0 | S6: =R6/O6 ->  | T6: =SUM(I6:K6) -> 0 | U6: =T6/O6 ->  | V6: =SUM(L6:N6) -> 0 | W6: =V6/O6 -> 
A7: 노무사 | B7: 5 | C7: 4 | D7: 1 | O7: 5 | P7: 5 | Q7: 1 | R7: 0 | S7: 0 | T7: 0 | U7: 0 | V7: 0 | W7: 0
A8: 변호사 | B8: 113 | C8: 60 | D8: 53 | O8: 113 | P8: 113 | Q8: 1 | R8: 0 | S8: 0 | T8: 0 | U8: 0 | V8: 0 | W8: 0
A9: 세무사 | B9: 5 | C9: 4 | D9: 1 | O9: =B9 -> 5 | P9: =SUM(C9:E9) -> 5 | Q9: =P9/O9 -> 1 | R9: =SUM(F9:H9) -> 0 | S9: =R9/O9 -> 0 | T9: =SUM(I9:K9) -> 0 | U9: =T9/O9 -> 0 | V9: =SUM(L9:N9) -> 0 | W9: =V9/O9 -> 0
A10: 손해사정사 | B10: 0 | P10: =SUM(C10:N10) -> 0 | R10: 0 | T10: 0 | V10: 0
A11: 민원상담위원 | B11: 139 | C11: 90 | D11: 49 | O11: 139 | P11: 139 | Q11: 1 | R11: 0 | S11: 0 | T11: 0 | U11: 0 | V11: 0 | W11: 0
A13: 2. 전문위원상담∙민원위원상담(세종) | N13: (단위 : 건)
A14: 구분 | B14: 합계 | C14: 1월 | D14: 2월 | E14: 3월 | F14: 4월 | G14: 5월 | H14: 6월 | I14: 7월 | J14: 8월 | K14: 9월 | L14: 10월 | M14: 11월 | N14: 12월 | O14: 합계 | P14: 1분기 | Q14: 비율 | R14: 2분기 | S14: 비율 | T14: 3분기 | U14: 비율 | V14: 4분기 | W14: 비율
A15: 전문상담위원계 | B15: =SUM(C15:N15) -> 11 | C15: =SUM(C16:C20) -> 4 | D15: =SUM(D16:D20) -> 7 | E15: 0 | F15: 0 | G15: 0 | H15: 0 | I15: 0 | J15: 0 | K15: 0 | L15: 0 | M15: 0 | N15: 0 | O15: 11 | P15: 11 | Q15: 1 | R15: 0 | S15: 0 | T15: 0 | U15: 0 | V15: 0 | W15: 0
A16: 감정평가사 | B16: =SUM(C16:N16) -> 0 | O16: 0 | P16: 0 | R16: 0 | T16: 0 | V16: 0
A17: 노무사 | B17: 0 | O17: 0 | P17: 0 | R17: 0 | T17: 0 | V17: 0
A18: 변호사 | B18: 9 | C18: 4 | D18: 5 | O18: 9 | P18: 9 | Q18: 1 | R18: 0 | S18: 0 | T18: 0 | U18: 0 | V18: 0 | W18: 0
A19: 세무사 | B19: 2 | D19: 2 | O19: =B19 -> 2 | P19: =SUM(C19:E19) -> 2 | Q19: =P19/O19 -> 1 | R19: =SUM(F19:H19) -> 0 | S19: =R19/O19 -> 0 | T19: =SUM(I19:K19) -> 0 | U19: =T19/O19 -> 0 | V19: =SUM(L19:N19) -> 0 | W19: =V19/O19 -> 0
A20: 손해사정사 | B20: 0 | P20: =SUM(C20:H20) -> 0 | R20: 0 | T20: 0 | V20: 0
A21: 민원상담위원 | B21: 56 | C21: 26 | D21: 30 | O21: 56 | P21: 56 | Q21: 1 | R21: 0 | S21: 0 | T21: 0 | U21: 0 | V21: 0 | W21: 0
A23: 3. 전문위원상담∙민원위원상담(합계) | N23: (단위 : 건)
A24: 구분 | B24: 합계 | C24: 1월 | D24: 2월 | E24: 3월 | F24: 4월 | G24: 5월 | H24: 6월 | I24: 7월 | J24: 8월 | K24: 9월 | L24: 10월 | M24: 11월 | N24: 12월 | O24: 합계 | P24: 1분기 | Q24: 비율 | R24: 2분기 | S24: 비율 | T24: 3분기 | U24: 비율 | V24: 4분기 | W24: 비율
A25: 전문상담위원계 | B25: =SUM(C25:N25) -> 134 | C25: =SUM(C26:C30) -> 72 | D25: =SUM(D26:D30) -> 62 | E25: =SUM(E26:E30) -> 0 | F25: 0 | G25: 0 | H25: 0 | I25: 0 | J25: 0 | K25: 0 | L25: 0 | M25: 0 | N25: 0 | O25: 134 | P25: 134 | Q25: 1 | R25: 0 | S25: 0 | T25: 0 | U25: 0 | V25: 0 | W25: 0
A26: 감정평가사 | B26: =SUM(C26:N26) -> 0 | C26: =C6+C16 -> 0 | D26: =D6+D16 -> 0 | E26: 0 | F26: 0 | G26: 0 | H26: 0 | I26: 0 | J26: 0 | K26: 0 | L26: 0 | M26: 0 | N26: 0 | O26: 0 | P26: 0 | R26: 0 | T26: 0 | V26: 0
A27: 노무사 | B27: 5 | C27: =C7+C17 -> 4 | D27: 1 | E27: 0 | F27: 0 | G27: 0 | H27: 0 | I27: 0 | J27: 0 | K27: 0 | L27: 0 | M27: 0 | N27: 0 | O27: 5 | P27: 5 | Q27: 1 | R27: 0 | S27: 0 | T27: 0 | U27: 0 | V27: 0 | W27: 0
A28: 변호사 | B28: 122 | C28: =C8+C18 -> 64 | D28: 58 | E28: 0 | F28: 0 | G28: 0 | H28: 0 | I28: 0 | J28: 0 | K28: 0 | L28: 0 | M28: 0 | N28: 0 | O28: 122 | P28: 122 | Q28: 1 | R28: 0 | S28: 0 | T28: 0 | U28: 0 | V28: 0 | W28: 0
A29: 세무사 | B29: 7 | C29: =C9+C19 -> 4 | D29: 3 | E29: 0 | F29: 0 | G29: 0 | H29: 0 | I29: 0 | J29: 0 | K29: 0 | L29: 0 | M29: 0 | N29: 0 | O29: =B29 -> 7 | P29: =SUM(C29:E29) -> 7 | Q29: =P29/O29 -> 1 | R29: =SUM(F29:H29) -> 0 | S29: =R29/O29 -> 0 | T29: =SUM(I29:K29) -> 0 | U29: =T29/O29 -> 0 | V29: =SUM(L29:N29) -> 0 | W29: =V29/O29 -> 0
A30: 손해사정사 | B30: 0 | C30: =C10+C20 -> 0 | D30: 0 | E30: 0 | F30: 0 | G30: 0 | H30: 0 | I30: 0 | J30: 0 | K30: 0 | L30: 0 | M30: 0 | N30: 0 | O30: =B30 -> 0 | P30: 0 | R30: 0 | T30: 0 | V30: 0 | W30: =V30/O30 -> 
A31: 민원상담위원 | B31: 195 | C31: =C11+C21 -> 116 | D31: 79 | E31: 0 | F31: 0 | G31: 0 | H31: 0 | I31: 0 | J31: 0 | K31: 0 | L31: 0 | M31: 0 | N31: 0 | O31: 195 | P31: 195 | Q31: 1 | R31: 0 | S31: 0 | T31: 0 | U31: 0 | V31: 0 | W31: 0

Sheet 6.부패신고상담
A1: 6. 부패신고상담
A3: □ 부패행위 신고상담
A4: 구분 | B4: 계 | C4: 1월 | D4: 2월 | E4: 3월 | F4: 4월 | G4: 5월 | H4: 6월 | I4: 7월 | J4: 8월 | K4: 9월 | L4: 10월 | M4: 11월 | N4: 12월 | O4: 합계 | P4: 1분기 | Q4: 비율 | R4: 2분기 | S4: 비율 | T4: 3분기 | U4: 비율 | V4: 4분기 | W4: 비율
A5: 계 | B5: =SUM(B6:B8) -> 970 | C5: 554 | D5: =SUM(D6:D8) -> 416 | E5: =SUM(E6:E8) -> 0 | F5: =SUM(F6:F8) -> 0 | G5: =SUM(G6:G8) -> 0 | H5: 0 | I5: 0 | J5: 0 | K5: 0 | L5: 0 | M5: 0 | N5: 0 | O5: =B5 -> 970 | P5: =SUM(C5:E5) -> 970 | Q5: =P5/O5 -> 1 | R5: =SUM(F5:H5) -> 0 | S5: =R5/O5 -> 0 | T5: =SUM(I5:K5) -> 0 | U5: =T5/O5 -> 0 | V5: =SUM(L5:N5) -> 0 | W5: =V5/O5 -> 0
A6: 방문 | B6: =SUM(C6:N6) -> 26 | C6: 18 | D6: 8 | O6: =B6 -> 26 | P6: =SUM(C6:E6) -> 26 | Q6: =P6/O6 -> 1 | R6: =SUM(F6:H6) -> 0 | S6: =R6/O6 -> 0 | T6: =SUM(I6:K6) -> 0 | U6: =T6/O6 -> 0 | V6: =SUM(L6:N6) -> 0 | W6: =V6/O6 -> 0
A7: 전화 | B7: =SUM(C7:N7) -> 744 | C7: 411 | D7: 333 | O7: =B7 -> 744 | P7: =SUM(C7:E7) -> 744 | Q7: =P7/O7 -> 1 | R7: =SUM(F7:H7) -> 0 | S7: =R7/O7 -> 0 | T7: =SUM(I7:K7) -> 0 | U7: =T7/O7 -> 0 | V7: =SUM(L7:N7) -> 0 | W7: =V7/O7 -> 0
A8: 온라인 | B8: =SUM(C8:N8) -> 200 | C8: 125 | D8: 75 | O8: =B8 -> 200 | P8: =SUM(C8:E8) -> 200 | Q8: =P8/O8 -> 1 | R8: =SUM(F8:H8) -> 0 | S8: =R8/O8 -> 0 | T8: =SUM(I8:K8) -> 0 | U8: =T8/O8 -> 0 | V8: =SUM(L8:N8) -> 0 | W8: =V8/O8 -> 0
A10: □ 행동강령 신고상담
A11: 구분 | B11: 계 | C11: 1월 | D11: 2월 | E11: 3월 | F11: 4월 | G11: 5월 | H11: 6월 | I11: 7월 | J11: 8월 | K11: 9월 | L11: 10월 | M11: 11월 | N11: 12월 | O11: 합계 | P11: 1분기 | Q11: 비율 | R11: 2분기 | S11: 비율 | T11: 3분기 | U11: 비율 | V11: 4분기 | W11: 비율
A12: 계 | B12: =SUM(B13:B15) -> 44 | C12: 26 | D12: =SUM(D13:D15) -> 18 | E12: =SUM(E13:E15) -> 0 | F12: =SUM(F13:F15) -> 0 | G12: 0 | H12: 0 | I12: 0 | J12: 0 | K12: 0 | L12: 0 | M12: 0 | N12: 0 | O12: =B12 -> 44 | P12: =SUM(C12:E12) -> 44 | Q12: =P12/O12 -> 1 | R12: =SUM(F12:H12) -> 0 | S12: =R12/O12 -> 0 | T12: =SUM(I12:K12) -> 0 | U12: =T12/O12 -> 0 | V12: =SUM(L12:N12) -> 0 | W12: =V12/O12 -> 0
A13: 방문 | B13: =SUM(C13:N13) -> 0 | C13: 0 | D13: 0 | O13: =B13 -> 0 | P13: =SUM(C13:E13) -> 0 | Q13: =P13/O13 ->  | R13: =SUM(F13:H13) -> 0 | S13: =R13/O13 ->  | T13: =SUM(I13:K13) -> 0 | U13: =T13/O13 ->  | V13: =SUM(L13:N13) -> 0 | W13: =V13/O13 -> 
A14: 전화 | B14: =SUM(C14:N14) -> 20 | C14: 11 | D14: 9 | O14: =B14 -> 20 | P14: =SUM(C14:E14) -> 20 | Q14: =P14/O14 -> 1 | R14: =SUM(F14:H14) -> 0 | S14: =R14/O14 -> 0 | T14: =SUM(I14:K14) -> 0 | U14: =T14/O14 -> 0 | V14: =SUM(L14:N14) -> 0 | W14: =V14/O14 -> 0
A15: 온라인 | B15: =SUM(C15:N15) -> 24 | C15: 15 | D15: 9 | O15: =B15 -> 24 | P15: =SUM(C15:E15) -> 24 | Q15: =P15/O15 -> 1 | R15: =SUM(F15:H15) -> 0 | S15: =R15/O15 -> 0 | T15: =SUM(I15:K15) -> 0 | U15: =T15/O15 -> 0 | V15: =SUM(L15:N15) -> 0 | W15: =V15/O15 -> 0
A17: □ 공익침해 신고상담
A18: 구분 | B18: 계 | C18: 1월 | D18: 2월 | E18: 3월 | F18: 4월 | G18: 5월 | H18: 6월 | I18: 7월 | J18: 8월 | K18: 9월 | L18: 10월 | M18: 11월 | N18: 12월 | O18: 합계 | P18: 1분기 | Q18: 비율 | R18: 2분기 | S18: 비율 | T18: 3분기 | U18: 비율 | V18: 4분기 | W18: 비율
A19: 계 | B19: =SUM(B20:B22) -> 622 | C19: 353 | D19: 269 | E19: 0 | F19: =SUM(F20:F22) -> 0 | G19: 0 | H19: =SUM(H20:H22) -> 0 | I19: 0 | J19: 0 | K19: 0 | L19: 0 | M19: 0 | N19: 0 | O19: =B19 -> 622 | P19: =SUM(C19:E19) -> 622 | Q19: =P19/O19 -> 1 | R19: =SUM(F19:H19) -> 0 | S19: =R19/O19 -> 0 | T19: =SUM(I19:K19) -> 0 | U19: =T19/O19 -> 0 | V19: =SUM(L19:N19) -> 0 | W19: =V19/O19 -> 0
A20: 방문 | B20: =SUM(C20:N20) -> 9 | C20: 3 | D20: 6 | O20: =B20 -> 9 | P20: =SUM(C20:E20) -> 9 | Q20: =P20/O20 -> 1 | R20: =SUM(F20:H20) -> 0 | S20: =R20/O20 -> 0 | T20: =SUM(I20:K20) -> 0 | U20: =T20/O20 -> 0 | V20: =SUM(L20:N20) -> 0 | W20: =V20/O20 -> 0
A21: 전화 | B21: =SUM(C21:N21) -> 328 | C21: 188 | D21: 140 | O21: =B21 -> 328 | P21: =SUM(C21:E21) -> 328 | Q21: =P21/O21 -> 1 | R21: =SUM(F21:H21) -> 0 | S21: =R21/O21 -> 0 | T21: =SUM(I21:K21) -> 0 | U21: =T21/O21 -> 0 | V21: =SUM(L21:N21) -> 0 | W21: =V21/O21 -> 0
A22: 온라인 | B22: =SUM(C22:N22) -> 285 | C22: 162 | D22: 123 | O22: =B22 -> 285 | P22: =SUM(C22:E22) -> 285 | Q22: =P22/O22 -> 1 | R22: =SUM(F22:H22) -> 0 | S22: =R22/O22 -> 0 | T22: =SUM(I22:K22) -> 0 | U22: =T22/O22 -> 0 | V22: =SUM(L22:N22) -> 0 | W22: =V22/O22 -> 0
A24: □ 부정청탁 신고상담
A25: 구분 | B25: 계 | C25: 1월 | D25: 2월 | E25: 3월 | F25: 4월 | G25: 5월 | H25: 6월 | I25: 7월 | J25: 8월 | K25: 9월 | L25: 10월 | M25: 11월 | N25: 12월 | O25: 합계 | P25: 1분기 | Q25: 비율 | R25: 2분기 | S25: 비율 | T25: 3분기 | U25: 비율 | V25: 4분기 | W25: 비율
A26: 계 | B26: =SUM(C26:N26) -> 161 | C26: =SUM(C27:C29) -> 74 | D26: =SUM(D27:D29) -> 87 | E26: =SUM(E27:E29) -> 0 | F26: =SUM(F27:F29) -> 0 | G26: =SUM(G27:G29) -> 0 | H26: =SUM(H27:H29) -> 0 | I26: 0 | J26: 0 | K26: 0 | L26: 0 | M26: 0 | N26: 0 | O26: =B26 -> 161 | P26: =SUM(C26:E26) -> 161 | Q26: =P26/O26 -> 1 | R26: =SUM(F26:H26) -> 0 | S26: =R26/O26 -> 0 | T26: =SUM(I26:K26) -> 0 | U26: =T26/O26 -> 0 | V26: =SUM(L26:N26) -> 0 | W26: =V26/O26 -> 0
A27: 방문 | B27: =SUM(C27:N27) -> 1 | C27: 1 | D27: 0 | O27: =B27 -> 1 | P27: =SUM(C27:E27) -> 1 | Q27: =P27/O27 -> 1 | R27: =SUM(F27:H27) -> 0 | S27: =R27/O27 -> 0 | T27: =SUM(I27:K27) -> 0 | U27: =T27/O27 -> 0 | V27: =SUM(L27:N27) -> 0 | W27: =V27/O27 -> 0
A28: 전화 | B28: =SUM(C28:N28) -> 110 | C28: 43 | D28: 67 | O28: =B28 -> 110 | P28: =SUM(C28:E28) -> 110 | Q28: =P28/O28 -> 1 | R28: =SUM(F28:H28) -> 0 | S28: =R28/O28 -> 0 | T28: =SUM(I28:K28) -> 0 | U28: =T28/O28 -> 0 | V28: =SUM(L28:N28) -> 0 | W28: =V28/O28 -> 0
A29: 온라인 | B29: =SUM(C29:N29) -> 50 | C29: 30 | D29: 20 | O29: =B29 -> 50 | P29: =SUM(C29:E29) -> 50 | Q29: =P29/O29 -> 1 | R29: =SUM(F29:H29) -> 0 | S29: =R29/O29 -> 0 | T29: =SUM(I29:K29) -> 0 | U29: =T29/O29 -> 0 | V29: =SUM(L29:N29) -> 0 | W29: =V29/O29 -> 0
A31: □ 공공재정환수 신고상담(부정청구에서 변경)
A32: 구분 | B32: 계 | C32: 1월 | D32: 2월 | E32: 3월 | F32: 4월 | G32: 5월 | H32: 6월 | I32: 7월 | J32: 8월 | K32: 9월 | L32: 10월 | M32: 11월 | N32: 12월 | O32: 합계 | P32: 1분기 | Q32: 비율 | R32: 2분기 | S32: 비율 | T32: 3분기 | U32: 비율 | V32: 4분기 | W32: 비율
A33: 계 | B33: =SUM(C33:N33) -> 343 | C33: =SUM(C34:C36) -> 194 | D33: =SUM(D34:D36) -> 149 | E33: =SUM(E34:E36) -> 0 | F33: =SUM(F34:F36) -> 0 | G33: 0 | H33: =SUM(H34:H36) -> 0 | I33: 0 | J33: 0 | K33: 0 | L33: 0 | M33: 0 | N33: 0 | O33: =B33 -> 343 | P33: =SUM(C33:E33) -> 343 | Q33: =P33/O33 -> 1 | R33: =SUM(F33:H33) -> 0 | S33: =R33/O33 -> 0 | T33: =SUM(I33:K33) -> 0 | U33: =T33/O33 -> 0 | V33: =SUM(L33:N33) -> 0 | W33: =V33/O33 -> 0
A34: 방문 | B34: =SUM(C34:N34) -> 3 | C34: 1 | D34: 2 | P34: =SUM(C34:E34) -> 3 | Q34: =P34/O34 ->  | R34: =SUM(F34:H34) -> 0 | S34: =R34/O34 ->  | T34: =SUM(I34:K34) -> 0 | U34: =T34/O34 ->  | V34: =SUM(L34:N34) -> 0 | W34: =V34/O34 -> 
A35: 전화 | B35: =SUM(C35:N35) -> 226 | C35: 116 | D35: 110 | P35: =SUM(C35:E35) -> 226 | Q35: =P35/O35 ->  | R35: =SUM(F35:H35) -> 0 | S35: =R35/O35 ->  | T35: =SUM(I35:K35) -> 0 | U35: =T35/O35 ->  | V35: =SUM(L35:N35) -> 0 | W35: =V35/O35 -> 
A36: 온라인 | B36: =SUM(C36:N36) -> 114 | C36: 77 | D36: 37 | P36: =SUM(C36:E36) -> 114 | Q36: =P36/O36 ->  | R36: =SUM(F36:H36) -> 0 | S36: =R36/O36 ->  | T36: =SUM(I36:K36) -> 0 | U36: =T36/O36 ->  | V36: =SUM(L36:N36) -> 0 | W36: =V36/O36 -> 
A38: □ 이해충돌방지 신고상담(2023.5.19 시행)
A39: 구분 | B39: 계 | C39: 1월 | D39: 2월 | E39: 3월 | F39: 4월 | G39: 5월 | H39: 6월 | I39: 7월 | J39: 8월 | K39: 9월 | L39: 10월 | M39: 11월 | N39: 12월 | O39: 합계 | P39: 1분기 | Q39: 비율 | R39: 2분기 | S39: 비율 | T39: 3분기 | U39: 비율 | V39: 4분기 | W39: 비율
A40: 계 | B40: =SUM(C40:N40) -> 31 | C40: =SUM(C41:C43) -> 19 | D40: =SUM(D41:D43) -> 12 | E40: =SUM(E41:E43) -> 0 | F40: =SUM(F41:F43) -> 0 | G40: 0 | H40: =SUM(H41:H43) -> 0 | I40: 0 | J40: 0 | K40: 0 | L40: 0 | M40: 0 | N40: 0 | O40: =B40 -> 31 | P40: =SUM(C40:E40) -> 31 | Q40: =P40/O40 -> 1 | R40: =SUM(F40:H40) -> 0 | S40: =R40/O40 -> 0 | T40: =SUM(I40:K40) -> 0 | U40: =T40/O40 -> 0 | V40: =SUM(L40:N40) -> 0 | W40: =V40/O40 -> 0
A41: 방문 | B41: =SUM(C41:N41) -> 0 | C41: 0 | O41: =B41 -> 0 | P41: =SUM(C41:E41) -> 0 | Q41: =P41/O41 ->  | R41: =SUM(F41:H41) -> 0 | S41: =R41/O41 ->  | T41: =SUM(I41:K41) -> 0 | U41: =T41/O41 ->  | V41: =SUM(L41:N41) -> 0 | W41: =V41/O41 -> 
A42: 전화 | B42: =SUM(C42:N42) -> 27 | C42: 16 | D42: 11 | O42: =B42 -> 27 | P42: =SUM(C42:E42) -> 27 | Q42: =P42/O42 -> 1 | R42: =SUM(F42:H42) -> 0 | S42: =R42/O42 -> 0 | T42: =SUM(I42:K42) -> 0 | U42: =T42/O42 -> 0 | V42: =SUM(L42:N42) -> 0 | W42: =V42/O42 -> 0
A43: 온라인 | B43: =SUM(C43:N43) -> 4 | C43: 3 | D43: 1 | O43: =B43 -> 4 | P43: =SUM(C43:E43) -> 4 | Q43: =P43/O43 -> 1 | R43: =SUM(F43:H43) -> 0 | S43: =R43/O43 -> 0 | T43: =SUM(I43:K43) -> 0 | U43: =T43/O43 -> 0 | V43: =SUM(L43:N43) -> 0 | W43: =V43/O43 -> 0
A45: ■ 신고상담 총괄
A46: 구분 | B46: 계 | C46: 1월 | D46: 2월 | E46: 3월 | F46: 4월 | G46: 5월 | H46: 6월 | I46: 7월 | J46: 8월 | K46: 9월 | L46: 10월 | M46: 11월 | N46: 12월 | O46: 합계 | P46: 1분기 | Q46: 비율 | R46: 2분기 | S46: 비율 | T46: 3분기 | U46: 비율 | V46: 4분기 | W46: 비율
A47: 계 | B47: =SUM(C47:N47) -> 2171 | C47: =SUM(C48:C50) -> 1220 | D47: =SUM(D48:D50) -> 951 | E47: =SUM(E48:E50) -> 0 | F47: =SUM(F48:F50) -> 0 | G47: 0 | H47: =SUM(H48:H50) -> 0 | I47: 0 | J47: 0 | K47: 0 | L47: 0 | M47: 0 | N47: 0 | O47: =B47 -> 2171 | P47: =SUM(C47:E47) -> 2171 | Q47: =P47/O47 -> 1 | R47: =SUM(F47:H47) -> 0 | S47: =R47/O47 -> 0 | T47: =SUM(I47:K47) -> 0 | U47: =T47/O47 -> 0 | V47: =SUM(L47:N47) -> 0 | W47: =V47/O47 -> 0
A48: 방문 | B48: =SUM(C48:N48) -> 39 | C48: =SUM(C6,C13,C20,C27,C34,C41) -> 23 | D48: =SUM(D6,D13,D20,D27,D34,D41) -> 16 | E48: 0 | F48: 0 | G48: 0 | H48: =SUM(H6,H13,H20,H27,H34,H41) -> 0 | I48: 0 | J48: 0 | K48: 0 | L48: 0 | M48: 0 | N48: 0 | O48: =B48 -> 39 | P48: =SUM(C48:E48) -> 39 | Q48: =P48/O48 -> 1 | R48: =SUM(F48:H48) -> 0 | S48: =R48/O48 -> 0 | T48: =SUM(I48:K48) -> 0 | U48: =T48/O48 -> 0 | V48: =SUM(L48:N48) -> 0 | W48: =V48/O48 -> 0
A49: 전화 | B49: =SUM(C49:N49) -> 1455 | C49: =SUM(C7,C14,C21,C28,C35,C42) -> 785 | D49: 670 | E49: 0 | F49: 0 | G49: 0 | H49: 0 | I49: 0 | J49: 0 | K49: 0 | L49: 0 | M49: 0 | N49: 0 | O49: =B49 -> 1455 | P49: =SUM(C49:E49) -> 1455 | Q49: =P49/O49 -> 1 | R49: =SUM(F49:H49) -> 0 | S49: =R49/O49 -> 0 | T49: =SUM(I49:K49) -> 0 | U49: =T49/O49 -> 0 | V49: =SUM(L49:N49) -> 0 | W49: =V49/O49 -> 0
A50: 온라인 | B50: =SUM(C50:N50) -> 677 | C50: 412 | D50: 265 | E50: 0 | F50: 0 | G50: 0 | H50: 0 | I50: 0 | J50: 0 | K50: 0 | L50: 0 | M50: 0 | N50: 0 | O50: =B50 -> 677 | P50: =SUM(C50:E50) -> 677 | Q50: =P50/O50 -> 1 | R50: =SUM(F50:H50) -> 0 | S50: =R50/O50 -> 0 | T50: =SUM(I50:K50) -> 0 | U50: =T50/O50 -> 0 | V50: =SUM(L50:N50) -> 0 | W50: =V50/O50 -> 0
A52: □ 경로별 상담현황 | F52: <기준> 신청일: 2017, 2018 답변일: 2019, 2020 | J52: 19
A53: 구분 | B53: 합계 | C53: 2017년 | D53: 2018년 | E53: 2019년 | F53: 2020년 | G53: 2021년 | H53: 2022년 | I53: 2023년 | J53: 2024년 | K53: 2025년 | L53: 2026년
A54: 합계 | B54: 60704 | C54: 14641 | D54: 15154 | E54: 17560 | F54: 13349 | G54: 11878 | H54: 11814 | I54: 12769 | J54: 13108 | K54: 12769 | L54: =L56+L58+L60 -> 2171
B55: 1 | C55: 1 | D55: 1 | E55: 1 | F55: 1 | G55: 1 | H55: 1 | I55: 1 | J55: 1 | K55: 1 | L55: =L54/L54 -> 1
A56: 방문 | B56: 2482 | C56: 421 | D56: 598 | E56: 849 | F56: 614 | G56: 627 | H56: 303 | I56: 116 | J56: 167 | K56: 116 | L56: =B48 -> 39
B57: 0.04088692673 | C57: 0.02875486647 | D57: 0.03946152831 | E57: 0.04834851936 | F57: 0.04599595475 | G57: 0.05278666442 | H57: 0.02564753682 | I57: 0.009084501527 | J57: 0.01274031126 | K57: 0.009084501527 | L57: =L56/L54 -> 0.01796407186
A58: 전화 | B58: 51011 | C58: 13472 | D58: 13487 | E58: 13841 | F58: 10211 | G58: 8639 | H58: 8576 | I58: 9326 | J58: 9418 | K58: 9326 | L58: =B49 -> 1455
B59: 0.8403235372 | C59: 0.9201557271 | D59: 0.8899960406 | E59: 0.7882118451 | F59: 0.7649262117 | G59: 0.7273109951 | H59: 0.7259184019 | I59: 0.7303625969 | J59: 0.7184925236 | K59: 0.7303625969 | L59: =L58/L54 -> 0.6701980654
A60: 온라인 | B60: 7211 | C60: 748 | D60: 1069 | E60: 2870 | F60: 2524 | G60: 2612 | H60: 2935 | I60: 3327 | J60: 3523 | K60: 3327 | L60: =B50 -> 677
B61: 0.1187895361 | C61: 0.05108940646 | D61: 0.07054243104 | E61: 0.1634396355 | F61: 0.1890778335 | G61: 0.2199023405 | H61: 0.2484340613 | I61: 0.2605529016 | J61: 0.2687671651 | K61: 0.2605529016 | L61: =L60/L54 -> 0.3118378627
L62: =SUM(L56:L61) -> 2172
A63: 유형별 상담현황
A64: 구분 | B64: 2018년 | C64: 2019년 | D64: 2020년 | E64: 2021년 | F64: 2022년 | G64: 2023년 | H64: 2024년 | I64: 2025년 | J64: 2026년
A65: 합계 | B65: 15154 | C65: 17560 | D65: 13349 | E65: 11878 | F65: 11814 | G65: 12769 | H65: 13108 | I65: 12769 | J65: =J67+J69+J71 -> 2171
B66: 1 | C66: 1 | D66: 1 | E66: 1 | F66: 1 | G66: 1 | H66: 1 | I66: 1 | J66: =J65/J65 -> 1
A67: 부패 | B67: 11003 | C67: 13489 | D67: 10340 | E67: 9028 | F67: 8650 | G67: 8559 | H67: 9577 | I67: 8559 | J67: =B33+B12+B5+B40 -> 1388
B68: 0.7260789231 | C68: 0.768166287 | D68: 0.7745898569 | E68: 0.7600606163 | F68: 0.7321821568 | G68: 0.6702952463 | H68: 0.7306225206 | I68: 0.6702952463 | J68: =J67/J65 -> 0.6393367112
A69: 공익 | B69: 1358 | C69: 1675 | D69: 1899 | E69: 2131 | F69: 2368 | G69: 3017 | H69: 2158 | I69: 3017 | J69: =B19 -> 622
B70: 0.08961330342 | C70: 0.09538724374 | D70: 0.142257847 | E70: 0.1794073076 | F70: 0.2004401557 | G70: 0.2362753544 | H70: 0.1646322856 | I70: 0.2362753544 | J70: =J69/J65 -> 0.2865039152
A71: 부정청탁 | B71: 2793 | C71: 2396 | D71: 1110 | E71: 719 | F71: 796 | G71: 1193 | H71: 1373 | I71: 1193 | J71: =B26 -> 161
B72: 0.1843077735 | C72: 0.1364464692 | D72: 0.08315229605 | E72: 0.06053207611 | F72: 0.06737768749 | G72: 0.09342939933 | H72: 0.1047451938 | I72: 0.09342939933 | J72: =J71/J65 -> 0.07415937356

Sheet 7.행정심판상담
A1: 7. 행정심판 상담 | N1: (단위 : 건)
A3: 구분 | B3: 합계 | C3: 1월 | D3: 2월 | E3: 3월 | F3: 4월 | G3: 5월 | H3: 6월 | I3: 7월 | J3: 8월 | K3: 9월 | L3: 10월 | M3: 11월 | N3: 12월 | O3: 합계 | P3: 1분기 | Q3: 비율 | R3: 2분기 | S3: 비율 | T3: 3분기 | U3: 비율 | V3: 4분기 | W3: 비율
A4: 서울 | B4: =SUM(C4:N4) -> 0 | O4: =B4 -> 0 | P4: =SUM(C4:E4) -> 0 | Q4: =P4/O4 ->  | R4: =SUM(F4:H4) -> 0 | S4: =R4/O4 ->  | T4: =SUM(I4:K4) -> 0 | U4: =T4/O4 ->  | V4: =SUM(L4:N4) -> 0 | W4: =V4/O4 -> 
A5: 세종 | B5: =SUM(C5:N5) -> 20 | C5: 13 | D5: 7 | O5: =B5 -> 20 | P5: =SUM(C5:E5) -> 20 | Q5: =P5/O5 -> 1 | R5: =SUM(F5:H5) -> 0 | S5: =R5/O5 -> 0 | T5: =SUM(I5:K5) -> 0 | U5: =T5/O5 -> 0 | V5: =SUM(L5:N5) -> 0 | W5: =V5/O5 -> 0
A6: 합계 | B6: =SUM(C6:N6) -> 20 | C6: =SUM(C4:C5) -> 13 | D6: =SUM(D4:D5) -> 7 | E6: 0 | F6: 0 | G6: 0 | H6: 0 | I6: 0 | J6: 0 | K6: 0 | L6: 0 | M6: 0 | N6: 0 | O6: =B6 -> 20 | P6: =SUM(C6:E6) -> 20 | Q6: =P6/O6 -> 1 | R6: =SUM(F6:H6) -> 0 | S6: =R6/O6 -> 0 | T6: =SUM(I6:K6) -> 0 | U6: =T6/O6 -> 0 | V6: =SUM(L6:N6) -> 0 | W6: =V6/O6 -> 0

Sheet 8.접수
A1: 8. 각종 서류접수
A3: □ 민원접수 | N3: (단위 : 건)
A4: 구분 | B4: 합계 | C4: 1월 | D4: 2월 | E4: 3월 | F4: 4월 | G4: 5월 | H4: 6월 | I4: 7월 | J4: 8월 | K4: 9월 | L4: 10월 | M4: 11월 | N4: 12월 | O4: 합계 | P4: 1분기 | Q4: 비율 | R4: 2분기 | S4: 비율 | T4: 3분기 | U4: 비율 | V4: 4분기 | W4: 비율
A5: 서울 | B5: =SUM(C5:N5) -> 670 | C5: 441 | D5: 229 | O5: =B5 -> 670 | P5: =SUM(C5:E5) -> 670 | Q5: =P5/O5 -> 1 | R5: =SUM(F5:H5) -> 0 | S5: =R5/O5 -> 0 | T5: =SUM(I5:K5) -> 0 | U5: =T5/O5 -> 0 | V5: =SUM(L5:N5) -> 0 | W5: =V5/O5 -> 0
A6: 세종 | B6: =SUM(C6:N6) -> 150 | C6: 78 | D6: 72 | O6: =B6 -> 150 | P6: =SUM(C6:E6) -> 150 | Q6: =P6/O6 -> 1 | R6: =SUM(F6:H6) -> 0 | S6: =R6/O6 -> 0 | T6: =SUM(I6:K6) -> 0 | U6: =T6/O6 -> 0 | V6: =SUM(L6:N6) -> 0 | W6: =V6/O6 -> 0
A7: 합계 | B7: =SUM(C7:N7) -> 820 | C7: =SUM(C5:C6) -> 519 | D7: 301 | E7: 0 | F7: 0 | G7: 0 | H7: 0 | I7: 0 | J7: 0 | K7: 0 | L7: 0 | M7: 0 | N7: 0 | O7: =B7 -> 820 | P7: =SUM(C7:E7) -> 820 | Q7: =P7/O7 -> 1 | R7: =SUM(F7:H7) -> 0 | S7: =R7/O7 -> 0 | T7: =SUM(I7:K7) -> 0 | U7: =T7/O7 -> 0 | V7: =SUM(L7:N7) -> 0 | W7: =V7/O7 -> 0
A9: □ 신고접수 | N9: (단위 : 건)
A10: 구분 | B10: 합계 | C10: 1월 | D10: 2월 | E10: 3월 | F10: 4월 | G10: 5월 | H10: 6월 | I10: 7월 | J10: 8월 | K10: 9월 | L10: 10월 | M10: 11월 | N10: 12월 | O10: 합계 | P10: 1분기 | Q10: 비율 | R10: 2분기 | S10: 비율 | T10: 3분기 | U10: 비율 | V10: 4분기 | W10: 비율
A11: 서울 | B11: =SUM(C11:N11) -> 36 | C11: 19 | D11: 17 | O11: =B11 -> 36 | P11: =SUM(C11:E11) -> 36 | Q11: =P11/O11 -> 1 | R11: =SUM(F11:H11) -> 0 | S11: =R11/O11 -> 0 | T11: =SUM(I11:K11) -> 0 | U11: =T11/O11 -> 0 | V11: =SUM(L11:N11) -> 0 | W11: =V11/O11 -> 0
A13: □ 행정심판 접수 | N13: (단위 : 건)
A14: 구분 | B14: 합계 | C14: 1월 | D14: 2월 | E14: 3월 | F14: 4월 | G14: 5월 | H14: 6월 | I14: 7월 | J14: 8월 | K14: 9월 | L14: 10월 | M14: 11월 | N14: 12월 | O14: 합계 | P14: 1분기 | Q14: 비율 | R14: 2분기 | S14: 비율 | T14: 3분기 | U14: 비율 | V14: 4분기 | W14: 비율
A15: 서울 | B15: =SUM(C15:N15) -> 0 | C15: 0 | D15: 0 | O15: =B15 -> 0 | P15: =SUM(C15:E15) -> 0 | Q15: =P15/O15 ->  | R15: =SUM(F15:H15) -> 0 | S15: =R15/O15 ->  | T15: =SUM(I15:K15) -> 0 | U15: =T15/O15 ->  | V15: =SUM(L15:N15) -> 0 | W15: =V15/O15 -> 
A16: 세종 | B16: =SUM(C16:N16) -> 35 | C16: 19 | D16: 16 | O16: =B16 -> 35 | P16: =SUM(C16:E16) -> 35 | Q16: =P16/O16 -> 1 | R16: =SUM(F16:H16) -> 0 | S16: =R16/O16 -> 0 | T16: =SUM(I16:K16) -> 0 | U16: =T16/O16 -> 0 | V16: =SUM(L16:N16) -> 0 | W16: =V16/O16 -> 0
A17: 합계 | B17: =SUM(B15:B16) -> 35 | C17: =SUM(C15:C16) -> 19 | D17: =SUM(D15:D16) -> 16 | E17: 0 | F17: 0 | G17: 0 | H17: 0 | I17: 0 | J17: 0 | K17: 0 | L17: 0 | M17: 0 | N17: 0 | O17: =B17 -> 35 | P17: =SUM(C17:E17) -> 35 | Q17: =P17/O17 -> 1 | R17: =SUM(F17:H17) -> 0 | S17: =R17/O17 -> 0 | T17: =SUM(I17:K17) -> 0 | U17: =T17/O17 -> 0 | V17: =SUM(L17:N17) -> 0 | W17: =V17/O17 -> 0
A19: □ 대통령실민원 접수 | N19: (단위 : 건)
A20: 구분 | B20: 합계 | C20: 1월 | D20: 2월 | E20: 3월 | F20: 4월 | G20: 5월 | H20: 6월 | I20: 7월 | J20: 8월 | K20: 9월 | L20: 10월 | M20: 11월 | N20: 12월 | O20: 합계 | P20: 1분기 | Q20: 비율 | R20: 2분기 | S20: 비율 | T20: 3분기 | U20: 비율 | V20: 4분기 | W20: 비율
A21: 서신 | B21: =SUM(C21:N21) -> 4006 | C21: 2224 | D21: 1782 | O21: =B21 -> 4006 | P21: =SUM(C21:E21) -> 4006 | Q21: =P21/O21 -> 1 | R21: =SUM(F21:H21) -> 0 | S21: =R21/O21 -> 0 | T21: =SUM(I21:K21) -> 0 | U21: =T21/O21 -> 0 | V21: =SUM(L21:N21) -> 0 | W21: =V21/O21 -> 0
C23: * 대비실민원 접수건수는 기관을 조정하는 과정에서 다부처지정 등으로 전월 숫자에 변동이 생김 (줄거나 늘어남)
A26: < 총 괄, 서울+세종 >
A27: 구분 | B27: 합계 | C27: 1월 | D27: 2월 | E27: 3월 | F27: 4월 | G27: 5월 | H27: 6월 | I27: 7월 | J27: 8월 | K27: 9월 | L27: 10월 | M27: 11월 | N27: 12월 | O27: 합계 | P27: 1분기 | Q27: 비율 | R27: 2분기 | S27: 비율 | T27: 3분기 | U27: 비율 | V27: 4분기 | W27: 비율
A28: 합계 | B28: =SUM(C28:N28) -> 820 | C28: =C48+C65 -> 519 | D28: =D48+D65 -> 301 | E28: 0 | F28: 0 | G28: 0 | H28: 0 | I28: 0 | J28: 0 | K28: 0 | L28: 0 | M28: 0 | N28: 0 | O28: =B28 -> 820 | P28: =SUM(C28:E28) -> 820 | Q28: =P28/O28 -> 1 | R28: =SUM(F28:H28) -> 0 | S28: =R28/O28 -> 0 | T28: =SUM(I28:K28) -> 0 | U28: =T28/O28 -> 0 | V28: =SUM(L28:N28) -> 0 | W28: =V28/O28 -> 0
A29: 고충(계) | B29: =SUM(B30:B36) -> 778 | C29: 512 | D29: 266 | E29: 0 | F29: 0 | G29: 0 | H29: 0 | I29: 0 | J29: 0 | K29: 0 | L29: =SUM(L30:L36) -> 0 | M29: =SUM(M30:M36) -> 0 | N29: =SUM(N30:N36) -> 0 | O29: =B29 -> 778 | P29: =C29+D29+E29 -> 778 | Q29: =P29/O29 -> 1 | R29: =F29+G29+H29 -> 0 | S29: =R29/O29 -> 0 | T29: =I29+J29+K29 -> 0 | U29: =T29/O29 -> 0 | V29: =L29+M29+N29 -> 0 | W29: =V29/O29 -> 0
A30: FAX | B30: =SUM(C30:N30) -> 1 | C30: =C50+C67 -> 0 | D30: =D50+D67 -> 1 | E30: 0 | F30: 0 | G30: 0 | H30: 0 | I30: 0 | J30: 0 | K30: 0 | L30: 0 | M30: 0 | N30: 0 | O30: 1 | P30: =C30+D30+E30 -> 1 | Q30: 1 | R30: =F30+G30+H30 -> 0 | S30: 0 | T30: =I30+J30+K30 -> 0 | U30: 0 | V30: =L30+M30+N30 -> 0 | W30: 0
A31: 방문 | B31: 634 | C31: =C51+C68 -> 425 | D31: 209 | E31: 0 | F31: 0 | G31: 0 | H31: 0 | I31: 0 | J31: 0 | K31: 0 | L31: 0 | M31: 0 | N31: 0 | O31: 634 | P31: 634 | Q31: 1 | R31: 0 | S31: 0 | T31: 0 | U31: 0 | V31: 0 | W31: 0
A32: 방문전화 | B32: 0 | C32: 0 | D32: 0 | E32: 0 | F32: 0 | G32: 0 | H32: 0 | I32: 0 | J32: 0 | K32: 0 | L32: 0 | M32: 0 | N32: 0 | O32: =B32 -> 0
A33: 우편 | B33: 143 | C33: =C53+C70 -> 87 | D33: 56 | E33: 0 | F33: 0 | G33: 0 | H33: 0 | I33: 0 | J33: 0 | K33: 0 | L33: 0 | M33: 0 | N33: 0 | O33: 143 | P33: 143 | Q33: 1 | R33: 0 | S33: 0 | T33: 0 | U33: 0 | V33: 0 | W33: 0
A34: 인터넷 | B34: 0 | C34: =C54+C71 -> 0 | D34: 0 | E34: 0 | F34: 0 | G34: 0 | H34: 0 | I34: 0 | J34: 0 | K34: 0 | L34: 0 | M34: 0 | N34: 0 | O34: =B34 -> 0 | P34: =C34+D34+E34 -> 0 | Q34: =P34/O34 ->  | R34: =F34+G34+H34 -> 0 | S34: =R34/O34 ->  | T34: =I34+J34+K34 -> 0 | U34: =T34/O34 ->  | V34: =L34+M34+N34 -> 0 | W34: =V34/O34 -> 
A35: 전화 | B35: 0 | C35: =C55+C72 -> 0 | D35: 0 | E35: 0 | F35: 0 | G35: 0 | H35: 0 | I35: 0 | J35: 0 | K35: 0 | L35: 0 | M35: 0 | N35: 0 | O35: =B35 -> 0 | P35: =C35+D35+E35 -> 0 | Q35: =P35/O35 ->  | R35: =F35+G35+H35 -> 0 | S35: =R35/O35 ->  | T35: =I35+J35+K35 -> 0 | U35: =T35/O35 ->  | V35: =L35+M35+N35 -> 0 | W35: =V35/O35 -> 
A36: 화상 | B36: 0 | C36: =C56+C73 -> 0 | D36: 0 | E36: 0 | F36: 0 | G36: 0 | H36: 0 | I36: 0 | J36: 0 | K36: 0 | L36: 0 | M36: 0 | N36: 0 | O36: 0 | P36: 0 | R36: 0 | T36: 0 | V36: 0
A37: 일반(계) | B37: 42 | C37: =SUM(C38:C44) -> 7 | D37: 35 | E37: 0 | F37: 0 | G37: 0 | H37: 0 | I37: 0 | J37: 0 | K37: 0 | L37: 0 | M37: 0 | N37: 0 | O37: 42 | P37: 42 | Q37: 1 | R37: 0 | S37: 0 | T37: 0 | U37: 0 | V37: 0 | W37: 0
A38: FAX | B38: 1 | C38: =C58+C75 -> 0 | D38: =D58+D75 -> 1 | E38: 0 | F38: 0 | G38: 0 | H38: 0 | I38: 0 | J38: 0 | K38: 0 | L38: 0 | M38: 0 | N38: 0 | O38: 1 | P38: 1 | Q38: 1 | R38: 0 | S38: 0 | T38: 0 | U38: 0 | V38: 0 | W38: 0
A39: 방문 | B39: 21 | C39: =C59+C76 -> 7 | D39: 14 | E39: 0 | F39: 0 | G39: 0 | H39: 0 | I39: 0 | J39: 0 | K39: 0 | L39: 0 | M39: 0 | N39: 0 | O39: 21 | P39: 21 | Q39: 1 | R39: 0 | S39: 0 | T39: 0 | U39: 0 | V39: 0 | W39: 0
A40: 방문전화 | B40: 0 | C40: 0 | D40: 0 | E40: 0 | F40: 0 | G40: 0 | H40: 0 | I40: 0 | J40: 0 | K40: 0 | L40: 0 | M40: 0 | N40: 0 | O40: 0 | P40: =C40+D40+E40 -> 0 | Q40: =P40/O40 ->  | R40: =F40+G40+H40 -> 0 | S40: =R40/O40 ->  | T40: =I40+J40+K40 -> 0 | U40: =T40/O40 ->  | V40: =L40+M40+N40 -> 0 | W40: =V40/O40 -> 
A41: 우편 | B41: 20 | C41: =C61+C78 -> 0 | D41: 20 | E41: 0 | F41: 0 | G41: 0 | H41: 0 | I41: 0 | J41: 0 | K41: 0 | L41: 0 | M41: 0 | N41: 0 | O41: =B41 -> 20 | P41: =C41+D41+E41 -> 20 | Q41: =P41/O41 -> 1 | R41: =F41+G41+H41 -> 0 | S41: =R41/O41 -> 0 | T41: =I41+J41+K41 -> 0 | U41: =T41/O41 -> 0 | V41: =L41+M41+N41 -> 0 | W41: =V41/O41 -> 0
A42: 인터넷 | B42: 0 | C42: =C62+C79 -> 0 | D42: 0 | E42: 0 | F42: 0 | G42: 0 | H42: 0 | I42: 0 | J42: 0 | K42: 0 | L42: 0 | M42: 0 | N42: 0 | O42: =B42 -> 0 | P42: =C42+D42+E42 -> 0 | Q42: =P42/O42 ->  | R42: =F42+G42+H42 -> 0 | S42: =R42/O42 ->  | T42: =I42+J42+K42 -> 0 | U42: =T42/O42 ->  | V42: =L42+M42+N42 -> 0 | W42: =V42/O42 -> 
A43: 전화 | B43: 0 | C43: =C63+C80 -> 0 | D43: 0 | E43: 0 | F43: 0 | G43: 0 | H43: 0 | I43: 0 | J43: 0 | K43: 0 | L43: 0 | M43: 0 | N43: 0 | O43: =B43 -> 0 | P43: =C43+D43+E43 -> 0 | Q43: =P43/O43 ->  | R43: =F43+G43+H43 -> 0 | S43: =R43/O43 ->  | T43: =I43+J43+K43 -> 0 | U43: =T43/O43 ->  | V43: =L43+M43+N43 -> 0 | W43: =V43/O43 -> 
A44: 화상 | B44: 0 | C44: =C64+C81 -> 0 | D44: 0 | E44: 0 | F44: 0 | G44: 0 | H44: 0 | I44: 0 | J44: 0 | K44: 0 | L44: 0 | M44: 0 | N44: 0 | O44: 0 | P44: 0 | R44: 0 | T44: 0 | V44: 0
A46: < 상 세 >
A47: 구분 | B47: 합계 | C47: 1월 | D47: 2월 | E47: 3월 | F47: 4월 | G47: 5월 | H47: 6월 | I47: 7월 | J47: 8월 | K47: 9월 | L47: 10월 | M47: 11월 | N47: 12월 | O47: 합계 | P47: 1분기 | Q47: 비율 | R47: 2분기 | S47: 비율 | T47: 3분기 | U47: 비율 | V47: 4분기 | W47: 비율
A48: 서울 | B48: =SUM(C48:N48) -> 670 | C48: =C49+C57 -> 441 | D48: =D49+D57 -> 229 | E48: 0 | F48: 0 | G48: 0 | H48: 0 | I48: 0 | J48: 0 | K48: 0 | L48: =L49+L57 -> 0 | M48: =M49+M57 -> 0 | N48: =N49+N57 -> 0 | O48: =B48 -> 670 | P48: =SUM(C48:E48) -> 670 | Q48: =P48/O48 -> 1 | R48: =SUM(F48:H48) -> 0 | S48: =R48/O48 -> 0 | T48: =SUM(I48:K48) -> 0 | U48: =T48/O48 -> 0 | V48: =SUM(L48:N48) -> 0 | W48: =V48/O48 -> 0
A49: 고충(계) | B49: 642 | C49: =SUM(C50:C56) -> 437 | D49: =SUM(D50:D56) -> 205 | E49: =SUM(E50:E56) -> 0 | F49: 0 | G49: =SUM(G50:G56) -> 0 | H49: 0 | I49: 0 | J49: 0 | K49: 0 | L49: 0 | M49: 0 | N49: 0 | O49: 642 | P49: =SUM(C49:E49) -> 642 | Q49: =P49/O49 -> 1 | R49: 0 | S49: =R49/O49 -> 0 | T49: 0 | U49: =T49/O49 -> 0 | V49: 0 | W49: =V49/O49 -> 0
A50: FAX | B50: 1 | D50: 1 | O50: 1 | P50: 1 | Q50: 1 | R50: 0 | S50: 0 | T50: 0 | U50: 0 | V50: 0 | W50: 0
A51: 방문 | B51: 498 | C51: 350 | D51: 148 | O51: 498 | P51: 498 | Q51: 1 | R51: 0 | S51: 0 | T51: 0 | U51: 0 | V51: 0 | W51: 0
A52: 방문전화 | B52: 0 | O52: =B52 -> 0 | P52: =SUM(C52:E52) -> 0 | Q52: =P52/O52 ->  | R52: =SUM(F52:H52) -> 0 | S52: =R52/O52 ->  | T52: =SUM(I52:K52) -> 0 | U52: =T52/O52 ->  | V52: =SUM(L52:N52) -> 0 | W52: =V52/O52 -> 
A53: 우편 | B53: 143 | C53: 87 | D53: 56 | O53: =B53 -> 143 | P53: =SUM(C53:E53) -> 143 | Q53: =P53/O53 -> 1 | R53: =SUM(F53:H53) -> 0 | S53: =R53/O53 -> 0 | T53: =SUM(I53:K53) -> 0 | U53: =T53/O53 -> 0 | V53: =SUM(L53:N53) -> 0 | W53: =V53/O53 -> 0
A54: 인터넷 | B54: 0 | O54: =B54 -> 0 | P54: =SUM(C54:E54) -> 0 | Q54: =P54/O54 ->  | R54: =SUM(F54:H54) -> 0 | S54: =R54/O54 ->  | T54: =SUM(I54:K54) -> 0 | U54: =T54/O54 ->  | V54: =SUM(L54:N54) -> 0 | W54: =V54/O54 -> 
A55: 전화 | B55: 0 | O55: =B55 -> 0 | P55: =SUM(C55:E55) -> 0 | Q55: =P55/O55 ->  | R55: =SUM(F55:H55) -> 0 | S55: =R55/O55 ->  | T55: =SUM(I55:K55) -> 0 | U55: =T55/O55 ->  | V55: =SUM(L55:N55) -> 0 | W55: =V55/O55 -> 
A56: 화상 | B56: 0 | O56: 0 | P56: 0 | R56: 0 | T56: 0 | V56: 0
A57: 일반(계) | B57: 28 | C57: =SUM(C58:C64) -> 4 | D57: =SUM(D58:D64) -> 24 | E57: 0 | F57: 0 | G57: =SUM(G58:G64) -> 0 | H57: 0 | I57: 0 | J57: 0 | K57: 0 | L57: 0 | M57: 0 | N57: 0 | O57: 28 | P57: 28 | Q57: 1 | R57: 0 | S57: 0 | T57: 0 | U57: 0 | V57: 0 | W57: 0
A58: FAX | B58: 1 | D58: 1 | O58: 1 | P58: 1 | Q58: 1 | R58: 0 | S58: 0 | T58: 0 | U58: 0 | V58: 0 | W58: 0
A59: 방문 | B59: 7 | C59: 4 | D59: 3 | O59: 7 | P59: 7 | Q59: 1 | R59: 0 | S59: 0 | T59: 0 | U59: 0 | V59: 0 | W59: 0
A60: 방문전화 | B60: 0 | O60: =B60 -> 0 | P60: =SUM(C60:E60) -> 0 | Q60: =P60/O60 ->  | R60: =SUM(F60:H60) -> 0 | S60: =R60/O60 ->  | T60: =SUM(I60:K60) -> 0 | U60: =T60/O60 ->  | V60: =SUM(L60:N60) -> 0 | W60: =V60/O60 -> 
A61: 우편 | B61: 20 | D61: 20 | O61: 20 | P61: =SUM(C61:M61) -> 20 | R61: 0 | T61: 0 | V61: 0
A62: 인터넷 | B62: 0 | O62: 0 | P62: =SUM(C62:M62) -> 0 | R62: 0 | T62: 0 | V62: 0
A63: 전화 | B63: 0 | O63: 0 | P63: 0 | R63: 0 | T63: 0 | V63: 0
A64: 화상 | B64: 0 | O64: 0 | P64: 0 | R64: 0 | T64: 0 | V64: 0
A65: 세종 | B65: 150 | C65: =C66+C74 -> 78 | D65: =D66+D74 -> 72 | E65: 0 | F65: 0 | G65: 0 | H65: 0 | I65: 0 | J65: 0 | K65: 0 | L65: 0 | M65: 0 | N65: 0 | O65: 150 | P65: 150 | Q65: 1 | R65: 0 | S65: 0 | T65: 0 | U65: 0 | V65: 0 | W65: 0
A66: 고충(계) | B66: 136 | C66: =SUM(C67:C73) -> 75 | D66: =SUM(D67:D73) -> 61 | E66: 0 | F66: 0 | G66: 0 | H66: 0 | I66: 0 | J66: 0 | K66: 0 | L66: 0 | M66: 0 | N66: 0 | O66: 136 | P66: 136 | Q66: 1 | R66: 0 | S66: 0 | T66: 0 | U66: 0 | V66: 0 | W66: 0
A67: FAX | B67: 0 | O67: 0 | P67: 0 | R67: 0 | T67: 0 | V67: 0
A68: 방문 | B68: 136 | C68: 75 | D68: 61 | O68: 136 | P68: 136 | Q68: 1 | R68: 0 | S68: 0 | T68: 0 | U68: 0 | V68: 0 | W68: 0
A69: 방문전화 | B69: 0 | O69: 0 | P69: =SUM(C69:E69) -> 0 | Q69: =P69/O69 ->  | R69: =SUM(F69:H69) -> 0 | S69: =R69/O69 ->  | T69: =SUM(I69:K69) -> 0 | U69: =T69/O69 ->  | V69: =SUM(L69:N69) -> 0 | W69: =V69/O69 -> 
A70: 우편 | B70: 0 | P70: =SUM(C70:N70) -> 0 | R70: 0 | T70: 0 | V70: 0
A71: 인터넷 | B71: 0 | P71: =SUM(C71:N71) -> 0 | R71: 0 | T71: 0 | V71: 0
A72: 전화 | B72: 0 | O72: 0 | P72: 0 | R72: 0 | T72: 0 | V72: 0
A73: 화상 | B73: 0 | O73: 0 | P73: 0 | R73: 0 | T73: 0 | V73: 0
A74: 일반(계) | B74: 14 | C74: =SUM(C75:C81) -> 3 | D74: =SUM(D75:D81) -> 11 | E74: 0 | F74: 0 | G74: 0 | H74: 0 | I74: 0 | J74: 0 | K74: 0 | L74: 0 | M74: 0 | N74: 0 | O74: 14 | P74: 14 | Q74: 1 | R74: 0 | S74: 0 | T74: 0 | U74: 0 | V74: 0 | W74: 0
A75: FAX | B75: 0 | O75: =B75 -> 0 | P75: 0 | R75: 0 | T75: 0 | V75: 0
A76: 방문 | B76: 14 | C76: 3 | D76: 11 | O76: 14 | P76: 14 | Q76: 1 | R76: 0 | S76: 0 | T76: 0 | U76: 0 | V76: 0 | W76: 0
A77: 방문전화 | B77: 0 | O77: 0 | P77: =SUM(C77:E77) -> 0 | Q77: =P77/O77 ->  | R77: =SUM(F77:H77) -> 0 | S77: =R77/O77 ->  | T77: =SUM(I77:K77) -> 0 | U77: =T77/O77 ->  | V77: =SUM(L77:N77) -> 0 | W77: =V77/O77 -> 
A78: 우편 | B78: 0 | P78: =SUM(C78:N78) -> 0 | R78: 0 | T78: 0 | V78: 0
A79: 인터넷 | B79: 0 | P79: =SUM(C79:N79) -> 0 | R79: 0 | T79: 0 | V79: 0
A80: 전화 | B80: 0 | O80: 0 | P80: 0 | R80: 0 | T80: 0 | V80: 0
A81: 화상 | B81: 0 | O81: 0 | P81: 0 | R81: 0 | T81: 0 | V81: 0
B83: 검증 | C83: =C7-C28 -> 0 | D83: 0 | E83: 0 | F83: 0 | G83: 0 | H83: 0 | I83: 0 | J83: 0 | K83: 0 | L83: 0 | M83: 0 | N83: 0

Sheet 9.처리(민형사)
A1: 9. 민형사 민원처리
O2: (단위 : 건)
A3: 구분 | B3: 구분 | C3: 합계 | D3: 1월 | E3: 2월 | F3: 3월 | G3: 4월 | H3: 5월 | I3: 6월 | J3: 7월 | K3: 8월 | L3: 9월 | M3: 10월 | N3: 11월 | O3: 12월 | P3: 합계 | Q3: 1분기 | R3: 비율 | S3: 2분기 | T3: 비율 | U3: 3분기 | V3: 비율 | W3: 4분기 | X3: 비율
A4: 계 | B4: 이송 | C4: =SUM(D4:O4) -> 1657 | D4: =D7+D10 -> 448 | E4: =E7+E10 -> 412 | F4: 797 | I4: =I7+I10 -> 0 | J4: 0 | K4: 0 | L4: 0 | M4: 0 | N4: 0 | O4: 0 | P4: =Q4+S4+U4+W4 -> 1657 | Q4: =SUM(D4:F4) -> 1657 | R4: =Q4/P4 -> 1 | S4: =SUM(G4:I4) -> 0 | T4: =S4/P4 -> 0 | U4: =SUM(J4:L4) -> 0 | V4: =U4/P4 -> 0 | W4: =SUM(M4:O4) -> 0 | X4: =W4/P4 -> 0
B5: 종결 | C5: 21 | D5: =D8+D11 -> 10 | E5: 3 | F5: 8 | I5: 0 | J5: 0 | K5: 0 | L5: 0 | M5: 0 | N5: 0 | O5: 0 | P5: =Q5+S5+U5+W5 -> 21 | Q5: =SUM(D5:F5) -> 21 | R5: =Q5/P5 -> 1 | S5: =SUM(G5:I5) -> 0 | T5: =S5/P5 -> 0 | U5: =SUM(J5:L5) -> 0 | V5: =U5/P5 -> 0 | W5: =SUM(M5:O5) -> 0 | X5: =W5/P5 -> 0
B6: 합계 | C6: 1678 | D6: =SUM(D4:D5) -> 458 | E6: =SUM(E4:E5) -> 415 | F6: =SUM(F4:F5) -> 805 | G6: 0 | H6: 0 | I6: =SUM(I4:I5) -> 0 | J6: 0 | K6: 0 | L6: 0 | M6: 0 | N6: 0 | O6: 0 | P6: =Q6+S6+U6+W6 -> 1678 | Q6: =SUM(D6:F6) -> 1678 | R6: =Q6/P6 -> 1 | S6: =SUM(G6:I6) -> 0 | T6: =S6/P6 -> 0 | U6: =SUM(J6:L6) -> 0 | V6: =U6/P6 -> 0 | W6: =SUM(M6:O6) -> 0 | X6: =W6/P6 -> 0
A7: 민사 | B7: 이송 | C7: 480 | D7: 174 | E7: 152 | F7: 154
B8: 종결 | C8: 10 | D8: 3 | E8: 3 | F8: 4
B9: 합계 | C9: 490 | D9: =D7+D8 -> 177 | E9: =E7+E8 -> 155 | F9: =F7+F8 -> 158 | G9: 0 | H9: 0 | I9: =I7+I8 -> 0 | J9: 0 | K9: 0 | L9: 0 | M9: 0 | N9: 0 | O9: 0
A10: 형사 | B10: 이송 | C10: 1177 | D10: 274 | E10: 260 | F10: 643
B11: 종결 | C11: 11 | D11: 7 | E11: 0 | F11: 4
B12: 합계 | C12: 1188 | D12: =D10+D11 -> 281 | E12: =E10+E11 -> 260 | F12: =F10+F11 -> 647 | G12: 0 | H12: 0 | I12: =I10+I11 -> 0 | J12: 0 | K12: 0 | L12: 0 | M12: 0 | N12: 0 | O12: 0
A13: (*다부처 지정 후 각각의 처리건수를 합한 수치임)
A14: <경로별 처리>
A15: 구분 | B15: 합계 | C15: 1월 | D15: 2월 | E15: 3월 | F15: 4월 | G15: 5월 | H15: 6월 | I15: 7월 | J15: 8월 | K15: 9월 | L15: 10월 | M15: 11월 | N15: 12월 | O15: 합계 | P15: 1분기 | Q15: 비율 | R15: 2분기 | S15: 비율 | T15: 3분기 | U15: 비율 | V15: 4분기 | W15: 비율
A16: 합계 | B16: =SUM(B17:B20) -> 1678 | C16: =SUM(C17:C20) -> 458 | D16: =SUM(D17:D20) -> 415 | E16: 805 | F16: 0 | G16: 0 | H16: 0 | I16: =SUM(I17:I20) -> 0 | J16: 0 | K16: 0 | L16: 0 | M16: 0 | N16: 0 | O16: =B16 -> 1678 | P16: =SUM(C16:E16) -> 1678 | Q16: =P16/O16 -> 1 | R16: =SUM(F16:H16) -> 0 | S16: =R16/O16 -> 0 | T16: =SUM(I16:K16) -> 0 | U16: =T16/O16 -> 0 | V16: =SUM(L16:N16) -> 0 | W16: =V16/O16 -> 0
A17: 방문 | B17: =SUM(C17:N17) -> 49 | C17: 4 | D17: 40 | E17: 5 | O17: =B17 -> 49 | P17: =C17+D17+E17 -> 49 | Q17: =P17/O17 -> 1 | R17: =F17+G17+H17 -> 0 | S17: =R17/O17 -> 0 | T17: =I17+J17+K17 -> 0 | U17: =T17/O17 -> 0 | V17: =L17+M17+N17 -> 0 | W17: =V17/O17 -> 0
A18: 우편 | B18: =SUM(C18:N18) -> 205 | C18: 68 | D18: 74 | E18: 63 | O18: =B18 -> 205 | P18: =C18+D18+E18 -> 205 | Q18: =P18/O18 -> 1 | R18: =F18+G18+H18 -> 0 | S18: =R18/O18 -> 0 | T18: =I18+J18+K18 -> 0 | U18: =T18/O18 -> 0 | V18: =L18+M18+N18 -> 0 | W18: =V18/O18 -> 0
A19: 전화(FAX포함) | B19: =SUM(C19:N19) -> 286 | C19: 23 | D19: 41 | E19: 222 | O19: =B19 -> 286 | P19: =C19+D19+E19 -> 286 | Q19: =P19/O19 -> 1 | R19: =F19+G19+H19 -> 0 | S19: =R19/O19 -> 0 | T19: =I19+J19+K19 -> 0 | U19: =T19/O19 -> 0 | V19: =L19+M19+N19 -> 0 | W19: =V19/O19 -> 0
A20: 온라인 | B20: =SUM(C20:N20) -> 1138 | C20: 363 | D20: 260 | E20: 515 | O20: =B20 -> 1138 | P20: =C20+D20+E20 -> 1138 | Q20: =P20/O20 -> 1 | R20: =F20+G20+H20 -> 0 | S20: =R20/O20 -> 0 | T20: =I20+J20+K20 -> 0 | U20: =T20/O20 -> 0 | V20: =L20+M20+N20 -> 0 | W20: =V20/O20 -> 0
A22: 2025년
A23: 구분 | B23: 구분 | C23: 합계 | D23: 1월 | E23: 2월 | F23: 3월 | G23: 4월 | H23: 5월 | I23: 6월 | J23: 7월 | K23: 8월 | L23: 9월 | M23: 10월 | N23: 11월 | O23: 12월
A24: 계 | B24: 이송 | C24: =SUM(D24:O24) -> 4248 | D24: =D27+D30 -> 292 | E24: =E27+E30 -> 338 | F24: 444 | G24: =G27+G30 -> 418 | H24: 344 | I24: =I27+I30 -> 408 | J24: 443 | K24: 334 | L24: 360 | M24: 98 | N24: 294 | O24: 475
B25: 종결 | C25: 35 | D25: =D28+D31 -> 0 | E25: 2 | F25: 0 | G25: 2 | H25: 2 | I25: 0 | J25: 3 | K25: 3 | L25: 4 | M25: 0 | N25: 8 | O25: 11
B26: 합계 | C26: 4283 | D26: =SUM(D24:D25) -> 292 | E26: =SUM(E24:E25) -> 340 | F26: 444 | G26: 420 | H26: 346 | I26: 408 | J26: 446 | K26: 337 | L26: 364 | M26: 98 | N26: 302 | O26: 486
A27: 민사 | B27: 이송 | C27: 1131 | D27: 53 | E27: 69 | F27: 98 | G27: 97 | H27: 66 | I27: 105 | J27: 130 | K27: 92 | L27: 67 | M27: 46 | N27: 134 | O27: 174
B28: 종결 | C28: 24 | D28: 0 | E28: 2 | G28: 2 | H28: 2 | J28: 3 | K28: 3 | L28: 4 | N28: 5 | O28: 3
B29: 합계 | C29: 1155 | D29: =SUM(D27:D28) -> 53 | E29: =SUM(E27:E28) -> 71 | F29: 98 | G29: 99 | H29: 68 | I29: 105 | J29: 133 | K29: 95 | L29: 71 | M29: 46 | N29: 139 | O29: 177
A30: 형사 | B30: 이송 | C30: 3117 | D30: 239 | E30: 269 | F30: 346 | G30: 321 | H30: 278 | I30: 303 | J30: 313 | K30: 242 | L30: 293 | M30: 52 | N30: 160 | O30: 301
B31: 종결 | C31: 11 | D31: 0 | J31: 0 | N31: 3 | O31: 8
B32: 합계 | C32: 3128 | D32: =SUM(D30:D31) -> 239 | E32: =SUM(E30:E31) -> 269 | F32: 346 | G32: 321 | H32: 278 | I32: 303 | J32: 313 | K32: 242 | L32: 293 | M32: 52 | N32: 163 | O32: 309
A34: 2024년
A35: 구분 | B35: 구분 | C35: 합계 | D35: 1월 | E35: 2월 | F35: 3월 | G35: 4월 | H35: 5월 | I35: 6월 | J35: 7월 | K35: 8월 | L35: 9월 | M35: 10월 | N35: 11월 | O35: 12월
A36: 계 | B36: 이송 | C36: =SUM(D36:O36) -> 6097 | D36: 337 | E36: 314 | F36: 359 | G36: 514 | H36: 486 | I36: 1046 | J36: 1248 | K36: 405 | L36: 283 | M36: 360 | N36: 352 | O36: 393
B37: 종결 | C37: 23 | D37: 4 | E37: 1 | F37: - | G37: 2 | H37: 5 | I37: 1 | J37: 2 | K37: 2 | L37: - | M37: 2 | N37: 1 | O37: 3
B38: 합계 | C38: 6120 | D38: 341 | E38: 315 | F38: 359 | G38: 516 | H38: 491 | I38: 1047 | J38: 1250 | K38: 407 | L38: 283 | M38: 362 | N38: 353 | O38: 396
A39: 민사 | B39: 이송 | C39: 1873 | D39: 110 | E39: 104 | F39: 58 | G39: 430 | H39: 71 | I39: 90 | J39: 493 | K39: 96 | L39: 102 | M39: 113 | N39: 101 | O39: 105
B40: 종결 | C40: 13 | D40: 1 | E40: 1 | G40: 2 | H40: 3 | I40: - | J40: 2 | K40: 1 | M40: 1 | O40: 2
B41: 합계 | C41: 1886 | D41: 111 | E41: 105 | F41: 58 | G41: 432 | H41: 74 | I41: 90 | J41: 495 | K41: 97 | L41: 102 | M41: 114 | N41: 101 | O41: 107
A42: 형사 | B42: 이송 | C42: 4224 | D42: 227 | E42: 210 | F42: 301 | G42: 84 | H42: 415 | I42: 956 | J42: 755 | K42: 309 | L42: 181 | M42: 247 | N42: 251 | O42: 288
B43: 종결 | C43: 10 | D43: 3 | E43: - | H43: 2 | I43: 1 | K43: 1 | M43: 1 | N43: 1 | O43: 1
B44: 합계 | C44: 4234 | D44: 230 | E44: 210 | F44: 301 | G44: 84 | H44: 417 | I44: 957 | J44: 755 | K44: 310 | L44: 181 | M44: 248 | N44: 252 | O44: 289
A46: 2023년
A47: 구분 | B47: 구분 | C47: 합계 | D47: 1월 | E47: 2월 | F47: 3월 | G47: 4월 | H47: 5월 | I47: 6월 | J47: 7월 | K47: 8월 | L47: 9월 | M47: 10월 | N47: 11월 | O47: 12월
A48: 계 | B48: 이송 | C48: =SUM(D48:O48) -> 6204 | D48: =D51+D54 -> 680 | E48: =E51+E54 -> 501 | F48: 692 | G48: 444 | H48: 494 | I48: 464 | J48: 492 | K48: 669 | L48: 404 | M48: 418 | N48: 499 | O48: 447
B49: 종결 | C49: 32 | D49: =D52+D55 -> 5 | E49: 2 | F49: 1 | G49: 1 | H49: 2 | I49: 5 | J49: 4 | K49: 2 | L49: 2 | M49: 4 | N49: 1 | O49: 3
B50: 합계 | C50: 6236 | D50: =SUM(D48:D49) -> 685 | E50: =SUM(E48:E49) -> 503 | F50: =SUM(F48:F49) -> 693 | G50: =SUM(G48:G49) -> 445 | H50: 496 | I50: =SUM(I48:I49) -> 469 | J50: 496 | K50: 671 | L50: 406 | M50: 422 | N50: 500 | O50: 450
A51: 민사 | B51: 이송 | C51: 2144 | D51: 200 | E51: 186 | F51: 220 | G51: 168 | H51: 174 | I51: 184 | J51: 176 | K51: 199 | L51: 157 | M51: 139 | N51: 173 | O51: 168
B52: 종결 | C52: 14 | D52: 3 | E52: 2 | F52: 0 | G52: 0 | H52: 1 | I52: 1 | J52: 3 | K52: 0 | L52: 0 | M52: 1 | N52: 0 | O52: 3
B53: 합계 | C53: 2158 | D53: =D51+D52 -> 203 | E53: =E51+E52 -> 188 | F53: =F51+F52 -> 220 | G53: 168 | H53: 175 | I53: =I51+I52 -> 185 | J53: 179 | K53: 199 | L53: 157 | M53: 140 | N53: 173 | O53: 171
A54: 형사 | B54: 이송 | C54: 4060 | D54: 480 | E54: 315 | F54: 472 | G54: 276 | H54: 320 | I54: 280 | J54: 316 | K54: 470 | L54: 247 | M54: 279 | N54: 326 | O54: 279
B55: 종결 | C55: 18 | D55: 2 | E55: 0 | F55: 1 | G55: 1 | H55: 1 | I55: 4 | J55: 1 | K55: 2 | L55: 2 | M55: 3 | N55: 1 | O55: 0
B56: 합계 | C56: 4078 | D56: =D54+D55 -> 482 | E56: =E54+E55 -> 315 | F56: =F54+F55 -> 473 | G56: 277 | H56: 321 | I56: =I54+I55 -> 284 | J56: 317 | K56: 472 | L56: 249 | M56: 282 | N56: 327 | O56: 279
A58: <2022년> | Q58: <2019년>
A59: 구분 | B59: 구분 | C59: 합계 | D59: 1월 | E59: 2월 | F59: 3월 | G59: 4월 | H59: 5월 | I59: 6월 | J59: 7월 | K59: 8월 | L59: 9월 | M59: 10월 | N59: 11월 | O59: 12월 | R59: 구분 | S59: 합계
A60: 계 | B60: 이송 | C60: =SUM(D60:O60) -> 6578 | D60: =D63+D66 -> 404 | E60: =E63+E66 -> 429 | F60: 549 | G60: 420 | H60: 570 | I60: 471 | J60: 382 | K60: 633 | L60: 623 | M60: 586 | N60: 761 | O60: 750 | Q60: 계 | R60: 이송 | S60: =S63+S66 -> 2998
B61: 종결 | C61: 40 | D61: =D64+D67 -> 3 | E61: 2 | F61: 10 | G61: 2 | H61: 1 | I61: 1 | J61: 6 | K61: 4 | L61: 2 | M61: 3 | N61: 2 | O61: 4 | R61: 종결 | S61: =S64+S67 -> 241
B62: 합계 | C62: 6618 | D62: =SUM(D60:D61) -> 407 | E62: =SUM(E60:E61) -> 431 | F62: =SUM(F60:F61) -> 559 | G62: =SUM(G60:G61) -> 422 | H62: 571 | I62: =SUM(I60:I61) -> 472 | J62: 388 | K62: 637 | L62: 625 | M62: 589 | N62: 763 | O62: 754 | R62: 합계 | S62: =S60+S61 -> 3239
A63: 민사 | B63: 이송 | C63: 2740 | D63: 262 | E63: 251 | F63: 271 | G63: 196 | H63: 266 | I63: 180 | J63: 124 | K63: 186 | L63: 269 | M63: 238 | N63: 266 | O63: 231 | Q63: 민사 | R63: 이송 | S63: 1735
B64: 종결 | C64: 23 | D64: 2 | E64: 1 | F64: 8 | G64: 0 | H64: 1 | I64: 0 | J64: 2 | K64: 3 | L64: 2 | M64: 2 | N64: 0 | O64: 2 | R64: 종결 | S64: 102
B65: 합계 | C65: 2763 | D65: =D63+D64 -> 264 | E65: =E63+E64 -> 252 | F65: =F63+F64 -> 279 | G65: 196 | H65: 267 | I65: =I63+I64 -> 180 | J65: 126 | K65: 189 | L65: 271 | M65: 240 | N65: 266 | O65: 233 | R65: 합계 | S65: =S63+S64 -> 1837
A66: 형사 | B66: 이송 | C66: 3838 | D66: 142 | E66: 178 | F66: 278 | G66: 224 | H66: 304 | I66: 291 | J66: 258 | K66: 447 | L66: 354 | M66: 348 | N66: 495 | O66: 519 | Q66: 형사 | R66: 이송 | S66: 1263
B67: 종결 | C67: 17 | D67: 1 | E67: 1 | F67: 2 | G67: 2 | H67: - | I67: 1 | J67: 4 | K67: 1 | L67: 0 | M67: 1 | N67: 2 | O67: 2 | R67: 종결 | S67: 139
B68: 합계 | C68: 3855 | D68: =D66+D67 -> 143 | E68: =E66+E67 -> 179 | F68: =F66+F67 -> 280 | G68: 226 | H68: 304 | I68: =I66+I67 -> 292 | J68: 262 | K68: 448 | L68: 354 | M68: 349 | N68: 497 | O68: 521 | R68: 합계 | S68: =S66+S67 -> 1402
A70: <2021년> | Q70: <2018년>
B71: 구분 | C71: 합계 | D71: 1월 | E71: 2월 | F71: 3월 | G71: 4월 | H71: 5월 | I71: 6월 | J71: 7월 | K71: 8월 | L71: 9월 | M71: 10월 | N71: 11월 | O71: 12월 | R71: 구분 | S71: 합계
A72: 계 | B72: 이송 | C72: =SUM(D72:O72) -> 4615 | D72: =D75+D78 -> 271 | E72: =E75+E78 -> 216 | F72: 235 | G72: 279 | H72: 225 | I72: 491 | J72: 487 | K72: 471 | L72: 485 | M72: 509 | N72: 478 | O72: 468 | Q72: 계 | R72: 이송 | S72: =S75+S78 -> 2679
B73: 종결 | C73: =SUM(D73:O73) -> 67 | D73: =D76+D79 -> 19 | E73: 9 | F73: 5 | G73: 3 | H73: 3 | I73: 7 | J73: 4 | K73: 8 | L73: 1 | M73: 1 | N73: 4 | O73: 3 | R73: 종결 | S73: =S76+S79 -> 389
B74: 합계 | C74: =C72+C73 -> 4682 | D74: =D72+D73 -> 290 | E74: =E72+E73 -> 225 | F74: 240 | G74: 282 | H74: 228 | I74: 498 | J74: 491 | K74: 479 | L74: 486 | M74: 510 | N74: 482 | O74: 471 | R74: 합계 | S74: =S72+S73 -> 3068
A75: 민사 | B75: 이송 | C75: =SUM(D75:O75) -> 2028 | D75: 132 | E75: 119 | F75: 125 | G75: 151 | H75: 89 | I75: 170 | J75: 173 | K75: 152 | L75: 137 | M75: 178 | N75: 306 | O75: 296 | Q75: 민사 | R75: 이송 | S75: 1233
B76: 종결 | C76: =SUM(D76:O76) -> 34 | D76: 13 | E76: 6 | F76: 2 | G76: 0 | H76: 1 | I76: 3 | J76: 3 | K76: 1 | L76: 0 | M76: 0 | N76: 3 | O76: 2 | R76: 종결 | S76: 171
B77: 합계 | C77: =C75+C76 -> 2062 | D77: =D75+D76 -> 145 | E77: 125 | F77: 127 | G77: 151 | H77: 90 | I77: 173 | J77: 176 | K77: 153 | L77: 137 | M77: 178 | N77: 309 | O77: 298 | R77: 합계 | S77: =S75+S76 -> 1404
A78: 형사 | B78: 이송 | C78: =SUM(D78:O78) -> 2587 | D78: 139 | E78: 97 | F78: 110 | G78: 128 | H78: 136 | I78: 321 | J78: 314 | K78: 319 | L78: 348 | M78: 331 | N78: 172 | O78: 172 | Q78: 형사 | R78: 이송 | S78: 1446
B79: 종결 | C79: =SUM(D79:O79) -> 33 | D79: 6 | E79: 3 | F79: 3 | G79: 3 | H79: 2 | I79: 4 | J79: 1 | K79: 7 | L79: 1 | M79: 1 | N79: 1 | O79: 1 | R79: 종결 | S79: 218
B80: 합계 | C80: =C78+C79 -> 2620 | D80: =D78+D79 -> 145 | E80: 100 | F80: 113 | G80: 131 | H80: 138 | I80: 325 | J80: 315 | K80: 326 | L80: 349 | M80: 332 | N80: 173 | O80: 173 | R80: 합계 | S80: =S78+S79 -> 1664
A82: <2020년> | Q82: <2017년>
B83: 구분 | C83: 합계 | D83: 1월 | E83: 2월 | F83: 3월 | G83: 4월 | H83: 5월 | I83: 6월 | J83: 7월 | K83: 8월 | L83: 9월 | M83: 10월 | N83: 11월 | O83: 12월 | R83: 구분 | S83: 합계
A84: 계 | B84: 이송 | C84: =SUM(D84:O84) -> 2686 | D84: =D87+D90 -> 139 | E84: =E87+E90 -> 186 | F84: 208 | G84: 174 | H84: 233 | I84: 300 | J84: 225 | K84: 238 | L84: 258 | M84: 241 | N84: 227 | O84: 257 | Q84: 계 | R84: 이송 | S84: =S87+S90 -> 2864
B85: 종결 | C85: =SUM(D85:O85) -> 77 | D85: =D88+D91 -> 4 | E85: 4 | F85: 4 | G85: 2 | H85: 3 | I85: 2 | J85: 7 | K85: 1 | L85: 6 | M85: 22 | N85: 13 | O85: 9 | R85: 종결 | S85: =S88+S91 -> 105
B86: 합계 | C86: =C84+C85 -> 2763 | D86: =D84+D85 -> 143 | E86: =E84+E85 -> 190 | F86: 212 | G86: 176 | H86: 236 | I86: 302 | J86: 232 | K86: 239 | L86: 264 | M86: 263 | N86: 240 | O86: 266 | R86: 합계 | S86: =S84+S85 -> 2969
A87: 민사 | B87: 이송 | C87: =SUM(D87:O87) -> 1371 | D87: 73 | E87: 84 | F87: 100 | G87: 92 | H87: 126 | I87: 131 | J87: 149 | K87: 153 | L87: 143 | M87: 111 | N87: 102 | O87: 107 | Q87: 민사 | R87: 이송 | S87: 1378
B88: 종결 | C88: =SUM(D88:O88) -> 46 | D88: 1 | E88: 1 | F88: 0 | G88: 0 | H88: 1 | I88: 0 | J88: 3 | K88: 1 | L88: 3 | M88: 20 | N88: 9 | O88: 7 | R88: 종결 | S88: 44
B89: 합계 | C89: =C87+C88 -> 1417 | D89: =D87+D88 -> 74 | E89: 85 | F89: 100 | G89: 92 | H89: 127 | I89: 131 | J89: 152 | K89: 154 | L89: 146 | M89: 131 | N89: 111 | O89: 114 | R89: 합계 | S89: =S87+S88 -> 1422
A90: 형사 | B90: 이송 | C90: =SUM(D90:O90) -> 1315 | D90: 66 | E90: 102 | F90: 108 | G90: 82 | H90: 107 | I90: 169 | J90: 76 | K90: 85 | L90: 115 | M90: 130 | N90: 125 | O90: 150 | Q90: 형사 | R90: 이송 | S90: 1486
B91: 종결 | C91: =SUM(D91:O91) -> 31 | D91: 3 | E91: 3 | F91: 4 | G91: 2 | H91: 2 | I91: 2 | J91: 4 | K91: 0 | L91: 3 | M91: 2 | N91: 4 | O91: 2 | R91: 종결 | S91: 61
B92: 합계 | C92: =C90+C91 -> 1346 | D92: =D90+D91 -> 69 | E92: 105 | F92: 112 | G92: 84 | H92: 109 | I92: 171 | J92: 80 | K92: 85 | L92: 118 | M92: 132 | N92: 129 | O92: 152 | R92: 합계 | S92: =S90+S91 -> 1547

Sheet 10.온라인 상담
A1: 10. 온라인 상담
A3: □ 온라인상담 처리 합계(처리일기준으로 전체건임 : 기관안내, 취하, 상담해결, 민원신청, 민원신청(전환) 등) | N3: (단위 : 건)
A4: 구분 | B4: 합계 | C4: 1월 | D4: 2월 | E4: 3월 | F4: 4월 | G4: 5월 | H4: 6월 | I4: 7월 | J4: 8월 | K4: 9월 | L4: 10월 | M4: 11월 | N4: 12월 | O4: 합계 | P4: 1분기 | Q4: 비율 | R4: 2분기 | S4: 비율 | T4: 3분기 | U4: 비율 | V4: 4분기 | W4: 비율
A5: 일반 | B5: =SUM(C5:N5) -> 3716 | C5: 2255 | D5: 1461 | O5: =B5 -> 3716 | P5: =SUM(C5:E5) -> 3716 | Q5: =P5/O5 -> 1 | R5: =SUM(F5:H5) -> 0 | S5: =R5/O5 -> 0 | T5: =SUM(I5:K5) -> 0 | U5: =T5/O5 -> 0 | V5: =SUM(L5:N5) -> 0 | W5: =V5/O5 -> 0
A6: 고충 | B6: =SUM(C6:N6) -> 3 | C6: 2 | D6: 1 | O6: =B6 -> 3 | P6: =SUM(C6:E6) -> 3 | Q6: =P6/O6 -> 1 | R6: =SUM(F6:H6) -> 0 | S6: =R6/O6 -> 0 | T6: =SUM(I6:K6) -> 0 | U6: =T6/O6 -> 0 | V6: =SUM(L6:N6) -> 0 | W6: =V6/O6 -> 0
A7: 합계 | B7: =SUM(C7:N7) -> 3719 | C7: =SUM(C5:C6) -> 2257 | D7: =SUM(D5:D6) -> 1462 | E7: =SUM(E5:E6) -> 0 | F7: 0 | G7: 0 | H7: =SUM(H5:H6) -> 0 | I7: 0 | J7: 0 | K7: 0 | L7: 0 | M7: 0 | N7: 0 | O7: =B7 -> 3719 | P7: =SUM(C7:E7) -> 3719 | Q7: =P7/O7 -> 1 | R7: =SUM(F7:H7) -> 0 | S7: =R7/O7 -> 0 | T7: =SUM(I7:K7) -> 0 | U7: =T7/O7 -> 0 | V7: =SUM(L7:N7) -> 0 | W7: =V7/O7 -> 0
A9: □ 온라인민원 처리결과 현황 | N9: (단위 : 건) | O9: =O14+O18+O19 -> 3433
A10: 구분 | B10: 처리결과 | C10: 1월 | D10: 2월 | E10: 3월 | F10: 4월 | G10: 5월 | H10: 6월 | I10: 7월 | J10: 8월 | K10: 9월 | L10: 10월 | M10: 11월 | N10: 12월 | O10: 합계 | P10: 1분기 | Q10: 비율 | R10: 2분기 | S10: 비율 | T10: 3분기 | U10: 비율 | V10: 4분기 | W10: 비율
A11: 고충 | B11: 기관안내 | C11: 1 | O11: =SUM(C11:N11) -> 1 | P11: =SUM(C11:E11) -> 1 | Q11: =P11/O11 -> 1 | R11: =SUM(G11:I11) -> 0 | S11: =R11/O11 -> 0 | T11: =SUM(J11:L11) -> 0 | U11: =T11/O11 -> 0 | V11: =SUM(M11:N11) -> 0 | W11: =V11/O11 -> 0
B12: 민원신청(전환) | O12: =SUM(C12:N12) -> 0 | P12: =SUM(C12:E12) -> 0 | Q12: =P12/O12 ->  | R12: 0 | S12: =R12/O12 ->  | T12: 0 | U12: =T12/O12 ->  | V12: 0 | W12: =V12/O12 -> 
B13: 상담취하 등 | O13: 0 | P13: 0 | R13: 0 | T13: 0 | V13: 0
B14: 상담해결 | C14: 1 | D14: 1 | O14: 2 | P14: 2 | Q14: 1 | R14: 0 | S14: 0 | T14: 0 | U14: 0 | V14: 0 | W14: 0
A15: 일반 | B15: 기관안내 | C15: 91 | D15: 25 | O15: 116 | P15: 116 | Q15: 1 | R15: 0 | S15: 0 | T15: 0 | U15: 0 | V15: 0 | W15: 0
B16: 민원신청(전환) | C16: - | O16: 0 | P16: 0 | R16: 0 | T16: 0 | V16: 0
B17: 상담취하 등 | C17: 98 | D17: 71 | O17: 169 | P17: 169 | Q17: 1 | R17: 0 | S17: 0 | T17: 0 | U17: 0 | V17: 0 | W17: 0
B18: 상담해결 | C18: 2066 | D18: 1365 | O18: 3431 | P18: 3431 | Q18: =P18/O18 -> 1 | R18: =SUM(G18:I18) -> 0 | S18: =R18/O18 -> 0 | T18: =SUM(J18:L18) -> 0 | U18: =T18/O18 -> 0 | V18: =SUM(M18:N18) -> 0 | W18: =V18/O18 -> 0
B19: 조정협의 | C19: - | O19: 0 | P19: 0 | R19: 0 | S19: =R19/O19 ->  | T19: 0 | V19: 0
A20: 합계 | C20: =SUM(C11:C19) -> 2257 | D20: 1462 | E20: 0 | F20: 0 | G20: 0 | H20: 0 | I20: 0 | J20: 0 | K20: 0 | L20: 0 | M20: 0 | N20: 0 | O20: =SUM(C20:N20) -> 3719 | P20: 3719 | Q20: =P20/O20 -> 1 | R20: 0 | S20: =R20/O20 -> 0 | T20: 0 | U20: =T20/O20 -> 0 | V20: 0 | W20: =V20/O20 -> 0
A21: ※ 민원신청 | C21: =SUM(C12+C16) ->  | D21: =SUM(D12+D16) -> 0 | E21: 0 | F21: 0 | G21: 0 | H21: =SUM(H12+H16) -> 0 | I21: 0 | J21: 0 | K21: 0 | L21: 0 | M21: 0 | N21: 0 | O21: 0
A41: □ 온라인상담 분야별 현황(=2.온라인상담 처리합계 건수) | N41: (단위 : 건)
A42: 구 분 | B42: 합계 | C42: 1월 | D42: 2월 | E42: 3월 | F42: 4월 | G42: 5월 | H42: 6월 | I42: 7월 | J42: 8월 | K42: 9월 | L42: 10월 | M42: 11월 | N42: 12월 | O42: 합계 | P42: 1분기 | Q42: 비율 | R42: 2분기 | S42: 비율 | T42: 3분기 | U42: 비율 | V42: 4분기 | W42: 비율
A43: 건축 | B43: =SUM(C43:N43) -> 0 | O43: =B43 -> 0 | P43: =SUM(C43:E43) -> 0 | Q43: =P43/O43 ->  | R43: =SUM(F43:H43) -> 0 | S43: =R43/O43 ->  | T43: =SUM(I43:K43) -> 0 | U43: =T43/O43 ->  | V43: =SUM(L43:N43) -> 0 | W43: =V43/O43 -> 
A44: 경찰 | B44: =SUM(C44:N44) -> 0 | O44: =B44 -> 0 | P44: =SUM(C44:E44) -> 0 | Q44: =P44/O44 ->  | R44: =SUM(F44:H44) -> 0 | S44: =R44/O44 ->  | T44: =SUM(I44:K44) -> 0 | U44: =T44/O44 ->  | V44: =SUM(L44:N44) -> 0 | W44: =V44/O44 -> 
A45: 고용노동 | B45: 0 | O45: =B45 -> 0 | P45: =SUM(C45:E45) -> 0 | Q45: =P45/O45 ->  | R45: =SUM(F45:H45) -> 0 | S45: =R45/O45 ->  | T45: =SUM(I45:K45) -> 0 | U45: =T45/O45 ->  | V45: =SUM(L45:N45) -> 0 | W45: =V45/O45 -> 
A46: 교육 | B46: 0 | O46: =B46 -> 0 | P46: =SUM(C46:E46) -> 0 | Q46: =P46/O46 ->  | R46: =SUM(F46:H46) -> 0 | S46: =R46/O46 ->  | T46: =SUM(I46:K46) -> 0 | U46: =T46/O46 ->  | V46: =SUM(L46:N46) -> 0 | W46: =V46/O46 -> 
A47: 교통 | B47: 0 | O47: 0 | P47: 0 | R47: 0 | T47: 0 | V47: 0
A48: 국방 | B48: 0 | O48: 0 | P48: 0 | R48: 0 | T48: 0 | V48: 0
A49: 군사 | B49: 0 | O49: 0 | P49: 0 | R49: 0 | T49: 0 | V49: 0
A50: 기타 | B50: 0 | O50: 0 | P50: 0 | R50: 0 | T50: 0 | V50: 0
A51: 농림축산 | B51: 0 | O51: 0 | P51: 0 | R51: 0 | T51: 0 | V51: 0
A52: 도로 | B52: 0 | O52: 0 | P52: 0 | R52: 0 | T52: 0 | V52: 0
A53: 도시 | B53: 0 | O53: 0 | P53: 0 | R53: 0 | T53: 0 | V53: 0
A54: 문화체육관광 | B54: 0 | O54: 0 | P54: 0 | R54: 0 | T54: 0 | V54: 0
A55: 민사법무 | B55: 0 | O55: 0 | P55: 0 | R55: 0 | T55: 0 | V55: 0
A56: 방송통신 | B56: 0 | O56: 0 | P56: 0 | R56: 0 | T56: 0 | V56: 0
A57: 보건복지 | B57: 0 | O57: 0 | P57: 0 | R57: 0 | T57: 0 | V57: 0
A58: 보훈 | B58: 0 | O58: 0 | P58: 0 | R58: 0 | T58: 0 | V58: 0
A59: 산업통상자원 | B59: 0 | O59: 0 | P59: 0 | R59: 0 | T59: 0 | V59: 0
A60: 세무 | B60: 0 | O60: 0 | P60: 0 | R60: 0 | T60: 0 | V60: 0
A61: 수자원 | B61: 0 | O61: 0 | P61: 0 | R61: 0 | T61: 0 | V61: 0
A62: 식품의약 | B62: 0 | O62: 0 | P62: 0 | R62: 0 | T62: 0 | V62: 0
A63: 외무통일 | B63: 0 | O63: 0 | P63: 0 | R63: 0 | T63: 0 | V63: 0
A64: 인사행정 | B64: 0 | O64: 0 | P64: 0 | R64: 0 | T64: 0 | V64: 0
A65: 재정금융공정 | B65: 0 | O65: 0 | P65: 0 | R65: 0 | T65: 0 | V65: 0
A66: 주택 | B66: 0 | O66: 0 | P66: 0 | R66: 0 | T66: 0 | V66: 0
A67: 해양수산 | B67: 0 | O67: 0 | P67: 0 | R67: 0 | T67: 0 | V67: 0
A68: 행정안전 | B68: 0 | O68: 0 | P68: 0 | R68: 0 | T68: 0 | V68: 0
A69: 환경 | B69: 0 | O69: 0 | P69: 0 | R69: 0 | T69: 0 | V69: 0
A70: 합계 | B70: =SUM(C70:N70) -> 0 | C70: =SUM(C43:C69) -> 0 | D70: =SUM(D43:D69) -> 0 | E70: 0 | F70: 0 | G70: =SUM(G43:G69) -> 0 | H70: =SUM(H43:H69) -> 0 | I70: 0 | J70: 0 | K70: 0 | L70: 0 | M70: 0 | N70: 0 | O70: 0 | P70: 0 | R70: 0 | T70: 0 | V70: 0
A72: □ 온라인상담해결율/4일이내처리율 | M72: (단위 : 건, %, 일)
A73: 구분 | B73: 합계 | C73: 1월 | D73: 2월 | E73: 3월 | F73: 4월 | G73: 5월 | H73: 6월 | I73: 7월 | J73: 8월 | K73: 9월 | L73: 10월 | M73: 11월 | N73: 12월
A74: 상담해결율 | B74: =(O14+O18+O19)/O20 -> 0.9230976069 | C74: =(C14+C18+C19)/C20 ->  | D74: =(D14+D18+D19)/D20 -> 0.9343365253 | H74: =(H14+H18+H19)/H20 -> 
A75: 4일이내 처리율 | B75: =B76/B70 ->  | C75: =C76/C70 -> 
A76: (4일이내처리건수) | B76: =SUM(C76:N76) -> 0
A77: 평균처리기간(일) | B77: =B78/B70 ->  | D77: =D78/D70 -> 
A78: (총소요기일) | B78: =SUM(C78:N78) -> 0

Sheet 11.합동상담+민원상담협의회
A1: 11. 다수기관 복합민원
A2: 구 분 | B2: 계 | C2: 합동상담 | D2: 민원상담협의회 상정
D3: 소계 | E3: 합의 해결 등 | F3: 종결 | G3: 진행중
A4: 2026년 12월 | B4: =C4+D4 -> 0 | D4: 0
A5: 2026년 11월 | B5: 0 | D5: 0
A6: 2026년 10월 | B6: 0 | D6: 0
A7: 2026년 9월 | B7: 0 | D7: 0
A8: 2026년 8월 | B8: 0 | D8: 0
A9: 2026년 7월 | B9: 0 | D9: 0
A10: 2026년 6월 | B10: 0
A11: 2026년 5월 | B11: 0 | D11: 0
A12: 2026년 4월 | B12: 0 | D12: 0
A13: 2026년 3월 | B13: 0 | D13: 0
A14: 2026년 2월 | B14: 361 | C14: 361 | D14: 0
A15: 2026년 1월 | B15: 512 | C15: 512 | D15: 0
A16: 2025년 | B16: =C16+D16 -> 5880 | C16: 5875 | D16: =SUM(E16:G16) -> 5 | E16: 5
A17: 2024년 | B17: 3705 | C17: 3664 | D17: 41 | E17: 37 | F17: 4
A18: 2023년 | B18: 3301 | C18: 3267 | D18: 34 | E18: 21 | F18: 13 | G18: 0
A19: 2022년 | B19: 1439 | C19: 1406 | D19: 33 | E19: 23 | F19: 10 | G19: 0
A20: 2021년 | B20: 1179 | C20: 1154 | D20: 25 | E20: 15 | F20: 10 | G20: 0
A21: 2020년 | B21: 620 | C21: 609 | D21: 11 | E21: 4 | F21: 7 | G21: 0
A22: 2019년(10월이후) | B22: 5 | C22: 3 | D22: 2 | E22: 2 | F22: 0 | G22: 0
A23: 누계 | B23: =SUM(B4:B22) -> 17002 | C23: =SUM(C4:C22) -> 16851 | D23: 151 | E23: =SUM(E4:E22) -> 107 | F23: =SUM(F4:F22) -> 44 | G23: =SUM(G4:G22) -> 0

Sheet 12.분야별상담및접수(서울세종창구상담)
A1: 12. [오프라인창구(서울+세종)] 분야별 현황 상담 및 접수 | N1: (단위 : 건)
A2: 구분 | B2: 합계 | C2: 1월 | D2: 2월 | E2: 3월 | F2: 4월 | G2: 5월 | H2: 6월 | I2: 7월 | J2: 8월 | K2: 9월 | L2: 10월 | M2: 11월 | N2: 12월 | O2: 합계 | P2: 1분기 | Q2: 비율 | R2: 2분기 | S2: 비율 | T2: 3분기 | U2: 비율 | V2: 4분기 | W2: 비율
A3: 건축 | B3: =SUM(C3:M3) -> 10 | C3: 3 | D3: 7 | O3: =B3 -> 10 | P3: =SUM(C3:E3) -> 10 | Q3: =P3/O3 -> 1 | R3: =SUM(F3:H3) -> 0 | S3: =R3/O3 -> 0 | T3: =SUM(I3:K3) -> 0 | U3: =T3/O3 -> 0 | V3: =SUM(L3:M3) -> 0 | W3: =V3/O3 -> 0
A4: 경찰 | B4: 76 | C4: 39 | D4: 37 | O4: =B4 -> 76 | P4: 76 | Q4: =P4/O4 -> 1 | R4: =SUM(F4:H4) -> 0 | S4: =R4/O4 -> 0 | T4: 0 | U4: =T4/O4 -> 0 | V4: 0 | W4: =V4/O4 -> 0
A5: 고용노동 | B5: 22 | C5: 12 | D5: 10 | O5: =B5 -> 22 | P5: 22 | Q5: =P5/O5 -> 1 | R5: =SUM(F5:H5) -> 0 | S5: =R5/O5 -> 0 | T5: 0 | U5: =T5/O5 -> 0 | V5: 0 | W5: =V5/O5 -> 0
A6: 교육 | B6: 5 | C6: 1 | D6: 4 | O6: =B6 -> 5 | P6: 5 | Q6: =P6/O6 -> 1 | R6: =SUM(F6:H6) -> 0 | S6: =R6/O6 -> 0 | T6: 0 | U6: =T6/O6 -> 0 | V6: 0 | W6: =V6/O6 -> 0
A7: 교통 | B7: 4 | C7: 2 | D7: 2 | O7: 4 | P7: 4 | Q7: 1 | R7: 0 | S7: 0 | T7: 0 | U7: 0 | V7: 0 | W7: 0
A8: 국방 | B8: 21 | C8: 16 | D8: 5 | O8: 21 | P8: 21 | Q8: 1 | R8: 0 | S8: 0 | T8: 0 | U8: 0 | V8: 0 | W8: 0
A9: 군사 | B9: 0 | O9: 0 | P9: 0 | R9: 0 | T9: 0 | V9: 0
A10: 기타 | B10: 812 | C10: 546 | D10: 266 | O10: 812 | P10: 812 | Q10: 1 | R10: 0 | S10: 0 | T10: 0 | U10: 0 | V10: 0 | W10: 0
A11: 농림·축산 | B11: 35 | C11: 25 | D11: 10 | O11: 35 | P11: 35 | Q11: 1 | R11: 0 | S11: 0 | T11: 0 | U11: 0 | V11: 0 | W11: 0
A12: 도로 | B12: 13 | C12: 5 | D12: 8 | O12: 13 | P12: 13 | Q12: 1 | R12: 0 | S12: 0 | T12: 0 | U12: 0 | V12: 0 | W12: 0
A13: 도시 | B13: 24 | C13: 11 | D13: 13 | O13: 24 | P13: 24 | Q13: 1 | R13: 0 | S13: 0 | T13: 0 | U13: 0 | V13: 0 | W13: 0
A14: 문화·관광·체육 | B14: 3 | C14: 3 | O14: 3 | P14: 3 | Q14: 1 | R14: 0 | S14: 0 | T14: 0 | U14: 0 | V14: 0 | W14: 0
A15: 민사·법무 | B15: 147 | C15: 79 | D15: 68 | O15: 147 | P15: 147 | Q15: 1 | R15: 0 | S15: 0 | T15: 0 | U15: 0 | V15: 0 | W15: 0
A16: 방송통신 | B16: 3 | C16: 2 | D16: 1 | O16: 3 | P16: 3 | Q16: 1 | R16: 0 | S16: 0 | T16: 0 | U16: 0 | V16: 0 | W16: 0
A17: 보건복지 | B17: 36 | C17: 16 | D17: 20 | O17: 36 | P17: 36 | Q17: 1 | R17: 0 | S17: 0 | T17: 0 | U17: 0 | V17: 0 | W17: 0
A18: 보훈 | B18: 18 | C18: 3 | D18: 15 | O18: 18 | P18: 18 | Q18: 1 | R18: 0 | S18: 0 | T18: 0 | U18: 0 | V18: 0 | W18: 0
A19: 산업·통상·자원 | B19: 17 | C19: 10 | D19: 7 | O19: 17 | P19: 17 | Q19: 1 | R19: 0 | S19: 0 | T19: 0 | U19: 0 | V19: 0 | W19: 0
A20: 세무 | B20: 17 | C20: 9 | D20: 8 | O20: 17 | P20: 17 | Q20: 1 | R20: 0 | S20: 0 | T20: 0 | U20: 0 | V20: 0 | W20: 0
A21: 수자원 | B21: 6 | C21: 3 | D21: 3 | O21: 6 | P21: 6 | Q21: 1 | R21: 0 | S21: 0 | T21: 0 | U21: 0 | V21: 0 | W21: 0
A22: 식품의약 | B22: 0 | O22: 0 | P22: =SUM(C22:E22) -> 0 | R22: 0 | T22: 0 | V22: 0
A23: 외무·통일 | B23: 4 | C23: 1 | D23: 3 | O23: 4 | P23: 4 | Q23: 1 | R23: 0 | S23: 0 | T23: 0 | U23: 0 | V23: 0 | W23: 0
A24: 인사행정 | B24: 8 | C24: 3 | D24: 5 | O24: 8 | P24: =SUM(C24:E24) -> 8 | Q24: =P24/O24 -> 1 | R24: =SUM(F24:H24) -> 0 | S24: =R24/O24 -> 0 | T24: 0 | U24: =T24/O24 -> 0 | V24: 0 | W24: =V24/O24 -> 0
A25: 재정·금융· 보험·공정거래 | B25: 37 | C25: 12 | D25: 25 | O25: 37 | P25: 37 | Q25: 1 | R25: =SUM(F25:H25) -> 0 | S25: 0 | T25: 0 | U25: 0 | V25: 0 | W25: 0
A26: 주택 | B26: 19 | C26: 8 | D26: 11 | O26: 19 | P26: 19 | Q26: 1 | R26: =SUM(F26:H26) -> 0 | S26: 0 | T26: 0 | U26: 0 | V26: 0 | W26: 0
A27: 해양수산 | B27: 2 | C27: 2 | O27: 2 | P27: =SUM(C27:E27) -> 2 | Q27: 1 | R27: =SUM(F27:H27) -> 0 | S27: 0 | T27: 0 | U27: 0 | V27: 0 | W27: 0
A28: 행정안전 | B28: 32 | C28: 21 | D28: 11 | O28: 32 | P28: =SUM(C28:E28) -> 32 | Q28: 1 | R28: =SUM(F28:G28) -> 0 | S28: 0 | T28: =SUM(J28:K28) -> 0 | U28: 0 | V28: 0 | W28: 0
A29: 환경 | B29: 10 | C29: 2 | D29: 8 | O29: 10 | P29: =SUM(C29:E29) -> 10 | Q29: 1 | R29: =SUM(F29:G29) -> 0 | S29: 0 | T29: =SUM(J29:K29) -> 0 | U29: 0 | V29: 0 | W29: 0
A30: 합계 | B30: =SUM(C30:N30) -> 1381 | C30: =SUM(C3:C29) -> 834 | D30: =SUM(D3:D29) -> 547 | E30: 0 | F30: 0 | G30: =SUM(G3:G29) -> 0 | H30: =SUM(H3:H29) -> 0 | I30: =SUM(I3:I29) -> 0 | J30: =SUM(J3:J29) -> 0 | K30: 0 | L30: 0 | M30: 0 | N30: 0 | O30: 1381 | P30: 1381 | Q30: 1 | R30: 0 | S30: 0 | T30: =SUM(I30:K30) -> 0 | U30: 0 | V30: =SUM(L30:N30) -> 0 | W30: 0
B31: 검증 | C31: =C30-C41-C47 -> 0 | D31: 0 | E31: 0 | F31: 0 | H31: 0 | I31: 0 | J31: 0 | K31: 0 | L31: 0 | M31: 0 | N31: 0 | O31: 0
A33: □ 상담결과 현황 | N33: (단위 : 건)
A34: 구분 | B34: 처리결과 | C34: 1월 | D34: 2월 | E34: 3월 | F34: 4월 | G34: 5월 | H34: 6월 | I34: 7월 | J34: 8월 | K34: 9월 | L34: 10월 | M34: 11월 | N34: 12월 | O34: 합계 | P34: 1분기 | Q34: 비율 | R34: 2분기 | S34: 비율 | T34: 3분기 | U34: 비율 | V34: 4분기 | W34: 비율
A35: 일반 | B35: 기관안내 | C35: 2 | D35: 2 | O35: =SUM(C35:N35) -> 4 | P35: =SUM(C35:E35) -> 4 | Q35: =P35/O35 -> 1 | R35: =SUM(F35:H35) -> 0 | S35: =R35/O35 -> 0 | T35: =SUM(I35:K35) -> 0 | U35: =T35/O35 -> 0 | V35: =SUM(L35:N35) -> 0 | W35: =V35/O35 -> 0
B36: 상담취하 등 | O36: 0 | P36: 0 | R36: 0 | S36: =R36/O36 ->  | T36: =SUM(I36:K36) -> 0 | V36: =SUM(L36:N36) -> 0
B37: 상담해결 | C37: 141 | D37: 101 | O37: 242 | P37: 242 | Q37: 1 | R37: 0 | S37: 0 | T37: 0 | U37: 0 | V37: 0 | W37: 0
A38: 고충 | B38: 기관안내 | C38: 3 | O38: 3 | P38: 3 | Q38: 1 | R38: 0 | S38: 0 | T38: 0 | U38: 0 | V38: 0 | W38: 0
B39: 상담취하 등 | C39: 1 | O39: 1 | P39: 1 | Q39: 1 | R39: 0 | S39: 0 | T39: 0 | U39: 0 | V39: 0 | W39: 0
B40: 상담해결 | C40: 168 | D40: 143 | O40: 311 | P40: 311 | Q40: 1 | R40: 0 | S40: 0 | T40: 0 | U40: 0 | V40: 0 | W40: 0
A41: 합계 | C41: =SUM(C35:C40) -> 315 | D41: 246 | E41: 0 | F41: 0 | G41: 0 | H41: 0 | I41: 0 | J41: 0 | K41: 0 | L41: 0 | M41: 0 | N41: 0 | O41: 561 | P41: 561 | Q41: 1 | R41: 0 | S41: 0 | T41: 0 | U41: 0 | V41: 0 | W41: 0
A43: □ 민원접수 현황
A44: 유형 | C44: 1월 | D44: 2월 | E44: 3월 | F44: 4월 | G44: 5월 | H44: 6월 | I44: 7월 | J44: 8월 | K44: 9월 | L44: 10월 | M44: 11월 | N44: 12월 | O44: 합계 | P44: 1분기 | Q44: 비율 | R44: 2분기 | S44: 비율 | T44: 3분기 | U44: 비율 | V44: 4분기 | W44: 비율
A45: 일반 | C45: 7 | D45: 35 | O45: =SUM(C45:N45) -> 42 | P45: =SUM(C45:E45) -> 42 | Q45: =P45/O45 -> 1 | R45: =SUM(F45:H45) -> 0 | S45: =R45/O45 -> 0 | T45: =SUM(I45:K45) -> 0 | U45: =T45/O45 -> 0 | V45: =SUM(L45:N45) -> 0 | W45: =V45/O45 -> 0
A46: 고충 | C46: 512 | D46: 266 | O46: =SUM(C46:N46) -> 778 | P46: =SUM(C46:E46) -> 778 | Q46: =P46/O46 -> 1 | R46: =SUM(F46:H46) -> 0 | S46: =R46/O46 -> 0 | T46: =SUM(I46:K46) -> 0 | U46: =T46/O46 -> 0 | V46: =SUM(L46:N46) -> 0 | W46: =V46/O46 -> 0
A47: 합계 | C47: =C45+C46 -> 519 | D47: =D45+D46 -> 301 | E47: 0 | F47: 0 | G47: 0 | H47: 0 | I47: 0 | J47: 0 | K47: 0 | L47: 0 | M47: 0 | N47: 0 | O47: =SUM(C47:N47) -> 820 | P47: =SUM(C47:E47) -> 820 | Q47: =P47/O47 -> 1 | R47: =SUM(F47:H47) -> 0 | S47: =R47/O47 -> 0 | T47: =SUM(I47:K47) -> 0 | U47: =T47/O47 -> 0 | V47: =SUM(L47:N47) -> 0 | W47: =V47/O47 -> 0

Sheet 13.고충민원유형별정리(월별)
C1: 민원실 상담 중 특별민원상담 현황 | N1: 온라인 민원상담 중 특별민원상담 현황
I2: (단위:건,%) | T2: (단위:건,%)
B3: 전체 민원 | C3: 전체 특별민원 | D3: 비율 | E3: 특이민원 | F3: 비율 | G3: 반복민원 | H3: 비율 | I3: 특이-반복중복 | J3: 비율 | M3: 전체 민원 | N3: 전체 특별민원 | O3: 비율 | P3: 특이민원 | Q3: 비율 | R3: 반복민원 | S3: 비율 | T3: 특이-반복중복 | U3: 비율
A4: 합계 | B4: =SUM(B5:B16) -> 1381 | C4: =SUM(C5:C16) -> 0 | D4: =C4/B4 -> 0 | E4: =SUM(E5:E16) -> 0 | F4: =E4/B4 -> 0 | G4: =SUM(G5:G16) -> 0 | H4: =G4/B4 -> 0 | I4: =SUM(I5:I16) -> 0 | J4: =I4/B4 -> 0 | L4: 합계 | M4: =SUM(M5:M16) -> 3719 | N4: =SUM(N5:N16) -> 0 | O4: =N4/M4 -> 0 | P4: =SUM(P5:P16) -> 0 | Q4: =P4/M4 -> 0 | R4: =SUM(R5:R16) -> 0 | S4: =R4/M4 -> 0 | T4: =SUM(T5:T16) -> 0 | U4: =T4/M4 -> 0
A5: 1월 | B5: ='12.분야별상담및접수(서울세종창구상담)'!C30 -> 834 | D5: 0 | F5: =E5/B5 -> 0 | H5: =G5/B5 -> 0 | J5: =I5/B5 -> 0 | L5: 1월 | M5: ='10.온라인 상담'!C7 -> 2257 | O5: 0 | Q5: =P5/M5 -> 0 | S5: =R5/M5 -> 0 | U5: =T5/M5 -> 0
A6: 2월 | B6: ='12.분야별상담및접수(서울세종창구상담)'!D30 -> 547 | D6: 0 | F6: 0 | H6: 0 | J6: 0 | L6: 2월 | M6: ='10.온라인 상담'!D7 -> 1462 | O6: 0 | Q6: 0 | S6: 0 | U6: 0
A7: 3월 | B7: ='12.분야별상담및접수(서울세종창구상담)'!E30 -> 0 | L7: 3월 | M7: ='10.온라인 상담'!E7 -> 0
A8: 4월 | B8: ='12.분야별상담및접수(서울세종창구상담)'!F30 -> 0 | L8: 4월 | M8: ='10.온라인 상담'!F7 -> 0
A9: 5월 | B9: ='12.분야별상담및접수(서울세종창구상담)'!G30 -> 0 | L9: 5월 | M9: ='10.온라인 상담'!G7 -> 0
A10: 6월 | B10: ='12.분야별상담및접수(서울세종창구상담)'!H30 -> 0 | L10: 6월 | M10: ='10.온라인 상담'!H7 -> 0
A11: 7월 | B11: ='12.분야별상담및접수(서울세종창구상담)'!I30 -> 0 | L11: 7월 | M11: ='10.온라인 상담'!I7 -> 0
A12: 8월 | B12: ='12.분야별상담및접수(서울세종창구상담)'!J30 -> 0 | L12: 8월 | M12: ='10.온라인 상담'!J7 -> 0
A13: 9월 | B13: ='12.분야별상담및접수(서울세종창구상담)'!K30 -> 0 | L13: 9월 | M13: ='10.온라인 상담'!K7 -> 0
A14: 10월 | B14: ='12.분야별상담및접수(서울세종창구상담)'!L30 -> 0 | L14: 10월 | M14: ='10.온라인 상담'!L7 -> 0
A15: 11월 | B15: ='12.분야별상담및접수(서울세종창구상담)'!M30 -> 0 | L15: 11월 | M15: ='10.온라인 상담'!M7 -> 0
A16: 12월 | B16: ='12.분야별상담및접수(서울세종창구상담)'!N30 -> 0 | L16: 12월 | M16: ='10.온라인 상담'!N7 -> 0

Sheet Sheet1
B2: 전체 | C2: 월평 | D2: 전체 | E2: 월평
B3: 46766 | C3: =B3/12 -> 3897.166667 | D3: 17703 | E3: =D3/6 -> 2950.5
B4: 11878 | C4: =B4/12 -> 989.8333333 | D4: 5939 | E4: =D4/6 -> 989.8333333
B5: 323 | C5: 26.91666667 | D5: 76 | E5: 12.66666667
B6: 3097391 | C6: 258115.9167 | D6: 1314791 | E6: 219131.8333
B7: =SUM(B3:B6) -> 3156358 | C7: 263029.8333 | D7: =SUM(D3:D6) -> 1338509 | E7: 223084.8333
C8: 0 | E8: 0
B9: 3923 | C9: 326.9166667 | D9: 1643 | E9: 273.8333333
B10: 22792 | C10: 1899.333333 | D10: 7494 | E10: 1249
B11: 592 | C11: 49.33333333 | D11: 180 | E11: 30
B12: 97 | C12: 8.083333333 | D12: 66 | E12: 11
B13: 4682 | C13: 390.1666667 | D13: 2862 | E13: 477
B14: =SUM(B9:B13) -> 32086 | C14: 2673.833333 | D14: =SUM(D9:D13) -> 12245 | E14: 2040.833333
C15: 0 | E15: 0
C16: 0 | E16: 0
B17: =B14+B7 -> 3188444 | C17: 265703.6667 | D17: =D14+D7 -> 1350754 | E17: 225125.6667

Sheet Sheet2
B2: 구 분 | D2: ‘19.1.~9.(개소전) | F2: ‘19.10.~12.(개소후) | H2: ’20년 | J2: ’21년 | L2: ’22년 | N2: ’23년 5월 | P2: 전체
D3: 전체 | E3: 월평균 | F3: 전체 | G3: 월평균 | H3: 전체 | I3: 월평균 | J3: 전체 | K3: 월평균 | L3: 전체 | M3: 월평균 | N3: 전체 | O3: 월평균
B4: 합계 | D4: =D9+D15 -> 2363282 | E4: =D4/9 -> 262586.8889 | F4: =F9+F15 -> 859846 | G4: =F4/3 -> 286615.3333 | H4: =H9+H15 -> 3888653 | I4: =H4/12 -> 324054.4167 | J4: 3188444 | K4: =J4/12 -> 265703.6667 | L4: 2742541 | M4: =L4/6 -> 457090.1667 | N4: =N9+N15 -> 1155107 | O4: =N4/6 -> 192517.8333 | P4: =F4+H4+J4+L4+N4 -> 11834591
B5: 상 | C5: 민원 | D5: 7150 | E5: =D5/9 -> 794.4444444 | F5: 3869 | G5: =F5/3 -> 1289.666667 | H5: 41004 | I5: =H5/12 -> 3417 | J5: 46766 | K5: =J5/12 -> 3897.166667 | L5: 35957 | M5: =L5/6 -> 5992.833333 | N5: 13592 | O5: =N5/6 -> 2265.333333 | P5: =F5+H5+J5+L5+N5 -> 141188
B6: 담 | C6: 부패 | D6: 13037 | E6: 1448.555556 | F6: 10010 | G6: =F6/3 -> 3336.666667 | H6: 13349 | I6: 1112.416667 | J6: 11878 | K6: 989.8333333 | L6: 11814 | M6: 1969 | N6: 5160 | O6: 860 | P6: 52211
C7: 행정심판 | D7: 318 | E7: 35.33333333 | F7: 129 | G7: 43 | H7: 420 | I7: 35 | J7: 323 | K7: 26.91666667 | L7: 200 | M7: 33.33333333 | N7: 59 | O7: 9.833333333 | P7: 1131
C8: 국민콜110 | D8: 2301532 | E8: 255725.7778 | F8: 838385 | G8: 279461.6667 | H8: 3801491 | I8: 316790.9167 | J8: 3097391 | K8: 258115.9167 | L8: 2665492 | M8: 444248.6667 | N8: 1118675 | O8: 186445.8333 | P8: 11521434
C9: 계 | D9: =SUM(D5:D8) -> 2322037 | E9: 258004.1111 | F9: =SUM(F5:F8) -> 852393 | G9: 284131 | H9: 3856264 | I9: 321355.3333 | J9: 3156358 | K9: 263029.8333 | L9: 2713463 | M9: 452243.8333 | N9: =SUM(N5:N8) -> 1137486 | O9: 189581 | P9: =SUM(P5:P8) -> 11715964
B10: 접 | C10: 민원 | D10: 1896 | E10: 210.6666667 | F10: 824 | G10: 274.6666667 | H10: 3866 | I10: 322.1666667 | J10: 3923 | K10: 326.9166667 | L10: 3300 | M10: 550 | N10: 1139 | O10: 189.8333333 | P10: 13052
B11: 수 | C11: 대통령실서신민원 | D11: 27986 | E11: 3109.555556 | F11: 5704 | G11: 1901.333333 | H11: 25000 | I11: 2083.333333 | J11: 22792 | K11: 1899.333333 | L11: 18658 | M11: 3109.666667 | N11: 9754 | O11: 1625.666667 | P11: 81908
C12: 행정심판 | D12: 664 | E12: 73.77777778 | F12: 215 | G12: 71.66666667 | H12: 618 | I12: 51.5 | J12: 592 | K12: 49.33333333 | L12: 377 | M12: 62.83333333 | N12: 59 | O12: 9.833333333 | P12: 1861
C13: 부패 | D13: 8170 | E13: 907.7777778 | F13: 0 | G13: 0 | H13: 142 | I13: 11.83333333 | J13: 97 | K13: 8.083333333 | L13: 125 | M13: 20.83333333 | N13: 51 | O13: 8.5 | P13: 415
C14: 민형사 | D14: 2529 | E14: 281 | F14: 710 | G14: 236.6666667 | H14: 2763 | I14: 230.25 | J14: 4682 | K14: 390.1666667 | L14: 6618 | M14: 1103 | N14: 6618 | O14: 1103 | P14: 21391
C15: 계 | D15: =SUM(D10:D14) -> 41245 | E15: 4582.777778 | F15: =SUM(F10:F14) -> 7453 | G15: 2484.333333 | H15: 32389 | I15: 2699.083333 | J15: 32086 | K15: 2673.833333 | L15: 29078 | M15: 4846.333333 | N15: =SUM(N10:N14) -> 17621 | O15: 2936.833333 | P15: =SUM(P10:P14) -> 118627

Sheet Sheet3
G1: 2023년 6월말
B2: 민원실 | C2: 온라인 | D2: 계 | H2: 온라인 | J2: 방문 | M2: 계
A3: 건축 | B3: 26 | C3: 187 | D3: =C3+B3 -> 213 | G3: 구 분 | H3: 합계
A4: 경찰 | B4: 154 | C4: 252 | D4: =C4+B4 -> 406 | G4: 건축 | H4: 393 | J4: 건축 | K4: 58 | M4: =H4+K4 -> 451
A5: 고용노동 | B5: 87 | C5: 1998 | D5: 2085 | G5: 경찰 | H5: 530 | J5: 경찰 | K5: 309 | M5: =H5+K5 -> 839
A6: 교육 | B6: 9 | C6: 210 | D6: 219 | G6: 고용노동 | H6: 3649 | J6: 고용노동 | K6: 128 | M6: 3777
A7: 교통 | B7: 23 | C7: 134 | D7: 157 | G7: 교육 | H7: 415 | J7: 교육 | K7: 23 | M7: 438
A8: 국방 | B8: 20 | C8: 129 | D8: 149 | G8: 교통 | H8: 287 | J8: 교통 | K8: 42 | M8: 329
A9: 군사 | B9: 0 | C9: 53 | D9: 53 | G9: 국방 | H9: 242 | J9: 국방 | K9: 49 | M9: 291
A10: 기타 | B10: 439 | C10: 327 | D10: 766 | G10: 군사 | H10: 105 | J10: 군사 | K10: 2 | M10: 107
A11: 농림·축산 | B11: 33 | C11: 156 | D11: 189 | G11: 기타 | H11: 565 | J11: 기타 | K11: 913 | M11: 1478
A12: 도로 | B12: 28 | C12: 72 | D12: 100 | G12: 농림축산 | H12: 317 | J12: 농림·축산 | K12: 69 | M12: 386
A13: 도시 | B13: 48 | C13: 42 | D13: 90 | G13: 도로 | H13: 213 | J13: 도로 | K13: 64 | M13: 277
A14: 문화·관광·체육 | B14: 6 | C14: 66 | D14: 72 | G14: 도시 | H14: 96 | J14: 도시 | K14: 75 | M14: 171
A15: 민사·법무 | B15: 238 | C15: 555 | D15: 793 | G15: 문화체육관광 | H15: 139 | J15: 문화·관광·체육 | K15: 20 | M15: 159
A16: 방송통신 | B16: 11 | C16: 107 | D16: 118 | G16: 민사법무 | H16: 1142 | J16: 민사·법무 | K16: 451 | M16: 1593
A17: 보건복지 | B17: 65 | C17: 443 | D17: 508 | G17: 방송통신 | H17: 195 | J17: 방송통신 | K17: 27 | M17: 222
A18: 보훈 | B18: 31 | C18: 13 | D18: 44 | G18: 보건복지 | H18: 897 | J18: 보건복지 | K18: 120 | M18: 1017
A19: 산업·통상·자원 | B19: 23 | C19: 276 | D19: 299 | G19: 보훈 | H19: 21 | J19: 보훈 | K19: 93 | M19: 114
A20: 세무 | B20: 43 | C20: 227 | D20: 270 | G20: 산업통상자원 | H20: 566 | J20: 산업·통상·자원 | K20: 45 | M20: 611
A21: 수자원 | B21: 2 | C21: 1 | D21: 3 | G21: 세무 | H21: 416 | J21: 세무 | K21: 112 | M21: 528
A22: 식품의약 | B22: 1 | C22: 569 | D22: 570 | G22: 수자원 | H22: 2 | J22: 수자원 | K22: 10 | M22: 12
A23: 외무·통일 | B23: 9 | C23: 19 | D23: 28 | G23: 식품의약 | H23: 1123 | J23: 식품의약 | K23: 4 | M23: 1127
A24: 인사행정 | B24: 6 | C24: 71 | D24: 77 | G24: 외무통일 | H24: 33 | J24: 외무·통일 | K24: 16 | M24: 49
A25: 재정·금융·보험·공정거래 | B25: 53 | C25: 497 | D25: 550 | G25: 인사행정 | H25: 135 | J25: 인사행정 | K25: 16 | M25: 151
A26: 주택 | B26: 64 | C26: 354 | D26: 418 | E26: =D26+D3 -> 631 | G26: 재정금융공정 | H26: 1070 | J26: 재정·금융· 보험·공정거래 | K26: 103 | M26: 1173
A27: 해양수산 | B27: 0 | C27: 22 | D27: 22 | G27: 주택 | H27: 668 | J27: 주택 | K27: 122 | M27: 790
A28: 행정안전 | B28: 88 | C28: 485 | D28: 573 | G28: 해양수산 | H28: 51 | J28: 해양수산 | K28: 3 | M28: 54
A29: 환경 | B29: 10 | C29: 189 | D29: 199 | G29: 행정안전 | H29: 930 | J29: 행정안전 | K29: 179 | M29: 1109
A30: 합계 | B30: 1517 | C30: 7454 | D30: 8971 | G30: 환경 | H30: 433 | J30: 환경 | K30: 26 | M30: 459
G31: 합계 | H31: 14633 | J31: 합계 | K31: 3079 | M31: 17712

Sheet Sheet4
B1: 오프라인 | E1: 온라인 | J1: 합계 | M1: 합계
B2: 건축 | C2: 182 | E2: 건축 | F2: 889 | I2: 건축 | J2: =F2+C2 -> 1071 | L2: 건축 | M2: 1071 | O2: 건축 | P2: 경찰 | Q2: 고용노동 | R2: 교육 | S2: 교통 | T2: 국방 | U2: 군사 | V2: 기타 | W2: 농림축산 | X2: 도로 | Y2: 도시 | Z2: 문화체육관광 | AA2: 민사법무 | AB2: 방송통신
B3: 경찰 | C3: 447 | E3: 경찰 | F3: 1800 | I3: 경찰 | J3: 2247 | L3: 경찰 | M3: 2247 | O3: 1071 | P3: 2247 | Q3: 7701 | R3: 925 | S3: 964 | T3: 600 | U3: 244 | V3: 2844 | W3: 863 | X3: 572 | Y3: 386 | Z3: 381 | AA3: 3306 | AB3: 545
B4: 고용노동 | C4: 423 | E4: 고용노동 | F4: 7278 | I4: 고용노동 | J4: 7701 | L4: 고용노동 | M4: 7701
B5: 교육 | C5: 37 | E5: 교육 | F5: 888 | I5: 교육 | J5: 925 | L5: 교육 | M5: 925 | O5: 보건복지 | P5: 보훈 | Q5: 산업통상자원 | R5: 세무 | S5: 수자원 | T5: 식품의약 | U5: 외무통일 | V5: 인사행정 | W5: 재정금융공정 | X5: 주택 | Y5: 해양수산 | Z5: 행정안전 | AA5: 환경 | AB5: 합계
B6: 교통 | C6: 200 | E6: 교통 | F6: 764 | I6: 교통 | J6: 964 | L6: 교통 | M6: 964 | O6: 3058 | P6: 186 | Q6: 1839 | R6: 1312 | S6: 14 | T6: 1971 | U6: 154 | V6: 297 | W6: 2351 | X6: 1786 | Y6: 139 | Z6: 2345 | AA6: 1156 | AB6: 39257
B7: 국방 | C7: 105 | E7: 국방 | F7: 495 | I7: 국방 | J7: 600 | L7: 국방 | M7: 600
B8: 군사 | C8: 12 | E8: 군사 | F8: 232 | I8: 군사 | J8: 244 | L8: 군사 | M8: 244
B9: 기타 | C9: 1840 | E9: 기타 | F9: 1004 | I9: 기타 | J9: 2844 | L9: 기타 | M9: 2844
B10: 농림·축산 | C10: 188 | E10: 농림축산 | F10: 675 | I10: 농림축산 | J10: 863 | L10: 농림축산 | M10: 863 | R10: 건축 | S10: 경찰 | T10: 고용노동 | U10: 교육 | V10: 교통 | W10: 국방 | X10: 군사 | Y10: 기타 | Z10: 농림축산 | AA10: 도로 | AB10: 도시 | AC10: 문화체육관광 | AD10: 민사법무 | AE10: 방송통신
B11: 도로 | C11: 194 | E11: 도로 | F11: 378 | I11: 도로 | J11: 572 | L11: 도로 | M11: 572 | R11: 889 | S11: 1800 | T11: 7278 | U11: 888 | V11: 764 | W11: 495 | X11: 232 | Y11: 1004 | Z11: 675 | AA11: 378 | AB11: 251 | AC11: 361 | AD11: 2069 | AE11: 423
B12: 도시 | C12: 135 | E12: 도시 | F12: 251 | I12: 도시 | J12: 386 | L12: 도시 | M12: 386 | R12: 보건복지 | S12: 보훈 | T12: 산업통상자원 | U12: 세무 | V12: 수자원 | W12: 식품의약 | X12: 외무통일 | Y12: 인사행정 | Z12: 재정금융공정 | AA12: 주택 | AB12: 해양수산 | AC12: 행정안전 | AD12: 환경 | AE12: 합계
B13: 문화·관광·체육 | C13: 20 | E13: 문화체육관광 | F13: 361 | I13: 문화체육관광 | J13: 381 | L13: 문화체육관광 | M13: 381 | R13: 2692 | S13: 61 | T13: 1514 | U13: 1042 | V13: 4 | W13: 1963 | X13: 108 | Y13: 265 | Z13: 2114 | AA13: 1515 | AB13: 119 | AC13: 1882 | AD13: 1082 | AE13: 31868
B14: 민사·법무 | C14: 1237 | E14: 민사법무 | F14: 2069 | I14: 민사법무 | J14: 3306 | L14: 민사법무 | M14: 3306
B15: 방송통신 | C15: 122 | E15: 방송통신 | F15: 423 | I15: 방송통신 | J15: 545 | L15: 방송통신 | M15: 545 | O15: 건축 | P15: 889
B16: 보건복지 | C16: 366 | E16: 보건복지 | F16: 2692 | I16: 보건복지 | J16: 3058 | L16: 보건복지 | M16: 3058 | O16: 경찰 | P16: 1800
B17: 보훈 | C17: 125 | E17: 보훈 | F17: 61 | I17: 보훈 | J17: 186 | L17: 보훈 | M17: 186 | O17: 고용노동 | P17: 7278
B18: 산업·통상·자원 | C18: 325 | E18: 산업통상자원 | F18: 1514 | I18: 산업통상자원 | J18: 1839 | L18: 산업통상자원 | M18: 1839 | O18: 교육 | P18: 888
B19: 세무 | C19: 270 | E19: 세무 | F19: 1042 | I19: 세무 | J19: 1312 | L19: 세무 | M19: 1312 | O19: 교통 | P19: 764
B20: 수자원 | C20: 10 | E20: 수자원 | F20: 4 | I20: 수자원 | J20: 14 | L20: 수자원 | M20: 14 | O20: 국방 | P20: 495
B21: 식품의약 | C21: 8 | E21: 식품의약 | F21: 1963 | I21: 식품의약 | J21: 1971 | L21: 식품의약 | M21: 1971 | O21: 군사 | P21: 232
B22: 외무·통일 | C22: 46 | E22: 외무통일 | F22: 108 | I22: 외무통일 | J22: 154 | L22: 외무통일 | M22: 154 | O22: 기타 | P22: 1004
B23: 인사행정 | C23: 32 | E23: 인사행정 | F23: 265 | I23: 인사행정 | J23: 297 | L23: 인사행정 | M23: 297 | O23: 농림축산 | P23: 675
B24: 재정·금융·보험·공정거래 | C24: 237 | E24: 재정금융공정 | F24: 2114 | I24: 재정금융공정 | J24: 2351 | L24: 재정금융공정 | M24: 2351 | O24: 도로 | P24: 378
B25: 주택 | C25: 271 | E25: 주택 | F25: 1515 | I25: 주택 | J25: 1786 | L25: 주택 | M25: 1786 | O25: 도시 | P25: 251
B26: 해양수산 | C26: 20 | E26: 해양수산 | F26: 119 | I26: 해양수산 | J26: 139 | L26: 해양수산 | M26: 139 | O26: 문화체육관광 | P26: 361
B27: 행정안전 | C27: 463 | E27: 행정안전 | F27: 1882 | I27: 행정안전 | J27: 2345 | L27: 행정안전 | M27: 2345 | O27: 민사법무 | P27: 2069
B28: 환경 | C28: 74 | E28: 환경 | F28: 1082 | I28: 환경 | J28: 1156 | L28: 환경 | M28: 1156 | O28: 방송통신 | P28: 423
B29: 합계 | C29: 7389 | E29: 합계 | F29: 31868 | I29: 합계 | J29: 39257 | L29: 합계 | M29: 39257 | O29: 보건복지 | P29: 2692
O30: 보훈 | P30: 61
O31: 산업통상자원 | P31: 1514
O32: 세무 | P32: 1042
O33: 수자원 | P33: 4
O34: 식품의약 | P34: 1963
O35: 외무통일 | P35: 108
O36: 인사행정 | P36: 265
O37: 재정금융공정 | P37: 2114
O38: 주택 | P38: 1515
O39: 해양수산 | P39: 119
O40: 행정안전 | P40: 1882
O41: 환경 | P41: 1082
O42: 합계 | P42: 31868

Sheet Sheet5
A2: 구 분 | B2: 1월 | C2: 2월 | D2: 3월 | E2: 4월 | F2: 5월 | G2: 6월 | H2: 7월 | I2: 8월 | J2: 9월 | K2: 10월 | L2: 11월 | M2: 12월 | N2: 계
A3: 근무일 | B3: 20 | C3: 20 | D3: 22 | E3: 20 | F3: 21 | N3: =SUM(B3:M3) -> 103

Sheet Sheet6
A1: 구분 | C1: 계 | D1: 유형별 | H1: 경로별 | N1: 체크
D2: 상담 | F2: 접수 | H2: 방문/우편 | J2: 온라인 | L2: 전화 등
D3: 일반 | E3: 고충 | F3: 일반 | G3: 고충 | H3: 일반 | I3: 고충 | J3: 일반 | K3: 고충 | L3: 일반 | M3: 고충
A4: 민원 상담/ 접수 | B4: 6월 | C4: =D5+F5 -> 2981 | D4: 2523 | E4: 104 | F4: 68 | G4: 286 | H4: =E14+E15+E16+E19+G14+G15+G16+G19 -> 0 | I4: =D14+D15+D16+F14+F15+F16+D19+F19 -> 0 | J4: =E17+G17 -> 2382 | K4: =D17+F17 -> 4 | L4: =E13+G13+E18+G18 -> 0 | M4: =D13+F13+D18+F18 -> 0 | N4: =C4-H5-J5-L5 -> 595
D5: =D4+E4 -> 2627 | F5: =F4+G4 -> 354 | H5: =H4+I4 -> 0 | J5: =J4+K4 -> 2386 | L5: =L4+M4 -> 0
B6: 7월 | C6: =D7+F7 -> 2941 | D6: 2502 | E6: 138 | F6: 100 | G6: 201 | H6: =E25+E26+E27+E30+G25+G26+G27+G30 -> 0 | I6: =D25+D26+D27+D30+F25+F26+F27+F30 -> 0 | J6: =E28+G28 -> 2346 | K6: =D28+F28 -> 4 | L6: =E24+E29+G24+G29 -> 0 | M6: =D24+D29+F24+F29 -> 0 | N6: =L7+J7+H7-C6 -> -591
D7: =D6+E6 -> 2640 | F7: =F6+G6 -> 301 | H7: =H6+I6 -> 0 | J7: =J6+K6 -> 2350 | L7: =L6+M6 -> 0
B8: 증감률(%) | C8: =(C6-C4)/C4 -> -0.013418316 | D8: =(D5-D7)/D7 -> -0.004924242424 | F8: =(F7-F5)/F5 -> -0.1497175141 | H8: =(H7-H5)/H5 ->  | J8: =(J7-J5)/J5 -> -0.01508801341 | L8: =(L7-L5)/L5 -> 
C11: 6월 | D11: 상담 | F11: 접수
D12: 고충 | E12: 일반 | F12: 고충 | G12: 일반 | J12: 2502 | K12: 138 | L12: 100 | M12: 201 | N12: =SUM(J12:M12) -> 2941
C13: FAX | D13: ='3.민원실창구상담'!H115 -> 0 | E13: ='3.민원실창구상담'!H123 -> 0 | F13: ='8.접수'!H30 -> 0 | G13: ='8.접수'!H38 -> 0
C14: 방문 | D14: ='3.민원실창구상담'!H116 -> 0 | E14: ='3.민원실창구상담'!H124 -> 0 | F14: ='8.접수'!H31 -> 0 | G14: ='8.접수'!H39 -> 0
C15: 방문전화 | D15: ='3.민원실창구상담'!H117 -> 0 | E15: ='3.민원실창구상담'!H125 -> 0 | F15: ='8.접수'!H32 -> 0 | G15: ='8.접수'!H40 -> 0
C16: 우편 | D16: ='3.민원실창구상담'!H118 -> 0 | E16: ='3.민원실창구상담'!H126 -> 0 | F16: ='8.접수'!H33 -> 0 | G16: ='8.접수'!H41 -> 0
C17: 인터넷 | D17: 4 | E17: 2382 | F17: ='8.접수'!H34 -> 0 | G17: ='8.접수'!H42 -> 0
C18: 전화 | D18: ='3.민원실창구상담'!H120 -> 0 | E18: ='3.민원실창구상담'!H128 -> 0 | F18: ='8.접수'!H35 -> 0 | G18: ='8.접수'!H43 -> 0
B19: =SUM(D13:G19) -> 2386 | C19: 화상 | D19: ='3.민원실창구상담'!H121 -> 0 | E19: ='3.민원실창구상담'!H129 -> 0 | F19: ='8.접수'!H36 -> 0 | G19: ='8.접수'!H44 -> 0
G20: =SUM(D13:E19) -> 2386 | H20: =SUM(F13:G19) -> 0 | I20: =SUM(G20:H20) -> 2386
C22: 7월 | D22: 상담 | F22: 접수
D23: 고충 | E23: 일반 | F23: 고충 | G23: 일반
C24: FAX | D24: ='3.민원실창구상담'!I115 -> 0 | E24: ='3.민원실창구상담'!I123 -> 0 | F24: ='8.접수'!I30 -> 0 | G24: ='8.접수'!I38 -> 0
C25: 방문 | D25: ='3.민원실창구상담'!I116 -> 0 | E25: ='3.민원실창구상담'!I124 -> 0 | F25: ='8.접수'!I31 -> 0 | G25: ='8.접수'!I39 -> 0
C26: 방문전화 | D26: ='3.민원실창구상담'!I117 -> 0 | E26: ='3.민원실창구상담'!I125 -> 0 | F26: ='8.접수'!I32 -> 0 | G26: ='8.접수'!I40 -> 0
C27: 우편 | D27: ='3.민원실창구상담'!I118 -> 0 | E27: ='3.민원실창구상담'!I126 -> 0 | F27: ='8.접수'!I33 -> 0 | G27: ='8.접수'!I41 -> 0
C28: 인터넷 | D28: 4 | E28: 2346 | F28: ='8.접수'!I34 -> 0 | G28: ='8.접수'!I42 -> 0
C29: 전화 | D29: ='3.민원실창구상담'!I120 -> 0 | E29: ='3.민원실창구상담'!I128 -> 0 | F29: ='8.접수'!I35 -> 0 | G29: ='8.접수'!I43 -> 0
B30: =SUM(D24:G30) -> 2350 | C30: 화상 | D30: ='3.민원실창구상담'!I121 -> 0 | E30: ='3.민원실창구상담'!I129 -> 0 | F30: ='8.접수'!I36 -> 0 | G30: ='8.접수'!I44 -> 0
G31: =SUM(D24:E30) -> 2350 | H31: =SUM(F24:G30) -> 0 | I31: =SUM(G31:H31) -> 2350

Sheet Sheet7
A1: 건축 | B1: 578 | C1: 건축 | D1: 104 | E1: 건축 | F1: =B1+D1 -> 682
A2: 경찰 | B2: 761 | C2: 경찰 | D2: 473 | E2: 경찰 | F2: =B2+D2 -> 1234
A3: 고용노동 | B3: 5095 | C3: 고용노동 | D3: 184 | E3: 고용노동 | F3: 5279
A4: 교육 | B4: 594 | C4: 교육 | D4: 36 | E4: 교육 | F4: 630
A5: 교통 | B5: 427 | C5: 교통 | D5: 73 | E5: 교통 | F5: 500
A6: 국방 | B6: 344 | C6: 국방 | D6: 61 | E6: 국방 | F6: 405
A7: 군사 | B7: 149 | C7: 군사 | D7: 3 | E7: 군사 | F7: 152
A8: 기타 | B8: 781 | C8: 기타 | D8: 1456 | E8: 기타 | F8: 2237
A9: 농림축산 | B9: 447 | C9: 농림·축산 | D9: 135 | E9: 농림·축산 | F9: 582
A10: 도로 | B10: 321 | C10: 도로 | D10: 98 | E10: 도로 | F10: 419
A11: 도시 | B11: 150 | C11: 도시 | D11: 127 | E11: 도시 | F11: 277
A12: 문화체육관광 | B12: 209 | C12: 문화·관광·체육 | D12: 30 | E12: 문화·관광·체육 | F12: 239
A13: 민사법무 | B13: 1610 | C13: 민사·법무 | D13: 713 | E13: 민사·법무 | F13: 2323
A14: 방송통신 | B14: 286 | C14: 방송통신 | D14: 38 | E14: 방송통신 | F14: 324
A15: 보건복지 | B15: 1258 | C15: 보건복지 | D15: 203 | E15: 보건복지 | F15: 1461
A16: 보훈 | B16: 31 | C16: 보훈 | D16: 133 | E16: 보훈 | F16: 164
A17: 산업통상자원 | B17: 840 | C17: 산업·통상·자원 | D17: 63 | E17: 산업·통상·자원 | F17: 903
A18: 세무 | B18: 530 | C18: 세무 | D18: 171 | E18: 세무 | F18: 701
A19: 수자원 | B19: 5 | C19: 수자원 | D19: 11 | E19: 수자원 | F19: 16
A20: 식품의약 | B20: 1595 | C20: 식품의약 | D20: 7 | E20: 식품의약 | F20: 1602
A21: 외무통일 | B21: 40 | C21: 외무·통일 | D21: 23 | E21: 외무·통일 | F21: 63
A22: 인사행정 | B22: 224 | C22: 인사행정 | D22: 20 | E22: 인사행정 | F22: 244
A23: 재정금융공정 | B23: 1488 | C23: 재정·금융· 보험·공정거래 | D23: 145 | E23: 재정·금융· 보험·공정거래 | F23: 1633
A24: 주택 | B24: 940 | C24: 주택 | D24: 168 | E24: 주택 | F24: 1108
A25: 해양수산 | B25: 75 | C25: 해양수산 | D25: 5 | E25: 해양수산 | F25: 80
A26: 행정안전 | B26: 1343 | C26: 행정안전 | D26: 251 | E26: 행정안전 | F26: 1594
A27: 환경 | B27: 618 | C27: 환경 | D27: 42 | E27: 환경 | F27: 660
A28: 합계 | B28: 20739 | C28: 합계 | D28: 4773 | E28: 합계 | F28: 25512

Sheet 2023년 조사관
A1: 민원실 | C1: 온라인 | F1: 계 | G1: 비율
A2: 건축 | B2: 59 | C2: 건축 | D2: 704 | E2: 건축 | F2: =B2+D2 -> 763 | G2: =F2/$F$29 -> 0.02767802082 | I2: 계 | J2: 행정문화교육 | K2: 국방보훈 | L2: 경찰 | M2: 복지노동 | N2: 재정세무 | O2: 산업농림환경 | P2: 주택건축 | Q2: 도시 | R2: 교통도로 | S2: 민형사등
A3: 경찰 | B3: 168 | C3: 경찰 | D3: 972 | E3: 경찰 | F3: =B3+D3 -> 1140 | G3: =F3/$F$29 -> 0.04135379258 | I3: =SUM(J3:S3) -> 27567 | J3: =SUM(J5:J13) -> 3147 | K3: =SUM(K5:K13) -> 745 | L3: 1140 | M3: 10557 | N3: 2616 | O3: 2672 | P3: 2078 | Q3: 287 | R3: 998 | S3: 3327
A4: 고용노동 | B4: 50 | C4: 고용노동 | D4: 6473 | E4: 고용노동 | F4: 6523 | G4: 0.2366234991 | J4: =J3/$I3 -> 0.1141582327 | K4: =K3/$I3 -> 0.0270250662 | L4: 0.04135379258 | M4: 0.3829578844 | N4: 0.09489607139 | O4: 0.09692748576 | P4: 0.07537998331 | Q4: 0.01041099866 | R4: 0.03620270613 | S4: 0.1206877789
A5: 교육 | B5: 9 | C5: 교육 | D5: 759 | E5: 교육 | F5: 768 | G5: 0.02785939711 | J5: 768 | K5: 481 | L5: 1140 | M5: 6523 | N5: 667 | O5: 613 | P5: 763 | Q5: 271 | R5: 546 | S5: 1228
A6: 교통 | B6: 32 | C6: 교통 | D6: 514 | E6: 교통 | F6: 546 | G6: 0.01980629013 | J6: 283 | K6: 203 | M6: 363 | N6: 1949 | O6: 1136 | P6: 1315 | Q6: 16 | R6: 452 | S6: 2099
A7: 국방 | B7: 30 | C7: 국방 | D7: 451 | E7: 국방 | F7: 481 | G7: 0.01744839845 | J7: 53 | K7: 61 | M7: 1661 | O7: 98
A8: 군사 | B8: 0 | C8: 군사 | D8: 203 | E8: 군사 | F8: 203 | G8: 0.007363877099 | J8: 299 | M8: 2010 | O8: 825
A9: 기타 | B9: 283 | C9: 기타 | D9: 945 | E9: 기타 | F9: 1228 | G9: 0.04454601516 | J9: 1744
A10: 농림·축산 | B10: 69 | C10: 농림축산 | D10: 544 | E10: 농림·축산 | F10: 613 | G10: 0.02223673232
A11: 도로 | B11: 56 | C11: 도로 | D11: 396 | E11: 도로 | F11: 452 | G11: 0.016396416
A12: 도시 | B12: 81 | C12: 도시 | D12: 190 | E12: 도시 | F12: 271 | G12: 0.009830594551
A13: 문화·관광·체육 | B13: 12 | C13: 문화체육관광 | D13: 271 | E13: 문화·관광·체육 | F13: 283 | G13: 0.01026589763
A14: 민사·법무 | B14: 34 | C14: 민사법무 | D14: 2065 | E14: 민사·법무 | F14: 2099 | G14: 0.0761417637
A15: 방송통신 | B15: 4 | C15: 방송통신 | D15: 359 | E15: 방송통신 | F15: 363 | G15: 0.01316791816
A16: 보건복지 | B16: 72 | C16: 보건복지 | D16: 1589 | E16: 보건복지 | F16: 1661 | G16: 0.06025320129
A17: 보훈 | B17: 24 | C17: 보훈 | D17: 37 | E17: 보훈 | F17: 61 | G17: 0.002212790655
A18: 산업·통상·자원 | B18: 33 | C18: 산업통상자원 | D18: 1103 | E18: 산업·통상·자원 | F18: 1136 | G18: 0.04120869155
A19: 세무 | B19: 51 | C19: 세무 | D19: 616 | E19: 세무 | F19: 667 | G19: 0.02419559618
A20: 수자원 | B20: 9 | C20: 수자원 | D20: 7 | E20: 수자원 | F20: 16 | G20: 0.0005804041064
A21: 식품의약 | B21: 2 | C21: 식품의약 | D21: 2008 | E21: 식품의약 | F21: 2010 | G21: 0.07291326586
A22: 외무·통일 | B22: 5 | C22: 외무통일 | D22: 48 | E22: 외무·통일 | F22: 53 | G22: 0.001922588602
A23: 인사행정 | B23: 7 | C23: 인사행정 | D23: 292 | E23: 인사행정 | F23: 299 | G23: 0.01084630174
A24: 재정·금융·보험 ·공정거래 | B24: 45 | C24: 재정금융공정 | D24: 1904 | E24: 재정·금융·보험 ·공정거래 | F24: 1949 | G24: 0.07070047521
A25: 주택 | B25: 77 | C25: 주택 | D25: 1238 | E25: 주택 | F25: 1315 | G25: 0.04770196249
A26: 해양수산 | B26: 3 | C26: 해양수산 | D26: 95 | E26: 해양수산 | F26: 98 | G26: 0.003554975151
A27: 행정안전 | B27: 51 | C27: 행정안전 | D27: 1693 | E27: 행정안전 | F27: 1744 | G27: 0.06326404759
A28: 환경 | B28: 27 | C28: 환경 | D28: 798 | E28: 환경 | F28: 825 | G28: 0.02992708673
A29: 합계 | B29: 1293 | C29: 합계 | D29: 26274 | E29: 합계 | F29: 27567 | G29: 1

Sheet 2022년조사관
A1: 민원실 | C1: 온라인 | F1: 계
A2: 건축 | B2: 46 | C2: 건축 | D2: 889 | E2: 건축 | F2: =D2+B2 -> 935 | H2: 계 | I2: 행정문화교육 | J2: 국방보훈 | K2: 경찰 | L2: 복지노동 | M2: 재정세무 | N2: 산업농림환경 | O2: 주택건축 | P2: 도시 | Q2: 교통도로 | R2: 민형사등
A3: 경찰 | B3: 170 | C3: 경찰 | D3: 1800 | E3: 경찰 | F3: =D3+B3 -> 1970 | H3: =SUM(I3:R3) -> 33704 | I3: =SUM(I5:I13) -> 3664 | J3: =SUM(J5:J13) -> 868 | K3: 1970 | L3: 12564 | M3: 3335 | N3: 3603 | O3: 2569 | P3: 342 | Q3: 1281 | R3: 3508
A4: 고용노동 | B4: 57 | C4: 고용노동 | D4: 7278 | E4: 고용노동 | F4: 7335 | I4: =I3/$H$3 -> 0.1087111322 | J4: =J3/$H$3 -> 0.02575361975 | K4: 0.0584500356 | L4: 0.3727747448 | M4: 0.09894967956 | N4: 0.106901258 | O4: 0.07622240684 | P4: 0.01014716354 | Q4: 0.03800735818 | R4: 0.1040826015
A5: 교육 | B5: 8 | C5: 교육 | D5: 888 | E5: 교육 | F5: 896 | I5: 896 | J5: 534 | K5: 1970 | L5: 7335 | M5: 1143 | N5: 767 | O5: 935 | P5: 334 | Q5: 804 | R5: 1322
A6: 교통 | B6: 40 | C6: 교통 | D6: 764 | E6: 교통 | F6: 804 | I6: 368 | J6: 234 | L6: 434 | M6: 2192 | N6: 1588 | O6: 1634 | P6: 8 | Q6: 477 | R6: 2186
A7: 국방 | B7: 39 | C7: 국방 | D7: 495 | E7: 국방 | F7: 534 | I7: 121 | J7: 100 | L7: 2829 | N7: 126
A8: 군사 | B8: 2 | C8: 군사 | D8: 232 | E8: 군사 | F8: 234 | I8: 279 | L8: 1966 | N8: 1122
A9: 기타 | B9: 318 | C9: 기타 | D9: 1004 | E9: 기타 | F9: 1322 | I9: 2000
A10: 농림·축산 | B10: 92 | C10: 농림축산 | D10: 675 | E10: 농림축산 | F10: 767
A11: 도로 | B11: 99 | C11: 도로 | D11: 378 | E11: 도로 | F11: 477
A12: 도시 | B12: 83 | C12: 도시 | D12: 251 | E12: 도시 | F12: 334
A13: 문화·관광·체육 | B13: 7 | C13: 문화체육관광 | D13: 361 | E13: 문화체육관광 | F13: 368
A14: 민사·법무 | B14: 117 | C14: 민사법무 | D14: 2069 | E14: 민사법무 | F14: 2186
A15: 방송통신 | B15: 11 | C15: 방송통신 | D15: 423 | E15: 방송통신 | F15: 434
A16: 보건복지 | B16: 137 | C16: 보건복지 | D16: 2692 | E16: 보건복지 | F16: 2829
A17: 보훈 | B17: 39 | C17: 보훈 | D17: 61 | E17: 보훈 | F17: 100
A18: 산업·통상·자원 | B18: 74 | C18: 산업통상자원 | D18: 1514 | E18: 산업통상자원 | F18: 1588
A19: 세무 | B19: 101 | C19: 세무 | D19: 1042 | E19: 세무 | F19: 1143
A20: 수자원 | B20: 4 | C20: 수자원 | D20: 4 | E20: 수자원 | F20: 8
A21: 식품의약 | B21: 3 | C21: 식품의약 | D21: 1963 | E21: 식품의약 | F21: 1966
A22: 외무·통일 | B22: 13 | C22: 외무통일 | D22: 108 | E22: 외무통일 | F22: 121
A23: 인사행정 | B23: 14 | C23: 인사행정 | D23: 265 | E23: 인사행정 | F23: 279
A24: 재정·금융·보험·공정거래 | B24: 78 | C24: 재정금융공정 | D24: 2114 | E24: 재정금융공정 | F24: 2192
A25: 주택 | B25: 119 | C25: 주택 | D25: 1515 | E25: 주택 | F25: 1634
A26: 해양수산 | B26: 7 | C26: 해양수산 | D26: 119 | E26: 해양수산 | F26: 126
A27: 행정안전 | B27: 118 | C27: 행정안전 | D27: 1882 | E27: 행정안전 | F27: 2000
A28: 환경 | B28: 40 | C28: 환경 | D28: 1082 | E28: 환경 | F28: 1122
A29: 합계 | B29: 1836 | C29: 합계 | D29: 31868 | E29: 합계 | F29: 33704
